Department,Entity,Transaction Date,Expense Type,Expense Area,Supplier Name,Transaction number,Amount,Invoice Description
DFID,DFID,31/07/2018,Office Supplies,Group Operations,Banner,100106-101,577.63,
DFID,DFID,02/07/2018,Staff Travel - Air Fares,Top Management Group,Corporate Travel Provider,100232-104,"5,776.11",
DFID,DFID,03/07/2018,Secure Staff Accommodation,East and Central Africa,Foreign & Commonwealth Office,101630-101,"2,283.53",
DFID,DFID,20/07/2018,Secure Staff Accommodation,East and Central Africa,Foreign & Commonwealth Office,101630-101,"2,283.52",
DFID,DFID,11/07/2018,Recruitment costs,Finance and Corporate Performance Division,HUDSON GLOBAL RESOURCES LTD,100201-101,"5,400.00",
DFID,DFID,30/07/2018,Storage & Distribution costs,"Asia, Caribbean and Overseas Territories",PICKFORDS LTD,101604-101,834.29,
DFID,DFID,19/07/2018,Hotels - Accommodation only,East and Central Africa,SPEKE HOTEL 1996 LTD. T/A SPEKE APARTMENTS,101635-101,"6,861.51",
DFID,DFID,06/07/2018,Recruitment costs,Business Change and Strategy Division,GUARDIAN NEWS & MEDIA LTD,100225-102,"1,400.00",
DFID,DFID,20/07/2018,DFID Purchased Relief Supplies,Middle East and North Africa Division,Air Charter Service Ltd,300404-102,"116,210.07",
DFID,DFID,30/07/2018,DFID Purchased Relief Supplies,Middle East and North Africa Division,Air Charter Service Ltd,300404-101,"113,266.99",
DFID,DFID,04/07/2018,Project delivery costs � supplier services ,Policy Division,Calder Conferences,300530-101,"469,453.30",
DFID,DFID,19/07/2018,Project delivery costs � supplier services ,Policy Division,Calder Conferences,300530-101,"188,330.75",
DFID,DFID,30/07/2018,Computer software maintenance,Business Solutions Division Level,PROACTIS Group Limited,200002-240,"102,000.00",Annual license and hosting costs for DFID�s Commercial Platform for the period July 2018 � June 2019
DFID,DFID,04/07/2018,"Repairs, Maint, Alter - Property & Constrct. Services","Asia, Caribbean and Overseas Territories",CHARUTA (PVT.) LIMITED,101603-101,"25,000.00",Repair and maintenance of DFID overseas office in order to meet our duty of care obligations and health and safety standards.
DFID,DFID,11/07/2018,Air fares,West and Southern Africa,Recipient name withheld,101618-101,752.00,
DFID,DFID,02/07/2018,Air fares,"Asia, Caribbean and Overseas Territories",Corporate Travel Provider,100011-110,"1,490.26",
DFID,DFID,02/07/2018,Air fares,East and Central Africa,Corporate Travel Provider,100016-110,"1,669.61",
DFID,DFID,02/07/2018,Air fares,East and Central Africa,Corporate Travel Provider,100016-110,"1,369.16",
DFID,DFID,02/07/2018,Air fares,East and Central Africa,Corporate Travel Provider,100016-110,"1,669.61",
DFID,DFID,13/07/2018,Legal costs,East and Central Africa,Foreign & Commonwealth Office,100016-110,642.90,
DFID,DFID,02/07/2018,Air fares,East and Central Africa,Corporate Travel Provider,100016-111,837.62,
DFID,DFID,02/07/2018,Air fares,East and Central Africa,Corporate Travel Provider,100016-111,616.75,
DFID,DFID,02/07/2018,Hotels - Accommodation only,East and Central Africa,Corporate Travel Provider,100016-111,808.50,
DFID,DFID,02/07/2018,Air fares,East and Central Africa,Corporate Travel Provider,100016-111,545.44,
DFID,DFID,02/07/2018,Air fares,Research and Evidence Division,Corporate Travel Provider,100039-101,698.61,
DFID,DFID,02/07/2018,Air fares,Research and Evidence Division,Corporate Travel Provider,100039-108,"1,084.20",
DFID,DFID,02/07/2018,Air fares,Research and Evidence Division,Corporate Travel Provider,100039-108,"1,172.91",
DFID,DFID,02/07/2018,Hotels - Accommodation only,Research and Evidence Division,Corporate Travel Provider,100039-110,782.25,
DFID,DFID,02/07/2018,Air fares,Research and Evidence Division,Corporate Travel Provider,100039-110,554.90,
DFID,DFID,02/07/2018,Air fares,Research and Evidence Division,Corporate Travel Provider,100039-110,"1,264.31",
DFID,DFID,02/07/2018,Air fares,"Humanitarian, Security and Migration Division",Corporate Travel Provider,100049-133,"1,012.61",
DFID,DFID,02/07/2018,Air fares,"Humanitarian, Security and Migration Division",Corporate Travel Provider,100049-133,836.90,
DFID,DFID,02/07/2018,Hotels - Accommodation only,"Humanitarian, Security and Migration Division",Corporate Travel Provider,100049-134,660.85,
DFID,DFID,02/07/2018,Hotels - Accommodation only,"Humanitarian, Security and Migration Division",Corporate Travel Provider,100049-134,568.41,
DFID,DFID,02/07/2018,Air fares,"Humanitarian, Security and Migration Division",Corporate Travel Provider,100049-134,"1,012.31",
DFID,DFID,02/07/2018,Hotels - Accommodation only,"Humanitarian, Security and Migration Division",Corporate Travel Provider,100049-134,735.95,
DFID,DFID,02/07/2018,Air fares,"Humanitarian, Security and Migration Division",Corporate Travel Provider,100049-102,"1,091.21",
DFID,DFID,02/07/2018,Air fares,"Humanitarian, Security and Migration Division",Corporate Travel Provider,100049-102,"1,120.28",
DFID,DFID,02/07/2018,Air fares,"Humanitarian, Security and Migration Division",Corporate Travel Provider,100049-102,616.75,
DFID,DFID,02/07/2018,Hotels - Accommodation only,"Humanitarian, Security and Migration Division",Corporate Travel Provider,100049-102,705.00,
DFID,DFID,02/07/2018,Hotels - Accommodation only,West and Southern Africa,Corporate Travel Provider,100068-101,"1,493.40",
DFID,DFID,02/07/2018,Air fares,West and Southern Africa,Corporate Travel Provider,100068-101,"1,069.10",
DFID,DFID,02/07/2018,Air fares,West and Southern Africa,Corporate Travel Provider,100068-101,793.21,
DFID,DFID,02/07/2018,Air fares,"Asia, Caribbean and Overseas Territories",Corporate Travel Provider,100084-101,"1,654.31",
DFID,DFID,02/07/2018,Air fares,"Asia, Caribbean and Overseas Territories",Corporate Travel Provider,100084-101,963.72,
DFID,DFID,02/07/2018,Air fares,Economic Development Division,Corporate Travel Provider,100086-101,516.42,
DFID,DFID,02/07/2018,Hotels - Accommodation only,Economic Development Division,Corporate Travel Provider,100086-101,716.64,
DFID,DFID,02/07/2018,Air fares,Research and Evidence Division,Corporate Travel Provider,100088-101,909.22,
DFID,DFID,02/07/2018,Air fares,Policy Division,Corporate Travel Provider,100098-101,695.21,
DFID,DFID,02/07/2018,Hotels - Accommodation only,Policy Division,Corporate Travel Provider,100098-101,"1,180.05",
DFID,DFID,02/07/2018,Air fares,Policy Division,Corporate Travel Provider,100098-101,695.21,
DFID,DFID,02/07/2018,Hotels - Accommodation only,Policy Division,Corporate Travel Provider,100098-101,770.41,
DFID,DFID,02/07/2018,Hotels - Accommodation only,Policy Division,Corporate Travel Provider,100098-101,646.83,
DFID,DFID,02/07/2018,Hotels - Accommodation only,Policy Division,Corporate Travel Provider,100098-101,567.18,
DFID,DFID,02/07/2018,Hotels - Accommodation only,Policy Division,Corporate Travel Provider,100098-101,977.11,
DFID,DFID,31/07/2018,"Repairs, Maint, Alter - Other Building Costs",Group Operations,PlumbNation,100106-101,589.31,
DFID,DFID,31/07/2018,"Repairs, Maint, Alter - Other Building Costs",Group Operations,PlumbNation,100106-101,587.92,
DFID,DFID,02/07/2018,Air fares,Internal Audit,Corporate Travel Provider,100121-101,610.93,
DFID,DFID,02/07/2018,Hotels - Accommodation only,Internal Audit,Corporate Travel Provider,100121-101,574.75,
DFID,DFID,02/07/2018,Hotels - Accommodation only,Internal Audit,Corporate Travel Provider,100121-101,540.75,
DFID,DFID,02/07/2018,Air fares,Internal Audit,Corporate Travel Provider,100121-101,898.81,
DFID,DFID,02/07/2018,Air fares,Internal Audit,Corporate Travel Provider,100121-101,898.81,
DFID,DFID,02/07/2018,Hotels - Accommodation only,Internal Audit,Corporate Travel Provider,100121-101,503.40,
DFID,DFID,02/07/2018,Hotels - Accommodation only,Internal Audit,Corporate Travel Provider,100121-101,745.00,
DFID,DFID,02/07/2018,Hotels - Accommodation only,Internal Audit,Corporate Travel Provider,100121-101,676.00,
DFID,DFID,02/07/2018,Hotels - Accommodation only,Internal Audit,Corporate Travel Provider,100121-101,615.00,
DFID,DFID,02/07/2018,Hotels - Accommodation only,Internal Audit,Corporate Travel Provider,100121-101,615.00,
DFID,DFID,02/07/2018,Hotels - Accommodation only,Internal Audit,Corporate Travel Provider,100121-101,615.00,
DFID,DFID,02/07/2018,Air fares,Internal Audit,Corporate Travel Provider,100121-101,759.24,
DFID,DFID,02/07/2018,Air fares,Internal Audit,Corporate Travel Provider,100121-101,759.24,
DFID,DFID,02/07/2018,Hotels - Accommodation only,Internal Audit,Corporate Travel Provider,100121-101,664.86,
DFID,DFID,02/07/2018,Hotels - Accommodation only,Internal Audit,Corporate Travel Provider,100121-101,679.20,
DFID,DFID,02/07/2018,Air fares,Economic Development Division,Corporate Travel Provider,100124-101,541.10,
DFID,DFID,02/07/2018,Air fares,Economic Development Division,Corporate Travel Provider,100124-101,"1,054.91",
DFID,DFID,02/07/2018,Air fares,Economic Development Division,Corporate Travel Provider,100124-101,624.31,
DFID,DFID,02/07/2018,Air fares,Economic Development Division,Corporate Travel Provider,100124-101,"2,393.31",
DFID,DFID,02/07/2018,Air fares,Economic Development Division,Corporate Travel Provider,100124-101,"1,712.31",
DFID,DFID,02/07/2018,Air fares,Economic Development Division,Corporate Travel Provider,100124-101,"3,603.79",
DFID,DFID,02/07/2018,Air fares,Communications Division,Corporate Travel Provider,100138-101,"2,315.81",
DFID,DFID,20/07/2018,Medical/Health Services,West and Southern Africa,Foreign & Commonwealth Office,100148-101,"1,597.17",
DFID,DFID,20/07/2018,Medical/Health Services,West and Southern Africa,Foreign & Commonwealth Office,100148-101,"1,597.17",
DFID,DFID,02/07/2018,Hotels - Accommodation only,Finance and Corporate Performance Division,Corporate Travel Provider,100201-101,683.89,
DFID,DFID,02/07/2018,Air fares,Finance and Corporate Performance Division,Corporate Travel Provider,100201-101,689.76,
DFID,DFID,02/07/2018,Hotels - Accommodation only,Finance and Corporate Performance Division,Corporate Travel Provider,100201-101,683.89,
DFID,DFID,02/07/2018,Air fares,East and Central Africa,Corporate Travel Provider,100218-101,"1,355.82",
DFID,DFID,02/07/2018,Hotels - Accommodation only,East and Central Africa,Corporate Travel Provider,100230-101,508.75,
DFID,DFID,02/07/2018,Air fares,Top Management Group,Corporate Travel Provider,100232-102,"3,045.90",
DFID,DFID,02/07/2018,Air fares,Top Management Group,Corporate Travel Provider,100232-102,"3,045.90",
DFID,DFID,02/07/2018,Hotels - Accommodation only,Top Management Group,Corporate Travel Provider,100232-104,575.00,
DFID,DFID,02/07/2018,Hotels - Accommodation only,Top Management Group,Corporate Travel Provider,100232-104,575.00,
DFID,DFID,02/07/2018,Hotels - Accommodation only,Top Management Group,Corporate Travel Provider,100232-104,575.00,
DFID,DFID,02/07/2018,Air fares,Top Management Group,Corporate Travel Provider,100232-104,525.93,
DFID,DFID,02/07/2018,Air fares,Top Management Group,Corporate Travel Provider,100232-104,"3,994.11",
DFID,DFID,02/07/2018,Air fares,Top Management Group,Corporate Travel Provider,100232-105,"1,895.91",
DFID,DFID,02/07/2018,Air fares,Top Management Group,Corporate Travel Provider,100232-105,"1,773.60",
DFID,DFID,02/07/2018,Air fares,Top Management Group,Corporate Travel Provider,100232-105,"1,237.21",
DFID,DFID,02/07/2018,Air fares,Top Management Group,Corporate Travel Provider,100232-106,"2,616.71",
DFID,DFID,02/07/2018,Staff Travel - Air Fares,Top Management Group,Corporate Travel Provider,100232-106,"4,255.71",
DFID,DFID,02/07/2018,Air fares,Top Management Group,Corporate Travel Provider,100232-107,"1,474.81",
DFID,DFID,02/07/2018,Air fares,Top Management Group,Corporate Travel Provider,100232-107,"1,474.81",
DFID,DFID,02/07/2018,Air fares,Top Management Group,Corporate Travel Provider,100232-107,958.50,
DFID,DFID,02/07/2018,Air fares,Top Management Group,Corporate Travel Provider,100232-107,"1,066.50",
DFID,DFID,02/07/2018,Air fares,Top Management Group,Corporate Travel Provider,100232-108,908.21,
DFID,DFID,02/07/2018,Air fares,Top Management Group,Corporate Travel Provider,100232-108,"1,946.10",
DFID,DFID,02/07/2018,Air fares,Top Management Group,Corporate Travel Provider,100232-108,908.21,
DFID,DFID,02/07/2018,Air fares,International Relations Division,Corporate Travel Provider,100240-101,553.36,
DFID,DFID,02/07/2018,Air fares,International Relations Division,Corporate Travel Provider,100240-101,990.31,
DFID,DFID,02/07/2018,Hotels - Accommodation only,International Relations Division,Corporate Travel Provider,100240-101,"1,256.41",
DFID,DFID,02/07/2018,Hotels - Accommodation only,International Relations Division,Corporate Travel Provider,100240-101,728.73,
DFID,DFID,02/07/2018,Air fares,Human Resources,Corporate Travel Provider,100261-101,"2,400.41",
DFID,DFID,02/07/2018,Air fares,Human Resources,Corporate Travel Provider,100261-101,"2,393.21",
DFID,DFID,02/07/2018,Air fares,Human Resources,Corporate Travel Provider,100261-101,"1,928.52",
DFID,DFID,02/07/2018,Hotels - Accommodation only,Human Resources,Corporate Travel Provider,100266-107,770.00,
DFID,DFID,02/07/2018,Hotels - Accommodation only,Human Resources,Corporate Travel Provider,100269-158,655.00,
DFID,DFID,02/07/2018,Hotels - Accommodation only,Policy Division,Corporate Travel Provider,100274-111,876.42,
DFID,DFID,02/07/2018,Hotels - Accommodation only,Policy Division,Corporate Travel Provider,100274-111,785.69,
DFID,DFID,02/07/2018,Air fares,Policy Division,Corporate Travel Provider,100274-111,996.91,
DFID,DFID,02/07/2018,Air fares,Policy Division,Corporate Travel Provider,100274-111,996.91,
DFID,DFID,02/07/2018,Air fares,Policy Division,Corporate Travel Provider,100274-111,"2,957.41",
DFID,DFID,02/07/2018,Hotels - Accommodation only,Policy Division,Corporate Travel Provider,100274-111,866.23,
DFID,DFID,02/07/2018,Air fares,Economic Development Division,Corporate Travel Provider,100275-101,822.20,
DFID,DFID,02/07/2018,Hotels - Accommodation only,Economic Development Division,Corporate Travel Provider,100275-101,731.56,
DFID,DFID,02/07/2018,Air fares,Economic Development Division,Corporate Travel Provider,100276-101,504.31,
DFID,DFID,02/07/2018,Air fares,Economic Development Division,Corporate Travel Provider,100276-101,569.10,
DFID,DFID,02/07/2018,Hotels - Accommodation only,Economic Development Division,Corporate Travel Provider,100276-101,784.91,
DFID,DFID,02/07/2018,Air fares,Economic Development Division,Corporate Travel Provider,100276-101,631.40,
DFID,DFID,02/07/2018,Air fares,Policy Division,Corporate Travel Provider,100277-101,"1,171.19",
DFID,DFID,02/07/2018,Hotels - Accommodation only,Policy Division,Corporate Travel Provider,100277-101,676.89,
DFID,DFID,02/07/2018,Air fares,Policy Division,Corporate Travel Provider,100277-101,"1,759.31",
DFID,DFID,02/07/2018,Air fares,"Asia, Caribbean and Overseas Territories",Corporate Travel Provider,101601-110,"1,434.26",
DFID,DFID,02/07/2018,Air fares,"Asia, Caribbean and Overseas Territories",Corporate Travel Provider,101601-110,"1,037.06",
DFID,DFID,02/07/2018,Air fares,"Asia, Caribbean and Overseas Territories",Corporate Travel Provider,101601-110,820.92,
DFID,DFID,02/07/2018,Air fares,"Asia, Caribbean and Overseas Territories",Corporate Travel Provider,101601-110,"1,178.10",
DFID,DFID,02/07/2018,Air fares,"Asia, Caribbean and Overseas Territories",Corporate Travel Provider,101601-110,"3,083.90",
DFID,DFID,02/07/2018,Air fares,"Asia, Caribbean and Overseas Territories",Corporate Travel Provider,101601-110,"3,083.90",
DFID,DFID,20/07/2018,Telephone Usage & services,"Asia, Caribbean and Overseas Territories",Foreign & Commonwealth Office,101601-110,650.62,
DFID,DFID,20/07/2018,Telephone Usage & services,"Asia, Caribbean and Overseas Territories",Foreign & Commonwealth Office,101601-110,886.81,
DFID,DFID,03/07/2018,Further Education costs,"Asia, Caribbean and Overseas Territories",Foreign & Commonwealth Office,101601-110,567.44,
DFID,DFID,13/07/2018,Air fares,"Asia, Caribbean and Overseas Territories",Foreign & Commonwealth Office,101601-110,"1,848.32",
DFID,DFID,13/07/2018,Air fares,"Asia, Caribbean and Overseas Territories",Foreign & Commonwealth Office,101601-110,"1,377.11",
DFID,DFID,13/07/2018,Staff Travel - Air Fares,"Asia, Caribbean and Overseas Territories",Foreign & Commonwealth Office,101601-110,"29,667.05",Secure air transport costs for Kabul for April 2018 - March 2019
DFID,DFID,02/07/2018,Air fares,"Asia, Caribbean and Overseas Territories",Corporate Travel Provider,101603-101,"1,872.39",
DFID,DFID,02/07/2018,Air fares,"Asia, Caribbean and Overseas Territories",Corporate Travel Provider,101603-101,772.79,
DFID,DFID,03/07/2018,Air fares,"Asia, Caribbean and Overseas Territories",Foreign & Commonwealth Office,101604-101,869.28,
DFID,DFID,03/07/2018,Training - Travel & Subsistence,"Asia, Caribbean and Overseas Territories",Foreign & Commonwealth Office,101604-101,831.70,
DFID,DFID,03/07/2018,Training - Travel & Subsistence,"Asia, Caribbean and Overseas Territories",Foreign & Commonwealth Office,101604-101,969.81,
DFID,DFID,13/07/2018,Hotels - Accommodation only,"Asia, Caribbean and Overseas Territories",Foreign & Commonwealth Office,101605-101,"1,356.03",
DFID,DFID,13/07/2018,Hotels - Accommodation only,"Asia, Caribbean and Overseas Territories",Foreign & Commonwealth Office,101605-101,527.35,
DFID,DFID,03/07/2018,Air fares,"Asia, Caribbean and Overseas Territories",Foreign & Commonwealth Office,101605-101,"1,398.13",
DFID,DFID,03/07/2018,Hotels - Accommodation only,"Asia, Caribbean and Overseas Territories",Foreign & Commonwealth Office,101605-101,"3,263.75",
DFID,DFID,03/07/2018,Hotels - Accommodation only,"Asia, Caribbean and Overseas Territories",Foreign & Commonwealth Office,101605-101,666.81,
DFID,DFID,20/07/2018,Air fares,"Asia, Caribbean and Overseas Territories",Foreign & Commonwealth Office,101605-101,916.08,
DFID,DFID,02/07/2018,Air fares,"Asia, Caribbean and Overseas Territories",Corporate Travel Provider,101605-101,938.21,
DFID,DFID,02/07/2018,Air fares,"Asia, Caribbean and Overseas Territories",Corporate Travel Provider,101605-101,970.61,
DFID,DFID,02/07/2018,Air fares,"Asia, Caribbean and Overseas Territories",Corporate Travel Provider,101605-101,924.70,
DFID,DFID,02/07/2018,Air fares,"Asia, Caribbean and Overseas Territories",Corporate Travel Provider,101605-101,858.82,
DFID,DFID,02/07/2018,Air fares,West and Southern Africa,Corporate Travel Provider,101610-101,801.10,
DFID,DFID,02/07/2018,Air fares,West and Southern Africa,Corporate Travel Provider,101610-101,820.80,
DFID,DFID,02/07/2018,Hotels - Accommodation only,West and Southern Africa,Corporate Travel Provider,101610-101,712.00,
DFID,DFID,02/07/2018,Air fares,West and Southern Africa,Corporate Travel Provider,101610-101,"1,358.20",
DFID,DFID,02/07/2018,Air fares,West and Southern Africa,Corporate Travel Provider,101610-101,"1,358.20",
DFID,DFID,02/07/2018,Air fares,West and Southern Africa,Corporate Travel Provider,101610-101,680.80,
DFID,DFID,02/07/2018,Air fares,West and Southern Africa,Corporate Travel Provider,101610-101,523.80,
DFID,DFID,02/07/2018,Air fares,West and Southern Africa,Corporate Travel Provider,101610-101,523.80,
DFID,DFID,02/07/2018,Air fares,West and Southern Africa,Corporate Travel Provider,101610-101,680.80,
DFID,DFID,02/07/2018,Air fares,West and Southern Africa,Corporate Travel Provider,101610-101,"1,464.82",
DFID,DFID,02/07/2018,Air fares,West and Southern Africa,Corporate Travel Provider,101610-101,"1,076.20",
DFID,DFID,02/07/2018,Air fares,West and Southern Africa,Corporate Travel Provider,101610-101,593.00,
DFID,DFID,02/07/2018,Air fares,West and Southern Africa,Corporate Travel Provider,101610-101,587.10,
DFID,DFID,02/07/2018,Air fares,West and Southern Africa,Corporate Travel Provider,101610-101,593.00,
DFID,DFID,02/07/2018,Air fares,West and Southern Africa,Corporate Travel Provider,101610-101,"1,261.36",
DFID,DFID,02/07/2018,Air fares,West and Southern Africa,Corporate Travel Provider,101610-101,"1,020.30",
DFID,DFID,03/07/2018,Project delivery costs � supplier services ,West and Southern Africa,Foreign & Commonwealth Office,101610-101,"1,329.16",
DFID,DFID,03/07/2018,Project delivery costs � supplier services ,West and Southern Africa,Foreign & Commonwealth Office,101610-101,"2,658.33",
DFID,DFID,03/07/2018,Air fares,West and Southern Africa,Foreign & Commonwealth Office,101610-101,"3,602.01",
DFID,DFID,02/07/2018,Hotels - Accommodation only,West and Southern Africa,Corporate Travel Provider,101610-101,558.94,
DFID,DFID,02/07/2018,Hotels - Accommodation only,West and Southern Africa,Corporate Travel Provider,101610-101,558.94,
DFID,DFID,02/07/2018,Hotels - Accommodation only,"Asia, Caribbean and Overseas Territories",Corporate Travel Provider,101611-101,655.00,
DFID,DFID,02/07/2018,Air fares,East and Central Africa,Corporate Travel Provider,101612-101,568.69,
DFID,DFID,02/07/2018,Air fares,East and Central Africa,Corporate Travel Provider,101612-101,568.69,
DFID,DFID,02/07/2018,Air fares,East and Central Africa,Corporate Travel Provider,101612-101,739.70,
DFID,DFID,02/07/2018,Hotels - Accommodation only,East and Central Africa,Corporate Travel Provider,101612-101,527.00,
DFID,DFID,13/07/2018,Telephone Usage & services,East and Central Africa,Foreign & Commonwealth Office,101612-101,"2,079.89",
DFID,DFID,13/07/2018,Hotels - Accommodation only,East and Central Africa,Foreign & Commonwealth Office,101612-101,"3,643.14",
DFID,DFID,03/07/2018,Training - Travel & Subsistence,East and Central Africa,Foreign & Commonwealth Office,101612-101,797.83,
DFID,DFID,03/07/2018,Air fares,East and Central Africa,Foreign & Commonwealth Office,101612-101,904.69,
DFID,DFID,03/07/2018,Training - Travel & Subsistence,East and Central Africa,Foreign & Commonwealth Office,101612-101,796.54,
DFID,DFID,03/07/2018,Air fares,East and Central Africa,Foreign & Commonwealth Office,101612-101,825.83,
DFID,DFID,20/07/2018,Air fares,East and Central Africa,Foreign & Commonwealth Office,101612-101,531.52,
DFID,DFID,20/07/2018,Hotels - Accommodation only,East and Central Africa,Foreign & Commonwealth Office,101612-101,"2,406.85",
DFID,DFID,20/07/2018,Hotels - Accommodation only,East and Central Africa,Foreign & Commonwealth Office,101612-101,"4,028.52",
DFID,DFID,02/07/2018,Air fares,West and Southern Africa,Corporate Travel Provider,101613-101,"1,558.21",
DFID,DFID,02/07/2018,Air fares,West and Southern Africa,Corporate Travel Provider,101613-101,"1,085.26",
DFID,DFID,02/07/2018,Air fares,West and Southern Africa,Corporate Travel Provider,101613-101,"1,072.62",
DFID,DFID,13/07/2018,Hotels - Accommodation only,East and Central Africa,Foreign & Commonwealth Office,101616-101,736.16,
DFID,DFID,02/07/2018,Air fares,East and Central Africa,Corporate Travel Provider,101616-101,902.70,
DFID,DFID,02/07/2018,Air fares,East and Central Africa,Corporate Travel Provider,101616-101,"1,201.72",
DFID,DFID,02/07/2018,Air fares,East and Central Africa,Corporate Travel Provider,101616-101,"1,201.72",
DFID,DFID,02/07/2018,Air fares,West and Southern Africa,Corporate Travel Provider,101618-101,"1,269.06",
DFID,DFID,02/07/2018,Air fares,West and Southern Africa,Corporate Travel Provider,101618-101,"1,013.44",
DFID,DFID,02/07/2018,Air fares,West and Southern Africa,Corporate Travel Provider,101618-101,"2,530.60",
DFID,DFID,13/07/2018,Telephone Usage & services,West and Southern Africa,Foreign & Commonwealth Office,101620-101,"1,021.75",
DFID,DFID,03/07/2018,Telephone Usage & services,West and Southern Africa,Foreign & Commonwealth Office,101620-101,772.90,
DFID,DFID,20/07/2018,Medical/Health Services,West and Southern Africa,Foreign & Commonwealth Office,101620-101,"3,567.21",
DFID,DFID,20/07/2018,Medical/Health Services,West and Southern Africa,Foreign & Commonwealth Office,101620-101,"3,567.21",
DFID,DFID,02/07/2018,Hotels - Accommodation only,West and Southern Africa,Corporate Travel Provider,101620-102,693.00,
DFID,DFID,02/07/2018,Air fares,"Asia, Caribbean and Overseas Territories",Corporate Travel Provider,101621-101,523.02,
DFID,DFID,02/07/2018,Hotels - Accommodation only,"Asia, Caribbean and Overseas Territories",Corporate Travel Provider,101621-101,"2,564.05",
DFID,DFID,02/07/2018,Air fares,"Asia, Caribbean and Overseas Territories",Corporate Travel Provider,101621-101,931.21,
DFID,DFID,02/07/2018,Air fares,"Asia, Caribbean and Overseas Territories",Corporate Travel Provider,101621-101,676.21,
DFID,DFID,02/07/2018,Air fares,"Asia, Caribbean and Overseas Territories",Corporate Travel Provider,101621-101,931.21,
DFID,DFID,02/07/2018,Air fares,"Asia, Caribbean and Overseas Territories",Corporate Travel Provider,101621-101,676.21,
DFID,DFID,02/07/2018,Air fares,"Asia, Caribbean and Overseas Territories",Corporate Travel Provider,101621-101,638.91,
DFID,DFID,02/07/2018,Hotels - Accommodation only,West and Southern Africa,Supplier Name withheld,101622-105,514.14,
DFID,DFID,02/07/2018,Air fares,West and Southern Africa,Supplier Name withheld,101622-105,621.01,
DFID,DFID,02/07/2018,Air fares,West and Southern Africa,Supplier Name withheld,101622-105,622.70,
DFID,DFID,02/07/2018,Air fares,West and Southern Africa,Supplier Name withheld,101622-106,"1,557.92",
DFID,DFID,02/07/2018,Air fares,West and Southern Africa,Supplier Name withheld,101622-106,"2,175.67",
DFID,DFID,02/07/2018,Air fares,West and Southern Africa,Supplier Name withheld,101622-106,"1,050.71",
DFID,DFID,02/07/2018,Air fares,West and Southern Africa,Supplier Name withheld,101622-106,765.71,
DFID,DFID,02/07/2018,Air fares,West and Southern Africa,Supplier Name withheld,101622-106,888.31,
DFID,DFID,02/07/2018,Air fares,West and Southern Africa,Supplier Name withheld,101622-106,746.30,
DFID,DFID,03/07/2018,Mobile telephones & accessories,"Asia, Caribbean and Overseas Territories",Foreign & Commonwealth Office,101624-101,"1,925.12",
DFID,DFID,13/07/2018,Telephone Usage & services,"Asia, Caribbean and Overseas Territories",Foreign & Commonwealth Office,101624-101,774.07,
DFID,DFID,02/07/2018,Air fares,"Asia, Caribbean and Overseas Territories",Corporate Travel Provider,101624-101,"1,238.60",
DFID,DFID,02/07/2018,Hotels - Accommodation only,"Asia, Caribbean and Overseas Territories",Corporate Travel Provider,101624-101,"2,041.30",
DFID,DFID,02/07/2018,Other passenger transport,"Asia, Caribbean and Overseas Territories",Corporate Travel Provider,101624-101,664.00,
DFID,DFID,02/07/2018,Air fares,"Asia, Caribbean and Overseas Territories",Corporate Travel Provider,101624-101,856.90,
DFID,DFID,02/07/2018,Air fares,"Asia, Caribbean and Overseas Territories",Corporate Travel Provider,101624-101,534.70,
DFID,DFID,02/07/2018,Air fares,East and Central Africa,Corporate Travel Provider,101625-110,"1,759.76",
DFID,DFID,02/07/2018,Staff Travel - Air Fares,East and Central Africa,Corporate Travel Provider,101625-110,"4,386.61",
DFID,DFID,02/07/2018,Air fares,East and Central Africa,Corporate Travel Provider,101625-110,"2,529.51",
DFID,DFID,02/07/2018,Air fares,East and Central Africa,Corporate Travel Provider,101625-111,631.51,
DFID,DFID,02/07/2018,Hotels - Accommodation only,East and Central Africa,Corporate Travel Provider,101625-111,670.20,
DFID,DFID,02/07/2018,Air fares,East and Central Africa,Corporate Travel Provider,101625-111,832.21,
DFID,DFID,02/07/2018,Air fares,East and Central Africa,Corporate Travel Provider,101625-111,705.81,
DFID,DFID,02/07/2018,Air fares,East and Central Africa,Corporate Travel Provider,101625-111,799.16,
DFID,DFID,02/07/2018,Air fares,East and Central Africa,Corporate Travel Provider,101625-112,"1,392.41",
DFID,DFID,02/07/2018,Air fares,East and Central Africa,Corporate Travel Provider,101625-112,711.30,
DFID,DFID,02/07/2018,Hotels - Accommodation only,East and Central Africa,Corporate Travel Provider,101625-112,556.00,
DFID,DFID,02/07/2018,Air fares,East and Central Africa,Corporate Travel Provider,101625-112,876.40,
DFID,DFID,02/07/2018,Air fares,East and Central Africa,Corporate Travel Provider,101625-113,942.11,
DFID,DFID,02/07/2018,Air fares,East and Central Africa,Corporate Travel Provider,101625-113,870.00,
DFID,DFID,02/07/2018,Air fares,East and Central Africa,Corporate Travel Provider,101625-113,"1,494.70",
DFID,DFID,02/07/2018,Air fares,East and Central Africa,Corporate Travel Provider,101625-113,"1,371.02",
DFID,DFID,02/07/2018,Air fares,East and Central Africa,Corporate Travel Provider,101625-113,720.01,
DFID,DFID,02/07/2018,Air fares,East and Central Africa,Corporate Travel Provider,101625-113,"1,494.70",
DFID,DFID,02/07/2018,Air fares,East and Central Africa,Corporate Travel Provider,101625-113,"1,494.70",
DFID,DFID,02/07/2018,Air fares,East and Central Africa,Corporate Travel Provider,101625-115,915.61,
DFID,DFID,02/07/2018,Air fares,East and Central Africa,Corporate Travel Provider,101625-116,873.41,
DFID,DFID,02/07/2018,Air fares,West and Southern Africa,Corporate Travel Provider,101629-101,721.40,
DFID,DFID,02/07/2018,Air fares,West and Southern Africa,Corporate Travel Provider,101629-101,"1,044.37",
DFID,DFID,02/07/2018,Air fares,West and Southern Africa,Corporate Travel Provider,101629-101,"1,001.30",
DFID,DFID,02/07/2018,Air fares,West and Southern Africa,Corporate Travel Provider,101629-101,913.30,
DFID,DFID,02/07/2018,Air fares,West and Southern Africa,Corporate Travel Provider,101629-101,913.30,
DFID,DFID,02/07/2018,Air fares,West and Southern Africa,Corporate Travel Provider,101629-101,"1,287.38",
DFID,DFID,02/07/2018,Air fares,West and Southern Africa,Corporate Travel Provider,101629-101,671.30,
DFID,DFID,02/07/2018,Air fares,West and Southern Africa,Corporate Travel Provider,101629-101,"1,183.90",
DFID,DFID,02/07/2018,Air fares,West and Southern Africa,Corporate Travel Provider,101629-101,"1,282.26",
DFID,DFID,02/07/2018,Air fares,West and Southern Africa,Corporate Travel Provider,101629-101,685.26,
DFID,DFID,02/07/2018,Air fares,East and Central Africa,Corporate Travel Provider,101630-101,"1,035.00",
DFID,DFID,02/07/2018,Air fares,East and Central Africa,Corporate Travel Provider,101630-101,"1,746.45",
DFID,DFID,02/07/2018,Air fares,East and Central Africa,Corporate Travel Provider,101630-101,"1,858.82",
DFID,DFID,02/07/2018,Air fares,East and Central Africa,Corporate Travel Provider,101630-101,"1,858.82",
DFID,DFID,20/07/2018,Hotels - Accommodation only,East and Central Africa,Foreign & Commonwealth Office,101633-101,"1,308.93",
DFID,DFID,20/07/2018,Hotels - Accommodation only,East and Central Africa,Foreign & Commonwealth Office,101633-101,"1,745.24",
DFID,DFID,03/07/2018,Hotels - Accommodation only,East and Central Africa,Foreign & Commonwealth Office,101633-101,"3,450.03",
DFID,DFID,03/07/2018,Air fares,East and Central Africa,Foreign & Commonwealth Office,101633-101,"1,159.67",
DFID,DFID,03/07/2018,Hotels - Accommodation only,East and Central Africa,Foreign & Commonwealth Office,101633-101,"1,024.75",
DFID,DFID,02/07/2018,Air fares,East and Central Africa,Corporate Travel Provider,101633-101,543.10,
DFID,DFID,02/07/2018,Air fares,East and Central Africa,Corporate Travel Provider,101633-101,"1,403.82",
DFID,DFID,02/07/2018,Air fares,East and Central Africa,Corporate Travel Provider,101633-101,811.41,
DFID,DFID,13/07/2018,Telephone Usage & services,East and Central Africa,Foreign & Commonwealth Office,101635-101,545.42,
DFID,DFID,02/07/2018,Hotels - Accommodation only,East and Central Africa,Corporate Travel Provider,101635-101,564.00,
DFID,DFID,02/07/2018,Air fares,East and Central Africa,Corporate Travel Provider,101635-101,550.01,
DFID,DFID,02/07/2018,Air fares,East and Central Africa,Corporate Travel Provider,101635-101,550.01,
DFID,DFID,02/07/2018,Air fares,East and Central Africa,Corporate Travel Provider,101635-101,760.01,
DFID,DFID,02/07/2018,Air fares,East and Central Africa,Corporate Travel Provider,101635-101,760.01,
DFID,DFID,02/07/2018,Air fares,West and Southern Africa,Corporate Travel Provider,101637-101,881.41,
DFID,DFID,03/07/2018,Travel - Subsistence,West and Southern Africa,Foreign & Commonwealth Office,101637-101,"1,321.88",
DFID,DFID,02/07/2018,Air fares,West and Southern Africa,Corporate Travel Provider,101638-108,610.10,
DFID,DFID,03/07/2018,Other travel costs,West and Southern Africa,Foreign & Commonwealth Office,101638-101,902.50,
DFID,DFID,02/07/2018,Air fares,West and Southern Africa,Corporate Travel Provider,101638-101,"1,372.06",
DFID,DFID,02/07/2018,Air fares,West and Southern Africa,Corporate Travel Provider,101638-101,556.71,
DFID,DFID,02/07/2018,Air fares,West and Southern Africa,Corporate Travel Provider,101638-101,755.92,
DFID,DFID,31/07/2018,Subscriptions,Business Solutions Division Level,Brent Ozar,200001-101,"2,308.77",
DFID,DFID,02/07/2018,Air fares,Business Solutions Division Level,Corporate Travel Provider,200001-101,588.47,
DFID,DFID,03/07/2018,Data Network - land lines,Business Solutions Division Level,Foreign & Commonwealth Office,200002-121,872.80,
DFID,DFID,31/07/2018,Hardware - networking equipment,Business Solutions Division Level,CCS Media,200002-153,"2,118.00",
DFID,DFID,31/07/2018,Computer Consumables - Cds/memory/accessories,Business Solutions Division Level,HP Ltd,200002-153,600.00,
DFID,DFID,31/07/2018,Computer Consumables - Cds/memory/accessories,Business Solutions Division Level,CCS Media,200002-153,"1,114.62",
DFID,DFID,31/07/2018,Computer Consumables - Cds/memory/accessories,Business Solutions Division Level,CCS Media,200002-153,"1,444.44",
DFID,DFID,31/07/2018,Storage & Distribution costs,Business Solutions Division Level,Capito,200002-239,744.84,
DFID,DFID,02/07/2018,Air fares,Middle East and North Africa Division,Corporate Travel Provider,201701-101,577.61,
DFID,DFID,02/07/2018,Air fares,Middle East and North Africa Division,Corporate Travel Provider,201701-101,854.21,
DFID,DFID,02/07/2018,Air fares,Middle East and North Africa Division,Corporate Travel Provider,201701-101,854.11,
DFID,DFID,02/07/2018,Air fares,Middle East and North Africa Division,Corporate Travel Provider,201701-101,925.11,
DFID,DFID,20/07/2018,Air fares,Middle East and North Africa Division,Foreign & Commonwealth Office,201701-101,946.21,
DFID,DFID,03/07/2018,Telephone Usage & services,Middle East and North Africa Division,Foreign & Commonwealth Office,201701-101,"1,000.81",
DFID,DFID,03/07/2018,"Conferences, Seminars & Meeting/Event Resource",Middle East and North Africa Division,Foreign & Commonwealth Office,201705-101,549.41,
DFID,DFID,03/07/2018,Travel - Subsistence,Middle East and North Africa Division,Foreign & Commonwealth Office,201705-101,511.23,
DFID,DFID,13/07/2018,Telephone Usage & services,Middle East and North Africa Division,Foreign & Commonwealth Office,201705-101,733.22,
DFID,DFID,02/07/2018,Air fares,Economic Development Division,Corporate Travel Provider,202259-101,"1,383.00",
DFID,DFID,02/07/2018,Hotels - Accommodation only,Economic Development Division,Corporate Travel Provider,202259-101,500.00,
DFID,DFID,02/07/2018,Air fares,Economic Development Division,Corporate Travel Provider,202259-101,671.12,
DFID,DFID,31/07/2018,"Conferences, Seminars & Meeting/Event Resource",Research and Evidence Division,The UK Evaluation Society ,202331-102,538.77,
DFID,DFID,02/07/2018,Air fares,Research and Evidence Division,Corporate Travel Provider,202348-101,870.00,
DFID,DFID,02/07/2018,Air fares,Research and Evidence Division,Corporate Travel Provider,202348-103,"1,847.91",
DFID,DFID,02/07/2018,Air fares,Research and Evidence Division,Corporate Travel Provider,202348-103,"1,467.91",
DFID,DFID,02/07/2018,Hotels - Accommodation only,Economic Development Division,Corporate Travel Provider,202373-101,867.62,
DFID,DFID,02/07/2018,Air fares,Economic Development Division,Corporate Travel Provider,202373-101,"2,531.01",
DFID,DFID,02/07/2018,Hotels - Accommodation only,Economic Development Division,Corporate Travel Provider,202373-101,648.77,
DFID,DFID,02/07/2018,Air fares,Economic Development Division,Corporate Travel Provider,202373-101,576.86,
DFID,DFID,20/07/2018,Air fares,Economic Development Division,Foreign & Commonwealth Office,202373-101,581.72,
DFID,DFID,02/07/2018,Air fares,Economic Development Division,Corporate Travel Provider,202373-101,518.09,
DFID,DFID,20/07/2018,Air fares,Economic Development Division,Foreign & Commonwealth Office,202373-101,548.33,
DFID,DFID,02/07/2018,Air fares,Research and Evidence Division,Corporate Travel Provider,202392-102,526.01,
DFID,DFID,02/07/2018,Air fares,Research and Evidence Division,Corporate Travel Provider,202392-102,"1,101.70",
DFID,DFID,02/07/2018,Air fares,Research and Evidence Division,Corporate Travel Provider,202392-103,"1,565.51",
DFID,DFID,02/07/2018,Air fares,Research and Evidence Division,Corporate Travel Provider,202392-103,"1,282.70",
DFID,DFID,02/07/2018,Hotels - Accommodation only,Research and Evidence Division,Corporate Travel Provider,202392-103,507.12,
DFID,DFID,02/07/2018,Air fares,Research and Evidence Division,Corporate Travel Provider,202392-103,722.21,
DFID,DFID,02/07/2018,Air fares,Research and Evidence Division,Corporate Travel Provider,202392-110,"1,062.50",
DFID,DFID,02/07/2018,Air fares,Research and Evidence Division,Corporate Travel Provider,202392-104,718.40,
DFID,DFID,02/07/2018,Hotels - Accommodation only,Research and Evidence Division,Corporate Travel Provider,202392-113,500.85,
DFID,DFID,02/07/2018,Air fares,Policy Division,Corporate Travel Provider,202396-101,910.01,
DFID,DFID,02/07/2018,Hotels - Accommodation only,Policy Division,Corporate Travel Provider,202396-101,682.18,
DFID,DFID,02/07/2018,Hotels - Accommodation only,Policy Division,Corporate Travel Provider,202396-101,659.50,
DFID,DFID,02/07/2018,Hotels - Accommodation only,Policy Division,Corporate Travel Provider,202396-101,574.86,
DFID,DFID,02/07/2018,Hotels - Accommodation only,Policy Division,Corporate Travel Provider,202402-107,786.52,
DFID,DFID,02/07/2018,Air fares,Policy Division,Corporate Travel Provider,202402-107,"1,045.92",
DFID,DFID,02/07/2018,Air fares,Policy Division,Corporate Travel Provider,202402-107,612.61,
DFID,DFID,02/07/2018,Air fares,Policy Division,Corporate Travel Provider,202402-107,"1,155.91",
DFID,DFID,02/07/2018,Hotels - Accommodation only,Policy Division,Corporate Travel Provider,202402-107,785.69,
DFID,DFID,02/07/2018,Air fares,"Asia, Caribbean and Overseas Territories",Corporate Travel Provider,202403-101,537.10,
DFID,DFID,20/07/2018,Air fares,"Asia, Caribbean and Overseas Territories",Foreign & Commonwealth Office,202403-101,"2,655.99",
DFID,DFID,20/07/2018,Hotels - Accommodation only,"Asia, Caribbean and Overseas Territories",Foreign & Commonwealth Office,202403-101,"4,195.87",
DFID,DFID,20/07/2018,Hotels - Accommodation only,"Asia, Caribbean and Overseas Territories",Foreign & Commonwealth Office,202403-101,738.68,
DFID,DFID,02/07/2018,Air fares,"Humanitarian, Security and Migration Division",Corporate Travel Provider,202410-101,"1,223.16",
DFID,DFID,02/07/2018,Air fares,"Humanitarian, Security and Migration Division",Corporate Travel Provider,202410-108,785.06,
DFID,DFID,02/07/2018,Air fares,"Humanitarian, Security and Migration Division",Corporate Travel Provider,202410-108,785.06,
DFID,DFID,02/07/2018,Air fares,"Humanitarian, Security and Migration Division",Corporate Travel Provider,202410-108,785.06,
DFID,DFID,02/07/2018,Air fares,"Humanitarian, Security and Migration Division",Corporate Travel Provider,202410-109,"1,028.31",
DFID,DFID,02/07/2018,Hotels - Accommodation only,"Humanitarian, Security and Migration Division",Corporate Travel Provider,202410-109,968.24,
DFID,DFID,02/07/2018,Hotels - Accommodation only,Policy Division,Corporate Travel Provider,202419-101,676.74,
DFID,DFID,02/07/2018,Air fares,Policy Division,Corporate Travel Provider,202419-101,981.71,
DFID,DFID,02/07/2018,Hotels - Accommodation only,Policy Division,Corporate Travel Provider,202419-101,595.44,
DFID,DFID,02/07/2018,Hotels - Accommodation only,Policy Division,Corporate Travel Provider,202419-101,"1,133.38",
DFID,DFID,02/07/2018,Air fares,Policy Division,Corporate Travel Provider,202419-101,"1,834.31",
DFID,DFID,02/07/2018,Air fares,Policy Division,Corporate Travel Provider,202419-101,"1,270.82",
DFID,DFID,02/07/2018,Air fares,Policy Division,Corporate Travel Provider,202419-101,"1,167.31",
DFID,DFID,02/07/2018,Air fares,Economic Development Division,Corporate Travel Provider,202432-101,982.20,
DFID,DFID,02/07/2018,Air fares,Economic Development Division,Corporate Travel Provider,202432-101,670.11,
DFID,DFID,02/07/2018,Hotels - Accommodation only,Economic Development Division,Corporate Travel Provider,202432-101,650.59,
DFID,DFID,02/07/2018,Air fares,Economic Development Division,Corporate Travel Provider,202432-101,697.91,
DFID,DFID,02/07/2018,Air fares,East and Central Africa,Corporate Travel Provider,202594-101,763.10,
DFID,DFID,02/07/2018,Air fares,East and Central Africa,Corporate Travel Provider,202594-101,"1,221.61",
DFID,DFID,02/07/2018,Air fares,East and Central Africa,Corporate Travel Provider,202594-101,768.61,
DFID,DFID,02/07/2018,Air fares,East and Central Africa,Corporate Travel Provider,202594-101,853.50,
DFID,DFID,02/07/2018,Air fares,East and Central Africa,Corporate Travel Provider,202594-101,"1,145.41",
DFID,DFID,02/07/2018,Air fares,East and Central Africa,Corporate Travel Provider,202594-101,715.41,
DFID,DFID,02/07/2018,Air fares,East and Central Africa,Corporate Travel Provider,202594-101,"1,321.21",
DFID,DFID,02/07/2018,Air fares,East and Central Africa,Corporate Travel Provider,202594-101,"1,145.41",
DFID,DFID,02/07/2018,Air fares,East and Central Africa,Corporate Travel Provider,202594-101,813.01,
DFID,DFID,02/07/2018,Air fares,East and Central Africa,Corporate Travel Provider,202594-101,"1,556.51",
DFID,DFID,02/07/2018,Air fares,East and Central Africa,Corporate Travel Provider,202594-101,665.40,
DFID,DFID,02/07/2018,Air fares,East and Central Africa,Corporate Travel Provider,202594-101,767.81,
DFID,DFID,02/07/2018,Air fares,East and Central Africa,Corporate Travel Provider,202594-101,987.41,
DFID,DFID,02/07/2018,Air fares,East and Central Africa,Corporate Travel Provider,202594-101,881.86,
DFID,DFID,02/07/2018,Air fares,East and Central Africa,Corporate Travel Provider,202594-101,942.56,
DFID,DFID,02/07/2018,Air fares,East and Central Africa,Corporate Travel Provider,202594-101,686.20,
DFID,DFID,02/07/2018,Air fares,East and Central Africa,Corporate Travel Provider,202594-101,"1,302.61",
DFID,DFID,02/07/2018,Hotels - Accommodation only,East and Central Africa,Corporate Travel Provider,202594-101,609.75,
DFID,DFID,02/07/2018,Air fares,East and Central Africa,Corporate Travel Provider,202594-101,"1,367.31",
DFID,DFID,02/07/2018,Air fares,East and Central Africa,Corporate Travel Provider,202594-101,"1,729.91",
DFID,DFID,02/07/2018,Air fares,International Relations Division,Corporate Travel Provider,202617-101,742.59,
DFID,DFID,02/07/2018,Hotels - Accommodation only,International Relations Division,Corporate Travel Provider,202617-101,585.98,
DFID,DFID,02/07/2018,Hotels - Accommodation only,International Relations Division,Corporate Travel Provider,202617-101,"1,169.21",
DFID,DFID,02/07/2018,Hotels - Accommodation only,Finance and Corporate Performance Division,Corporate Travel Provider,202836-101,539.97,
DFID,DFID,03/07/2018,Data Network - land lines,Business Solutions Division Level,Foreign & Commonwealth Office,203329-102,872.81,
DFID,DFID,03/07/2018,Data Network - land lines,Business Solutions Division Level,Foreign & Commonwealth Office,203329-102,"1,429.80",
DFID,DFID,19/07/2018,Data Network - land lines,Business Solutions Division Level,Foreign & Commonwealth Office,203329-102,"1,421.38",
DFID,DFID,03/07/2018,Aid Programme - Joint programme contribution,"Asia, Caribbean and Overseas Territories",Foreign & Commonwealth Office,203601-106,"1,739.51",
DFID,DFID,13/07/2018,Aid Programme - Joint programme contribution,"Asia, Caribbean and Overseas Territories",Foreign & Commonwealth Office,203601-106,"1,883.38",
DFID,DFID,13/07/2018,Aid Programme - Joint programme contribution,"Asia, Caribbean and Overseas Territories",Foreign & Commonwealth Office,203601-106,"1,883.38",
DFID,DFID,31/07/2018,Office Equipment - Purchases,Group Operations,Argos,203717-101,699.98,
DFID,DFID,31/07/2018,Office Equipment - Purchases,Group Operations,Argos,203717-101,699.98,
DFID,DFID,31/07/2018,Office Equipment - Purchases,Group Operations,Argos,203717-101,699.98,
DFID,DFID,31/07/2018,Office Equipment - Purchases,Group Operations,Argos,203717-101,699.98,
DFID,DFID,31/07/2018,Postage Costs,Group Operations,Royal Mail,203717-101,944.40,
DFID,DFID,31/07/2018,Office Equipment - Purchases,Group Operations,Argos,203717-101,699.98,
DFID,DFID,31/07/2018,Office Equipment - Purchases,Group Operations,Argos,203717-101,699.98,
DFID,DFID,31/07/2018,Office Equipment - Purchases,Group Operations,Argos,203717-101,699.98,
DFID,DFID,31/07/2018,Office Equipment - Purchases,Group Operations,Argos,203717-101,699.98,
DFID,DFID,31/07/2018,Office Equipment - Purchases,Group Operations,Argos,203717-101,699.98,
DFID,DFID,31/07/2018,Office Equipment - Purchases,Group Operations,Argos,203717-101,699.98,
DFID,DFID,02/07/2018,Air fares,Research and Evidence Division,Corporate Travel Provider,203874-101,516.06,
DFID,DFID,18/07/2018,Telephone Usage & services,"Asia, Caribbean and Overseas Territories",Foreign & Commonwealth Office,204053-101,"1,288.30",
DFID,DFID,02/07/2018,Air fares,"Asia, Caribbean and Overseas Territories",Corporate Travel Provider,204053-101,946.41,
DFID,DFID,02/07/2018,Air fares,Middle East and North Africa Division,Corporate Travel Provider,204055-101,642.10,
DFID,DFID,02/07/2018,Hotels - Accommodation only,Middle East and North Africa Division,Corporate Travel Provider,204055-101,682.16,
DFID,DFID,02/07/2018,Air fares,Middle East and North Africa Division,Corporate Travel Provider,204055-101,780.36,
DFID,DFID,02/07/2018,Air fares,Middle East and North Africa Division,Corporate Travel Provider,204055-101,538.90,
DFID,DFID,02/07/2018,Air fares,Middle East and North Africa Division,Corporate Travel Provider,204055-101,569.01,
DFID,DFID,02/07/2018,Air fares,Middle East and North Africa Division,Corporate Travel Provider,204055-101,541.81,
DFID,DFID,02/07/2018,Hotels - Accommodation only,Middle East and North Africa Division,Corporate Travel Provider,204055-101,774.00,
DFID,DFID,02/07/2018,Hotels - Accommodation only,Middle East and North Africa Division,Corporate Travel Provider,204055-101,514.28,
DFID,DFID,03/07/2018,Air fares,Middle East and North Africa Division,Foreign & Commonwealth Office,204055-101,617.84,
DFID,DFID,02/07/2018,Air fares,Middle East and North Africa Division,Corporate Travel Provider,204055-101,"1,195.14",
DFID,DFID,02/07/2018,Hotels - Accommodation only,Middle East and North Africa Division,Corporate Travel Provider,204055-101,682.18,
DFID,DFID,02/07/2018,Hotels - Accommodation only,East and Central Africa,Corporate Travel Provider,204323-107,"1,005.00",
DFID,DFID,02/07/2018,Hotels - Accommodation only,East and Central Africa,Corporate Travel Provider,204369-101,612.04,
DFID,DFID,02/07/2018,Air fares,East and Central Africa,Corporate Travel Provider,204369-101,757.01,
DFID,DFID,02/07/2018,Air fares,Policy Division,Corporate Travel Provider,204452-101,963.01,
DFID,DFID,02/07/2018,Hotels - Accommodation only,Policy Division,Corporate Travel Provider,204452-101,591.05,
DFID,DFID,02/07/2018,Hotels - Accommodation only,"Asia, Caribbean and Overseas Territories",Corporate Travel Provider,204604-107,749.70,
DFID,DFID,02/07/2018,Air fares,Economic Development Division,Corporate Travel Provider,204686-101,"1,344.41",
DFID,DFID,02/07/2018,Air fares,Country Programmes Cabinet,Corporate Travel Provider,204832-101,"2,030.01",
DFID,DFID,02/07/2018,Hotels - Accommodation only,Country Programmes Cabinet,Corporate Travel Provider,204832-101,687.60,
DFID,DFID,02/07/2018,Air fares,Country Programmes Cabinet,Corporate Travel Provider,204833-102,556.30,
DFID,DFID,02/07/2018,Air fares,Middle East and North Africa Division,Corporate Travel Provider,204844-101,559.91,
DFID,DFID,02/07/2018,Air fares,Non-Departmental Public Body,Corporate Travel Provider,204873-102,"1,870.79",
DFID,DFID,02/07/2018,Air fares,Non-Departmental Public Body,Corporate Travel Provider,204873-103,654.19,
DFID,DFID,02/07/2018,Air fares,West and Southern Africa,Corporate Travel Provider,204918-101,958.30,
DFID,DFID,02/07/2018,Hotels - Accommodation only,Policy Division,Corporate Travel Provider,204963-106,541.45,
DFID,DFID,02/07/2018,Hotels - Accommodation only,Policy Division,Corporate Travel Provider,204963-106,607.08,
DFID,DFID,02/07/2018,Hotels - Accommodation only,Policy Division,Corporate Travel Provider,204963-106,607.08,
DFID,DFID,02/07/2018,Air fares,Policy Division,Corporate Travel Provider,204963-106,"1,654.21",
DFID,DFID,02/07/2018,Air fares,Policy Division,Corporate Travel Provider,204963-106,"1,654.21",
DFID,DFID,02/07/2018,Air fares,Policy Division,Corporate Travel Provider,204963-106,"1,654.21",
DFID,DFID,02/07/2018,Air fares,Middle East and North Africa Division,Corporate Travel Provider,204981-101,651.56,
DFID,DFID,02/07/2018,Air fares,Middle East and North Africa Division,Corporate Travel Provider,204981-101,630.50,
DFID,DFID,02/07/2018,Air fares,Middle East and North Africa Division,Corporate Travel Provider,204981-101,711.59,
DFID,DFID,02/07/2018,Air fares,Middle East and North Africa Division,Corporate Travel Provider,204981-101,794.12,
DFID,DFID,02/07/2018,Air fares,Middle East and North Africa Division,Corporate Travel Provider,204981-101,680.03,
DFID,DFID,02/07/2018,Air fares,Middle East and North Africa Division,Corporate Travel Provider,204981-101,694.51,
DFID,DFID,02/07/2018,Air fares,Middle East and North Africa Division,Corporate Travel Provider,204983-101,568.51,
DFID,DFID,02/07/2018,Hotels - Accommodation only,PRH Cabinet,Corporate Travel Provider,205044-101,510.15,
DFID,DFID,02/07/2018,Air fares,PRH Cabinet,Corporate Travel Provider,205044-101,619.71,
DFID,DFID,02/07/2018,Air fares,PRH Cabinet,Corporate Travel Provider,205044-101,"1,279.60",
DFID,DFID,02/07/2018,Hotels - Accommodation only,PRH Cabinet,Corporate Travel Provider,205044-101,510.15,
DFID,DFID,03/07/2018,Project delivery costs – supplier services,East and Central Africa,Foreign & Commonwealth Office,205072-103,935.49,
DFID,DFID,13/07/2018,Secure staff accommodation,"Asia, Caribbean and Overseas Territories",Foreign & Commonwealth Office,205138-103,"3,296.76",
DFID,DFID,02/07/2018,Air fares,Policy Division,Corporate Travel Provider,205248-102,"1,090.22",
DFID,DFID,02/07/2018,Hotels - Accommodation only,"Humanitarian, Security and Migration Division",Corporate Travel Provider,205279-102,"1,469.14",
DFID,DFID,02/07/2018,Air fares,"Humanitarian, Security and Migration Division",Corporate Travel Provider,205279-102,872.31,
DFID,DFID,02/07/2018,Air fares,"Humanitarian, Security and Migration Division",Corporate Travel Provider,205279-102,"1,010.12",
DFID,DFID,02/07/2018,Air fares,"Humanitarian, Security and Migration Division",Corporate Travel Provider,205280-102,858.75,
DFID,DFID,02/07/2018,Air fares,"Humanitarian, Security and Migration Division",Corporate Travel Provider,205280-102,972.20,
DFID,DFID,13/07/2018,Secure staff accommodation,"Asia, Caribbean and Overseas Territories",Foreign & Commonwealth Office,300003-101,"3,734.53",
DFID,DFID,02/07/2018,Air fares,"Asia, Caribbean and Overseas Territories",Corporate Travel Provider,300003-106,636.11,
DFID,DFID,02/07/2018,Air fares,Policy Division,Corporate Travel Provider,300032-101,598.71,
DFID,DFID,02/07/2018,Hotels - Accommodation only,Policy Division,Corporate Travel Provider,300032-101,719.55,
DFID,DFID,02/07/2018,Air fares,Policy Division,Corporate Travel Provider,300032-101,965.71,
DFID,DFID,02/07/2018,Hotels - Accommodation only,Policy Division,Corporate Travel Provider,300032-101,719.55,
DFID,DFID,02/07/2018,Air fares,Policy Division,Corporate Travel Provider,300032-101,"1,208.00",
DFID,DFID,02/07/2018,Hotels - Accommodation only,Policy Division,Corporate Travel Provider,300033-101,533.85,
DFID,DFID,02/07/2018,Air fares,Policy Division,Corporate Travel Provider,300033-101,501.60,
DFID,DFID,02/07/2018,Air fares,Policy Division,Corporate Travel Provider,300033-101,"1,278.92",
DFID,DFID,02/07/2018,Air fares,Policy Division,Corporate Travel Provider,300033-101,643.96,
DFID,DFID,02/07/2018,Air fares,Policy Division,Corporate Travel Provider,300033-101,784.40,
DFID,DFID,02/07/2018,Air fares,Middle East and North Africa Division,Corporate Travel Provider,300078-101,"1,027.66",
DFID,DFID,02/07/2018,Air fares,Middle East and North Africa Division,Corporate Travel Provider,300078-101,572.61,
DFID,DFID,02/07/2018,Air fares,Middle East and North Africa Division,Corporate Travel Provider,300078-101,860.06,
DFID,DFID,02/07/2018,Air fares,Middle East and North Africa Division,Corporate Travel Provider,300078-101,742.44,
DFID,DFID,02/07/2018,Air fares,Middle East and North Africa Division,Corporate Travel Provider,300078-101,597.31,
DFID,DFID,03/07/2018,Telephone Usage & services,Middle East and North Africa Division,Foreign & Commonwealth Office,300078-101,"2,930.81",
DFID,DFID,02/07/2018,Air fares,Middle East and North Africa Division,Corporate Travel Provider,300078-102,542.01,
DFID,DFID,02/07/2018,Hotels - Accommodation only,BSD Service Centre,Corporate Travel Provider,300328-101,782.00,
DFID,DFID,02/07/2018,Hotels - Accommodation only,BSD Service Centre,Corporate Travel Provider,300328-101,625.00,
DFID,DFID,02/07/2018,Hotels - Accommodation only,BSD Service Centre,Corporate Travel Provider,300328-101,572.00,
DFID,DFID,02/07/2018,Hotels - Accommodation only,BSD Service Centre,Corporate Travel Provider,300328-101,745.00,
DFID,DFID,02/07/2018,Air fares,Policy Division,Corporate Travel Provider,300530-101,"1,174.41",
DFID,DFID,02/07/2018,Air fares,Policy Division,Corporate Travel Provider,300530-101,"1,174.41",
DFID,DFID,02/07/2018,Air fares,International Relations Division,Corporate Travel Provider,300628-101,"1,434.31",
DFID,DFID,02/07/2018,Air fares,International Relations Division,Corporate Travel Provider,300628-101,"1,394.41",
DFID,DFID,02/07/2018,Air fares,International Relations Division,Corporate Travel Provider,300628-101,763.76,
DFID,DFID,03/07/2018,Air fares,International Relations Division,Foreign & Commonwealth Office,300629-101,811.33,
DFID,DFID,02/07/2018,Air fares,"Humanitarian, Security and Migration Division",Corporate Travel Provider,300646-101,"1,329.61",
DFID,DFID,02/07/2018,Air fares,"Humanitarian, Security and Migration Division",Corporate Travel Provider,300646-101,"1,149.68",
DFID,DFID,02/07/2018,Air fares,"Humanitarian, Security and Migration Division",Corporate Travel Provider,300646-101,780.91,
DFID,DFID,02/07/2018,Air fares,Economic Development Division,Corporate Travel Provider,300663-101,"1,221.31",
DFID,DFID,19/07/2018,Project delivery costs – supplier services,"Asia, Caribbean and Overseas Territories",ADAM SMITH INTERNATIONAL  LTD,202328-102,"309,932.34",
DFID,DFID,12/07/2018,Project delivery costs – supplier services,"Asia, Caribbean and Overseas Territories",ADAM SMITH INTERNATIONAL  LTD,202328-102,"359,313.60",
DFID,DFID,17/07/2018,Project delivery costs – supplier services,West and Southern Africa,ADAM SMITH INTERNATIONAL  LTD,202584-106,"251,387.96",
DFID,DFID,25/07/2018,Project delivery costs – supplier services,East and Central Africa,ADAM SMITH INTERNATIONAL  LTD,203153-103,"170,156.45",
DFID,DFID,10/07/2018,Project delivery costs – supplier services,West and Southern Africa,ADAM SMITH INTERNATIONAL  LTD,203161-103,"1,171,982.02",
DFID,DFID,31/07/2018,Project delivery costs – supplier services,West and Southern Africa,ADAM SMITH INTERNATIONAL  LTD,203161-103,"1,057,383.44",
DFID,DFID,19/07/2018,Project delivery costs – supplier services,West and Southern Africa,ADAM SMITH INTERNATIONAL  LTD,203674-102,"158,185.81",
DFID,DFID,19/07/2018,Project delivery costs – supplier services,West and Southern Africa,ADAM SMITH INTERNATIONAL  LTD,203674-103,"1,100,000.00",
DFID,DFID,18/07/2018,Project delivery costs – supplier services,East and Central Africa,ADAM SMITH INTERNATIONAL  LTD,204456-105,"63,476.62",
DFID,DFID,10/07/2018,Project delivery costs – supplier services,West and Southern Africa,ADAM SMITH INTERNATIONAL  LTD,204659-104,"62,715.77",
DFID,DFID,10/07/2018,Project delivery costs – supplier services,West and Southern Africa,ADAM SMITH INTERNATIONAL  LTD,204659-104,"84,547.19",
DFID,DFID,10/07/2018,Project delivery costs – supplier services,West and Southern Africa,ADAM SMITH INTERNATIONAL  LTD,204659-104,"149,099.42",
DFID,DFID,10/07/2018,Project delivery costs – supplier services,West and Southern Africa,ADAM SMITH INTERNATIONAL  LTD,204659-104,"184,988.42",
DFID,DFID,10/07/2018,Project delivery costs – supplier services,West and Southern Africa,ADAM SMITH INTERNATIONAL  LTD,204659-104,"276,113.40",
DFID,DFID,19/07/2018,Aid Programme - Accountable Grant Payments,West and Southern Africa,ACTION AGAINST HUNGER UK,300432-107,"1,182,756.00",
DFID,DFID,04/07/2018,Computer software maintenance,Business Solutions Division Level,Unit 4,200002-107,"74,319.90",Support and Maintenance costs for DFIDs Finance and e-procument systems for the period July 2018 - September 2018.
DFID,DFID,10/07/2018,Telephone Usage & services,"Asia, Caribbean and Overseas Territories",Supplier Name withheld,100025-101,678.48,
DFID,DFID,10/07/2018,Aid Programme - Voluntary contributions,Economic Development Division,BANK OF ENGLAND,300452-107,"162,634.34",
DFID,DFID,24/07/2018,Aid Programme - Accountable Grant Payments,East and Central Africa,BBC Media Action,204809-105,"146,534.00",
DFID,DFID,23/07/2018,Aid Programme - Core contributions,East and Central Africa,THE SPRINGFIELD CENTRE,204365-103,"15,853.58",
DFID,DFID,09/07/2018,Data Network - land lines,Business Solutions Division Level,BT BACS PAYMENTS,200002-130,"1,681.18",
DFID,DFID,19/07/2018,Project delivery costs – supplier services,West and Southern Africa,BRITISH COUNCIL.,203816-102,"41,916.86",
DFID,DFID,19/07/2018,Project delivery costs – supplier services,West and Southern Africa,BRITISH COUNCIL.,203816-103,"54,367.88",
DFID,DFID,25/07/2018,Project delivery costs – supplier services,West and Southern Africa,BRITISH COUNCIL.,203851-102,"42,187.64",
DFID,DFID,04/07/2018,Aid Programme - Accountable Grant Payments,West and Southern Africa,CHRISTIAN AID,201196-112,"44,462.60",
DFID,DFID,17/07/2018,Project delivery costs – supplier services,East and Central Africa,Crown Agents.,101630-101,"15,576.00",
DFID,DFID,18/07/2018,Project delivery costs – supplier services,West and Southern Africa,Crown Agents.,202416-120,"3,975.63",
DFID,DFID,23/07/2018,Project delivery costs – supplier services,"Asia, Caribbean and Overseas Territories",Crown Agents.,204196-103,"596,884.76",
DFID,DFID,24/07/2018,Project delivery costs – supplier services,East and Central Africa,Crown Agents.,204439-103,"3,935.80",
DFID,DFID,23/07/2018,Aid Programme - Humanitarian Material Relief Assistance and Services,Middle East and North Africa Division,Crown Agents.,204516-102,"9,772.38",
DFID,DFID,18/07/2018,Aid Programme - Humanitarian Material Relief Assistance and Services,Middle East and North Africa Division,Crown Agents.,204516-102,"11,172.00",
DFID,DFID,12/07/2018,Project delivery costs – supplier services,"Asia, Caribbean and Overseas Territories",Crown Agents.,204612-101,"30,445.29",
DFID,DFID,03/07/2018,Project delivery costs – supplier services,East and Central Africa,Crown Agents.,300363-107,"10,556.40",
DFID,DFID,20/07/2018,Project delivery costs – supplier services,Middle East and North Africa Division,Crown Agents.,300417-101,"1,617.88",
DFID,DFID,20/07/2018,Project delivery costs – supplier services,Middle East and North Africa Division,Crown Agents.,300417-101,"5,526.42",
DFID,DFID,19/07/2018,Aid Programme - Humanitarian Material Relief Assistance and Services,"Humanitarian, Security and Migration Division",Crown Agents.,300491-103,"4,489.92",
DFID,DFID,23/07/2018,Aid Programme - Humanitarian Material Relief Assistance and Services,West and Southern Africa,Crown Agents.,300492-101,"6,225.22",
DFID,DFID,02/07/2018,Computer hardware maintenance,Business Solutions Division Level,COMPUTACENTER (UK) LTD,200002-213,"11,735.75",
DFID,DFID,03/07/2018,Other ICT,Business Solutions Division Level,COMPUTACENTER (UK) LTD,200002-213,"15,423.58",
DFID,DFID,03/07/2018,other information and communication technologies,Business Solutions Division Level,COMPUTACENTER (UK) LTD,200002-213,"5,867.88",
DFID,DFID,27/07/2018,Aid Programme - Voluntary contributions,International Relations Division,COMMONWEALTH LOCAL GOVERNMENT FORUM,204042-101,"481,137.00",
DFID,DFID,18/07/2018,Aid Programme - Accountable Grant Payments,West and Southern Africa,CAMFED,203292-103,"675,679.00",
DFID,DFID,17/07/2018,Aid Programme - Accountable Grant Payments,Research and Evidence Division,CENTRE FOR ECONOMIC POLICY RESEARCH,202835-104,"128,187.88",
DFID,DFID,20/07/2018,"Conferences, Seminars & Meeting/Event Resource","Humanitarian, Security and Migration Division",CHURCH HOUSE CONFERENCE CENTRE,100049-103,"7,693.20",
DFID,DFID,06/07/2018,Aid Programme - Partnership Programme Arrangements,Policy Division,COMIC RELIEF,200645-101,"1,908,658.00",
DFID,DFID,06/07/2018,Aid Programme - Partnership Programme Arrangements,Policy Division,COMIC RELIEF,200645-101,"1,129,294.00",
DFID,DFID,09/07/2018,"Conferences, Seminars & Meeting/Event Resource",Research and Evidence Division,UNIVERSITY OF CAMBRIDGE,202392-101,"1,469.08",
DFID,DFID,05/07/2018,Training Providers/Facilitation Services,Finance and Corporate Performance Division,CABINET OFFICE,100201-101,"5,100.00",
DFID,DFID,13/07/2018,Legal costs,Economic Development Division,CABINET OFFICE,202259-101,"1,059.00",
DFID,DFID,30/07/2018,Training Providers/Facilitation Services,Business Solutions Division Level,Capita  Business Services,200001-101,"1,255.50",
DFID,DFID,23/07/2018,Project delivery costs – supplier services,"Asia, Caribbean and Overseas Territories",CONCERN WORLDWIDE.,203264-102,"420,100.78",
DFID,DFID,12/07/2018,Project delivery costs – supplier services,"Asia, Caribbean and Overseas Territories",CONCERN WORLDWIDE.,203264-102,"345,010.09",
DFID,DFID,12/07/2018,Aid Programme - Accountable Grant Payments,West and Southern Africa,CONCERN WORLDWIDE.,203445-104,"240,055.00",
DFID,DFID,31/07/2018,Project delivery costs – supplier services,"Asia, Caribbean and Overseas Territories",Nathan Associates London Ltd,202180-102,"319,178.92",
DFID,DFID,30/07/2018,Aid Programme - Accountable Grant Payments,Economic Development Division,ETHICAL TRADING INITIATIVE,203448-101,"461,562.00",
DFID,DFID,18/07/2018,Project delivery costs – supplier services,West and Southern Africa,COFFEY INTERNATIONAL DEVELOPMENT LTD,202455-104,"16,403.23",
DFID,DFID,18/07/2018,Project delivery costs – supplier services,West and Southern Africa,COFFEY INTERNATIONAL DEVELOPMENT LTD,202455-104,"13,938.29",
DFID,DFID,23/07/2018,Project delivery costs – supplier services,East and Central Africa,COFFEY INTERNATIONAL DEVELOPMENT LTD,202509-102,"909,325.73",
DFID,DFID,26/07/2018,Project delivery costs – supplier services,West and Southern Africa,COFFEY INTERNATIONAL DEVELOPMENT LTD,203429-105,"17,449.00",
DFID,DFID,26/07/2018,Project delivery costs – supplier services,West and Southern Africa,COFFEY INTERNATIONAL DEVELOPMENT LTD,203429-105,"22,345.00",
DFID,DFID,26/07/2018,Project delivery costs – supplier services,West and Southern Africa,COFFEY INTERNATIONAL DEVELOPMENT LTD,203429-105,"86,209.00",
DFID,DFID,31/07/2018,Project delivery costs – supplier services,West and Southern Africa,COFFEY INTERNATIONAL DEVELOPMENT LTD,203881-101,"64,079.60",
DFID,DFID,03/07/2018,Project delivery costs – supplier services,"Asia, Caribbean and Overseas Territories",Supplier Name withheld,204158-104,"13,187.00",
DFID,DFID,24/07/2018,Project delivery costs – supplier services,West and Southern Africa,COFFEY INTERNATIONAL DEVELOPMENT LTD,204242-104,"52,967.00",
DFID,DFID,13/07/2018,Project delivery costs – supplier services,"Asia, Caribbean and Overseas Territories",COFFEY INTERNATIONAL DEVELOPMENT LTD,204952-101,"752,123.97",
DFID,DFID,13/07/2018,Professional member subscriptions,Human Resources,Business Disability Forum,100269-126,"5,220.00",
DFID,DFID,06/07/2018,Aid Programme - Strategic Grant Arrangement payments,Research and Evidence Division,ECONOMIC AND SOCIAL RESEARCH COUNCIL,203545-104,"4,962.41",
DFID,DFID,06/07/2018,Aid Programme - Strategic Grant Arrangement payments,Research and Evidence Division,ECONOMIC AND SOCIAL RESEARCH COUNCIL,203545-104,"879,548.80",
DFID,DFID,26/07/2018,Fund monies to be managed and dispersed by the supplier,Economic Development Division,AECOM LIMITED,204715-103,"119,046.92",
DFID,DFID,26/07/2018,Fund monies to be managed and dispersed by the supplier,Economic Development Division,AECOM LIMITED,204715-103,"94,838.90",
DFID,DFID,17/07/2018,Aid Programme - Accountable Grant Payments,"Asia, Caribbean and Overseas Territories",FORUM FOR THE FUTURE,204059-107,"3,994.05",
DFID,DFID,31/07/2018,Project delivery costs – supplier services,East and Central Africa,PALLADIUM,101630-101,"17,061.19",
DFID,DFID,20/07/2018,Project delivery costs – supplier services,West and Southern Africa,PALLADIUM,101638-101,"1,519.69",
DFID,DFID,20/07/2018,Project delivery costs – supplier services,Policy Division,PALLADIUM,201724-155,"44,576.60",
DFID,DFID,02/07/2018,Project delivery costs – supplier services,Policy Division,PALLADIUM,201724-155,"42,742.21",
DFID,DFID,24/07/2018,Project delivery costs – supplier services,"Asia, Caribbean and Overseas Territories",PALLADIUM,201851-101,"206,385.76",
DFID,DFID,02/07/2018,Project delivery costs – supplier services,West and Southern Africa,PALLADIUM,202098-101,"143,862.57",
DFID,DFID,23/07/2018,Project delivery costs – supplier services,West and Southern Africa,PALLADIUM,202416-120,"20,896.31",
DFID,DFID,25/07/2018,Project delivery costs – supplier services,East and Central Africa,PALLADIUM,202596-108,"168,800.38",
DFID,DFID,04/07/2018,Project delivery costs – supplier services,East and Central Africa,PALLADIUM,202596-108,"16,960.36",
DFID,DFID,25/07/2018,Project delivery costs – supplier services,East and Central Africa,PALLADIUM,202900-108,"1,440.89",
DFID,DFID,31/07/2018,Project delivery costs – supplier services,"Asia, Caribbean and Overseas Territories",PALLADIUM,203274-101,"17,287.33",
DFID,DFID,25/07/2018,Project delivery costs – supplier services,"Asia, Caribbean and Overseas Territories",PALLADIUM,203427-105,"86,618.11",
DFID,DFID,25/07/2018,Project delivery costs – supplier services,West and Southern Africa,PALLADIUM,203429-103,"200,208.45",
DFID,DFID,27/07/2018,Project delivery costs – supplier services,West and Southern Africa,PALLADIUM,203429-103,"23,785.60",
DFID,DFID,25/07/2018,Project delivery costs – supplier services,West and Southern Africa,PALLADIUM,203429-103,"14,000.00",
DFID,DFID,10/07/2018,Project delivery costs – supplier services,West and Southern Africa,PALLADIUM,203429-103,"16,000.00",
DFID,DFID,10/07/2018,Project delivery costs – supplier services,West and Southern Africa,PALLADIUM,203429-103,"16,000.00",
DFID,DFID,10/07/2018,Project delivery costs – supplier services,West and Southern Africa,PALLADIUM,203429-103,"168,714.82",
DFID,DFID,10/07/2018,Project delivery costs – supplier services,West and Southern Africa,PALLADIUM,203429-103,"5,000.00",
DFID,DFID,24/07/2018,Project delivery costs – supplier services,East and Central Africa,PALLADIUM,204012-106,"327,461.89",
DFID,DFID,25/07/2018,Project delivery costs – supplier services,"Asia, Caribbean and Overseas Territories",PALLADIUM,204196-105,"16,258.84",
DFID,DFID,26/07/2018,Project delivery costs – supplier services,East and Central Africa,PALLADIUM,204439-103,"20,605.88",
DFID,DFID,11/07/2018,Project delivery costs – supplier services,East and Central Africa,PALLADIUM,204439-103,"15,278.98",
DFID,DFID,13/07/2018,Aid Programme - Humanitarian Material Relief Assistance and Services,Middle East and North Africa Division,PALLADIUM,204516-102,"29,305.54",
DFID,DFID,13/07/2018,Aid Programme - Humanitarian Material Relief Assistance and Services,Middle East and North Africa Division,PALLADIUM,204516-102,"45,919.12",
DFID,DFID,12/07/2018,Aid Programme - Humanitarian Material Relief Assistance and Services,"Asia, Caribbean and Overseas Territories",PALLADIUM,204603-101,"2,316.59",
DFID,DFID,18/07/2018,Project delivery costs – supplier services,"Asia, Caribbean and Overseas Territories",PALLADIUM,204613-101,"140,867.07",
DFID,DFID,18/07/2018,Project delivery costs – supplier services,East and Central Africa,PALLADIUM,204809-102,"225,549.65",
DFID,DFID,03/07/2018,Project delivery costs – supplier services,West and Southern Africa,PALLADIUM,204822-102,"489,185.90",
DFID,DFID,10/07/2018,Aid Programme - Humanitarian Material Relief Assistance and Services,Middle East and North Africa Division,PALLADIUM,205094-104,"6,812.90",
DFID,DFID,20/07/2018,Project delivery costs – supplier services,"Asia, Caribbean and Overseas Territories",PALLADIUM,205138-103,"19,072.45",
DFID,DFID,20/07/2018,Project delivery costs – supplier services,"Humanitarian, Security and Migration Division",PALLADIUM,205176-103,"12,790.99",
DFID,DFID,02/07/2018,Project delivery costs – supplier services,"Humanitarian, Security and Migration Division",PALLADIUM,205176-103,"49,254.72",
DFID,DFID,20/07/2018,Project delivery costs – supplier services,"Humanitarian, Security and Migration Division",PALLADIUM,205176-104,"22,348.75",
DFID,DFID,23/07/2018,Project delivery costs – supplier services,"Asia, Caribbean and Overseas Territories",PALLADIUM,205268-110,"23,773.44",
DFID,DFID,23/07/2018,Project delivery costs – supplier services,"Asia, Caribbean and Overseas Territories",PALLADIUM,205268-110,655.00,
DFID,DFID,04/07/2018,Project delivery costs – supplier services,"Asia, Caribbean and Overseas Territories",PALLADIUM,205268-110,512.33,
DFID,DFID,30/07/2018,Project delivery costs – supplier services,East and Central Africa,PALLADIUM,205286-105,"13,043.01",
DFID,DFID,30/07/2018,Project delivery costs – supplier services,Middle East and North Africa Division,PALLADIUM,300060-101,"133,023.88",
DFID,DFID,27/07/2018,Project delivery costs – supplier services,Middle East and North Africa Division,PALLADIUM,300078-101,"1,346.77",
DFID,DFID,24/07/2018,Project delivery costs – supplier services,"Humanitarian, Security and Migration Division",PALLADIUM,300339-108,698.40,
DFID,DFID,06/07/2018,Project delivery costs – supplier services,"Humanitarian, Security and Migration Division",PALLADIUM,300339-108,"8,493.77",
DFID,DFID,12/07/2018,Project delivery costs – supplier services,"Humanitarian, Security and Migration Division",PALLADIUM,300339-108,"12,742.45",
DFID,DFID,19/07/2018,Project delivery costs – supplier services,East and Central Africa,PALLADIUM,300363-107,872.88,
DFID,DFID,24/07/2018,Project delivery costs – supplier services,East and Central Africa,PALLADIUM,300363-107,"11,696.24",
DFID,DFID,20/07/2018,Project delivery costs – supplier services,Middle East and North Africa Division,PALLADIUM,300417-101,"219,175.42",
DFID,DFID,23/07/2018,Project delivery costs – supplier services,West and Southern Africa,PALLADIUM,300432-105,"8,366.10",
DFID,DFID,06/07/2018,Project delivery costs – supplier services,West and Southern Africa,PALLADIUM,300432-105,"13,909.25",
DFID,DFID,12/07/2018,Project delivery costs – supplier services,"Humanitarian, Security and Migration Division",PALLADIUM,300461-105,"69,438.91",
DFID,DFID,09/07/2018,Project delivery costs – supplier services,"Humanitarian, Security and Migration Division",PALLADIUM,300461-105,"28,025.39",
DFID,DFID,09/07/2018,Project delivery costs – supplier services,"Humanitarian, Security and Migration Division",PALLADIUM,300461-105,"12,493.38",
DFID,DFID,18/07/2018,Project delivery costs – supplier services,"Humanitarian, Security and Migration Division",PALLADIUM,300491-101,"26,433.94",
DFID,DFID,04/07/2018,Project delivery costs – supplier services,"Humanitarian, Security and Migration Division",PALLADIUM,300491-103,"3,100.23",
DFID,DFID,31/07/2018,Project delivery costs – supplier services,"Asia, Caribbean and Overseas Territories",PALLADIUM,300561-105,"19,791.24",
DFID,DFID,12/07/2018,Aid Programme - Accountable Grant Payments,Research and Evidence Division,GALVmed,300504-101,"1,429,478.00",
DFID,DFID,09/07/2018,Aid Programme - Accountable Grant Payments,Research and Evidence Division,Energy 4 Impact,204867-105,"339,000.00",
DFID,DFID,05/07/2018,Aid Programme - Accountable Grant Payments,Middle East and North Africa Division,Supplier Name withheld,300087-101,"126,954.00",
DFID,DFID,25/07/2018,Aid Programme - Accountable Grant Payments,"Asia, Caribbean and Overseas Territories",Supplier Name withheld,203748-101,"448,460.25",
DFID,DFID,04/07/2018,Project delivery costs – supplier services,West and Southern Africa,HEALTH PARTNERS INTERNATIONAL,202694-101,"71,250.82",
DFID,DFID,27/07/2018,Project delivery costs – supplier services,West and Southern Africa,HEALTH PARTNERS INTERNATIONAL,202694-101,"38,961.56",
DFID,DFID,18/07/2018,Training Providers/Facilitation Services,Middle East and North Africa Division,HANDICAP INTERNATIONAL UK,100146-101,800.00,
DFID,DFID,31/07/2018,Aid Programme - Accountable Grant Payments,Research and Evidence Division,HANDICAP INTERNATIONAL UK,203706-115,"56,125.00",
DFID,DFID,10/07/2018,Contract & Agency Staff,Finance and Corporate Performance Division,Hays Specialist Recruitment Ltd,100201-101,937.01,
DFID,DFID,26/07/2018,Contract & Agency Staff,Finance and Corporate Performance Division,Hays Specialist Recruitment Ltd,100201-101,937.01,
DFID,DFID,25/07/2018,Project delivery costs – supplier services,Business Solutions Division Level,Hays Specialist Recruitment Ltd,200001-101,"2,362.50",
DFID,DFID,30/07/2018,Contract & Agency Staff,Business Solutions Division Level,Hays Specialist Recruitment Ltd,200002-240,"1,512.78",
DFID,DFID,19/07/2018,Contract & Agency Staff,Business Solutions Division Level,Hays Specialist Recruitment Ltd,200002-240,"1,512.78",
DFID,DFID,10/07/2018,Contract & Agency Staff,Business Solutions Division Level,Hays Specialist Recruitment Ltd,200002-240,"1,512.78",
DFID,DFID,09/07/2018,Contract & Agency Staff,Business Solutions Division Level,Hays Specialist Recruitment Ltd,200002-240,907.67,
DFID,DFID,11/07/2018,Project delivery costs – supplier services,Business Solutions Division Level,Hays Specialist Recruitment Ltd,200005-144,"2,234.40",
DFID,DFID,27/07/2018,Project delivery costs – supplier services,Business Solutions Division Level,Hays Specialist Recruitment Ltd,200005-144,"2,234.40",
DFID,DFID,31/07/2018,Project delivery costs – supplier services,Business Solutions Division Level,Hays Specialist Recruitment Ltd,200005-144,"2,793.00",
DFID,DFID,11/07/2018,Project delivery costs – supplier services,Business Solutions Division Level,Hays Specialist Recruitment Ltd,200005-144,"2,793.00",
DFID,DFID,19/07/2018,Project delivery costs – supplier services,Business Solutions Division Level,Hays Specialist Recruitment Ltd,200005-144,"1,675.80",
DFID,DFID,18/07/2018,Project delivery costs – supplier services,Business Solutions Division Level,Hays Specialist Recruitment Ltd,200005-144,"2,793.00",
DFID,DFID,05/07/2018,Contract & Agency Staff,Finance and Corporate Performance Division,HUDSON GLOBAL RESOURCES LTD,100201-101,"6,554.45",
DFID,DFID,30/07/2018,Contract & Agency Staff,Finance and Corporate Performance Division,HUDSON GLOBAL RESOURCES LTD,100201-101,"5,414.54",
DFID,DFID,12/07/2018,Project delivery costs – supplier services,Economic Development Division,ITAD LTD,203444-110,"117,547.20",
DFID,DFID,12/07/2018,Project delivery costs – supplier services,Economic Development Division,ITAD LTD,203444-110,"120,806.04",
DFID,DFID,05/07/2018,Project delivery costs – supplier services,Economic Development Division,ITAD LTD,204123-102,"47,992.80",
DFID,DFID,03/07/2018,Project delivery costs – supplier services,Research and Evidence Division,THE INSTITUTE OF DEVELOPMENT STUDIE,205121-101,"106,212.12",
DFID,DFID,03/07/2018,Project delivery costs – supplier services,Research and Evidence Division,THE INSTITUTE OF DEVELOPMENT STUDIE,205121-101,"30,956.69",
DFID,DFID,23/07/2018,Project delivery costs – supplier services,Research and Evidence Division,THE INSTITUTE OF DEVELOPMENT STUDIE,205121-101,"72,209.39",
DFID,DFID,23/07/2018,Project delivery costs – supplier services,Research and Evidence Division,THE INSTITUTE OF DEVELOPMENT STUDIE,205121-101,"13,966.07",
DFID,DFID,13/07/2018,Project delivery costs – supplier services,Policy Division,INTERN DEVEL EDUC ASSOC OF SCOTLAND,201469-105,"103,238.00",
DFID,DFID,03/07/2018,Aid Programme - Trust Funds contributions,"Asia, Caribbean and Overseas Territories",IBRD HSBC T,202495-104,"570,945.00",
DFID,DFID,06/07/2018,Aid Programme - Trust Funds contributions,East and Central Africa,IBRD HSBC T,202596-112,"700,000.00",
DFID,DFID,25/07/2018,Aid Programme - Trust Funds contributions,Research and Evidence Division,IBRD HSBC T,203050-103,"1,279,563.00",
DFID,DFID,05/07/2018,Aid Programme - Trust Funds contributions,East and Central Africa,IBRD HSBC T,204788-107,"500,000.00",
DFID,DFID,05/07/2018,Aid Programme - Pooled/Basket funding,East and Central Africa,IBRD HSBC T,204788-109,"300,000.00",
DFID,DFID,10/07/2018,Aid Programme - Trust Funds contributions,"Asia, Caribbean and Overseas Territories",IBRD HSBC T,204951-101,"1,500,000.00",
DFID,DFID,26/07/2018,Aid Programme - Voluntary contributions,"Asia, Caribbean and Overseas Territories",IBRD HSBC T,204977-102,"3,000,000.00",
DFID,DFID,02/07/2018,Aid Programme - Trust Funds contributions,Economic Development Division,IBRD HSBC T,205260-101,"2,500,000.00",
DFID,DFID,24/07/2018,Aid Programme - Trust Funds contributions,Policy Division,IBRD HSBC T,300486-101,"7,000,000.00",
DFID,DFID,18/07/2018,Aid Programme - Trust Funds contributions,"Asia, Caribbean and Overseas Territories",IBRD HSBC T,300494-101,"245,000.00",
DFID,DFID,20/07/2018,Project delivery costs – supplier services,"Asia, Caribbean and Overseas Territories",IOD PARC,204984-106,"83,020.10",
DFID,DFID,06/07/2018,Project delivery costs – supplier services,Research and Evidence Division,IOD PARC,205109-101,"73,942.93",
DFID,DFID,20/07/2018,Project delivery costs – supplier services,"Asia, Caribbean and Overseas Territories",IOD PARC,300003-102,"83,020.10",
DFID,DFID,13/07/2018,Aid Programme - Trust Funds contributions,East and Central Africa,IBRD (HSBC)  C/O THE WORLD BANK,204313-102,"5,000,000.00",
DFID,DFID,26/07/2018,Aid Programme - Joint programme contribution,"Asia, Caribbean and Overseas Territories",INTERNATIONAL TRADE CENTRE,202762-101,"385,174.00",
DFID,DFID,20/07/2018,Aid Programme - Accountable Grant Payments,Economic Development Division,THE INSTITUTE FOR FISCAL STUDIES,205083-101,"1,000.00",
DFID,DFID,31/07/2018,Training Providers/Facilitation Services,Research and Evidence Division,KELLOGG BROWN & ROOT LIMITED,100039-111,500.83,
DFID,DFID,03/07/2018,Hostile Environment Training,"Humanitarian, Security and Migration Division",KELLOGG BROWN & ROOT LIMITED,100049-133,601.00,
DFID,DFID,03/07/2018,Hostile Environment Training,"Humanitarian, Security and Migration Division",KELLOGG BROWN & ROOT LIMITED,100049-102,601.00,
DFID,DFID,03/07/2018,Hostile Environment Training,"Humanitarian, Security and Migration Division",KELLOGG BROWN & ROOT LIMITED,100049-102,601.00,
DFID,DFID,03/07/2018,Hostile Environment Training,"Humanitarian, Security and Migration Division",KELLOGG BROWN & ROOT LIMITED,100049-102,601.00,
DFID,DFID,13/07/2018,Hostile Environment Training,Economic Development Division,KELLOGG BROWN & ROOT LIMITED,100086-101,583.00,
DFID,DFID,17/07/2018,Hostile Environment Training,Research and Evidence Division,KELLOGG BROWN & ROOT LIMITED,100088-101,601.00,
DFID,DFID,02/07/2018,Hostile Environment Training,Business Change and Strategy Division,KELLOGG BROWN & ROOT LIMITED,100225-101,601.00,
DFID,DFID,27/07/2018,Hostile Environment Training,"Asia, Caribbean and Overseas Territories",Supplier Name withheld,101601-110,601.00,
DFID,DFID,12/07/2018,Hostile Environment Training,West and Southern Africa,KELLOGG BROWN & ROOT LIMITED,101610-101,601.00,
DFID,DFID,10/07/2018,Hostile Environment Training,West and Southern Africa,KELLOGG BROWN & ROOT LIMITED,101610-101,601.00,
DFID,DFID,30/07/2018,Hostile Environment Training,West and Southern Africa,KELLOGG BROWN & ROOT LIMITED,101620-101,655.00,
DFID,DFID,12/07/2018,Hostile Environment Training,East and Central Africa,KELLOGG BROWN & ROOT LIMITED,101625-113,500.83,
DFID,DFID,18/07/2018,Hostile Environment Training,East and Central Africa,KELLOGG BROWN & ROOT LIMITED,101625-114,500.83,
DFID,DFID,04/07/2018,Hostile Environment Training,East and Central Africa,KELLOGG BROWN & ROOT LIMITED,101625-112,601.00,
DFID,DFID,05/07/2018,Hostile Environment Training,East and Central Africa,KELLOGG BROWN & ROOT LIMITED,101630-102,500.83,
DFID,DFID,26/07/2018,Hostile Environment Training,East and Central Africa,KELLOGG BROWN & ROOT LIMITED,101633-101,500.83,
DFID,DFID,04/07/2018,Hostile Environment Training,Economic Development Division,KELLOGG BROWN & ROOT LIMITED,202373-101,601.00,
DFID,DFID,26/07/2018,Hostile Environment Training,Economic Development Division,KELLOGG BROWN & ROOT LIMITED,202373-101,601.00,
DFID,DFID,31/07/2018,Hostile Environment Training,Policy Division,KELLOGG BROWN & ROOT LIMITED,202419-101,601.00,
DFID,DFID,11/07/2018,Hostile Environment Training,Economic Development Division,KELLOGG BROWN & ROOT LIMITED,202432-101,601.00,
DFID,DFID,24/07/2018,Hostile Environment Training,Economic Development Division,KELLOGG BROWN & ROOT LIMITED,202432-101,583.00,
DFID,DFID,06/07/2018,Hostile Environment Training,Economic Development Division,KELLOGG BROWN & ROOT LIMITED,202432-101,601.00,
DFID,DFID,27/07/2018,Hostile Environment Training,East and Central Africa,KELLOGG BROWN & ROOT LIMITED,202594-101,583.00,
DFID,DFID,04/07/2018,Hostile Environment Training,East and Central Africa,KELLOGG BROWN & ROOT LIMITED,202594-101,601.00,
DFID,DFID,23/07/2018,Hostile Environment Training,"Asia, Caribbean and Overseas Territories",KELLOGG BROWN & ROOT LIMITED,204053-101,500.83,
DFID,DFID,03/07/2018,Hostile Environment Training,Policy Division,KELLOGG BROWN & ROOT LIMITED,204452-101,500.83,
DFID,DFID,13/07/2018,Hostile Environment Training,Finance and Corporate Performance Division,KELLOGG BROWN & ROOT LIMITED,204846-101,500.83,
DFID,DFID,18/07/2018,Hostile Environment Training,Non-Departmental Public Body,KELLOGG BROWN & ROOT LIMITED,204873-103,601.00,
DFID,DFID,13/07/2018,Aid Programme - Accountable Grant Payments,Policy Division,LIVERPOOL SCHOOL OF TROPICAL MEDICINE,201177-101,"1,624,221.00",
DFID,DFID,17/07/2018,Research and development costs - supplier services,Research and Evidence Division,LIVERPOOL SCHOOL OF TROPICAL MEDICINE,201401-103,"236,942.58",
DFID,DFID,06/07/2018,Research and development costs - supplier services,Research and Evidence Division,London School of Hygiene and Tropical Medicine,201447-104,"325,100.20",
DFID,DFID,09/07/2018,Research and development costs - supplier services,Research and Evidence Division,London School of Hygiene and Tropical Medicine,201889-103,"324,843.92",
DFID,DFID,13/07/2018,Project delivery costs – supplier services,Research and Evidence Division,London School of Hygiene and Tropical Medicine,203806-102,"278,627.99",
DFID,DFID,11/07/2018,Research and development costs - supplier services,Research and Evidence Division,London School of Hygiene and Tropical Medicine,300342-101,"222,448.78",
DFID,DFID,06/07/2018,Aid Programme - Core contributions,Research and Evidence Division,MEDICAL RESEARCH COUNCIL,201267-107,"5,475.92",
DFID,DFID,27/07/2018,Project delivery costs – supplier services,"Asia, Caribbean and Overseas Territories",MOTT MACDONALD LTD,202488-107,"366,650.19",
DFID,DFID,23/07/2018,Project delivery costs – supplier services,West and Southern Africa,MOTT MACDONALD LTD,202493-103,"1,511,785.96",
DFID,DFID,23/07/2018,Project delivery costs – supplier services,West and Southern Africa,MOTT MACDONALD LTD,202678-101,"160,845.03",
DFID,DFID,17/07/2018,Project delivery costs – supplier services,East and Central Africa,MOTT MACDONALD LTD,202893-102,"105,862.96",
DFID,DFID,30/07/2018,Project delivery costs – supplier services,West and Southern Africa,MOTT MACDONALD LTD,202942-102,"271,020.31",
DFID,DFID,06/07/2018,Project delivery costs – supplier services,Policy Division,MOTT MACDONALD LTD,203148-101,"486,324.81",
DFID,DFID,26/07/2018,Project delivery costs – supplier services,Policy Division,MOTT MACDONALD LTD,203148-101,"392,202.41",
DFID,DFID,18/07/2018,Project delivery costs – supplier services,West and Southern Africa,MOTT MACDONALD LTD,203154-103,"300,000.00",
DFID,DFID,24/07/2018,Project delivery costs – supplier services,East and Central Africa,MOTT MACDONALD LTD,203363-103,"613,598.49",
DFID,DFID,13/07/2018,Project delivery costs – supplier services,East and Central Africa,MOTT MACDONALD LTD,203641-103,"26,990.89",
DFID,DFID,20/07/2018,Project delivery costs – supplier services,East and Central Africa,MOTT MACDONALD LTD,203871-102,"46,858.26",
DFID,DFID,26/07/2018,Project delivery costs – supplier services,"Asia, Caribbean and Overseas Territories",MOTT MACDONALD LTD,204023-104,"283,203.80",
DFID,DFID,05/07/2018,Project delivery costs – supplier services,"Asia, Caribbean and Overseas Territories",MOTT MACDONALD LTD,204277-102,"86,981.45",
DFID,DFID,05/07/2018,Aid Programme - Challenge Fund payments,"Asia, Caribbean and Overseas Territories",MOTT MACDONALD LTD,204277-104,"744,687.09",
DFID,DFID,13/07/2018,Project delivery costs – supplier services,East and Central Africa,MOTT MACDONALD LTD,204288-103,"144,091.97",
DFID,DFID,31/07/2018,Project delivery costs – supplier services,"Asia, Caribbean and Overseas Territories",MOTT MACDONALD LTD,205138-108,"267,515.00",
DFID,DFID,18/07/2018,Project delivery costs – supplier services,West and Southern Africa,MOTT MACDONALD LTD,205195-102,"51,847.47",
DFID,DFID,23/07/2018,Project delivery costs – supplier services,West and Southern Africa,MOTT MACDONALD LTD,205234-108,"475,653.35",
DFID,DFID,26/07/2018,Data Network - land lines,Business Solutions Division Level,VODAFONE LIMITED,200002-187,"14,316.07",
DFID,DFID,26/07/2018,Project delivery costs – supplier services,East and Central Africa,MAXWELL STAMP PLC,203986-105,"93,275.84",
DFID,DFID,26/07/2018,Project delivery costs – supplier services,East and Central Africa,MAXWELL STAMP PLC,204626-101,"191,457.00",
DFID,DFID,02/07/2018,Project delivery costs – supplier services,Group Operations,MARSH PRIVATE CLIENT SERVICES,202426-101,"94,021.82",Worldwide all risks & public liability insurance policy for overseas staff for the period July to December 2018.
DFID,DFID,18/07/2018,Aid Programme - Core contributions,East and Central Africa,MET OFFICE,204364-109,"85,597.00",
DFID,DFID,03/07/2018,Aid Programme - Core contributions,Research and Evidence Division,MET OFFICE,204624-105,"101,738.00",
DFID,DFID,03/07/2018,Aid Programme - Core contributions,Research and Evidence Division,MET OFFICE,204624-105,"179,317.20",
DFID,DFID,03/07/2018,Aid Programme - Core contributions,East and Central Africa,MET OFFICE,204624-107,"89,526.00",
DFID,DFID,03/07/2018,Aid Programme - Core contributions,East and Central Africa,MET OFFICE,204624-103,"773,616.00",
DFID,DFID,27/07/2018,Project delivery costs – supplier services,East and Central Africa,MERCY CORPS EUROPE,204012-104,"77,873.33",
DFID,DFID,04/07/2018,Project delivery costs – supplier services,Economic Development Division,NATURAL RESOURCES INSTITUTE,203535-104,"10,000.00",
DFID,DFID,12/07/2018,Aid Programme - Accountable Grant Payments,"Humanitarian, Security and Migration Division",MAPACTION,202878-104,"36,506.09",
DFID,DFID,26/07/2018,Aid Programme - Accountable Grant Payments,West and Southern Africa,OXFAM INSTITUTIONAL INCOME ACCOUNT,300067-106,"1,359,830.00",
DFID,DFID,13/07/2018,FCO shared service charges,Central Department Division,FOREIGN AND COMMONWEALTH OFFICE (FCO),200510-107,"15,454,746.02","Operational costs for DFID overseas office and residential accommodation, maintenance, and corporate services for April to September 2018."
DFID,DFID,31/07/2018,Project delivery costs – supplier services,"Humanitarian, Security and Migration Division",FOREIGN AND COMMONWEALTH OFFICE (FCO),300461-105,"6,269.93",
DFID,DFID,19/07/2018,Project delivery costs – supplier services,"Asia, Caribbean and Overseas Territories",OXFORD POLICY MANAGEMENT,107480-104,"13,757.45",
DFID,DFID,23/07/2018,Project delivery costs – supplier services,East and Central Africa,OXFORD POLICY MANAGEMENT,200221-107,"16,412.89",
DFID,DFID,31/07/2018,Project delivery costs – supplier services,East and Central Africa,OXFORD POLICY MANAGEMENT,200221-107,"15,057.18",
DFID,DFID,20/07/2018,Project delivery costs – supplier services,West and Southern Africa,OXFORD POLICY MANAGEMENT,201874-103,"13,900.59",
DFID,DFID,20/07/2018,Project delivery costs – supplier services,West and Southern Africa,OXFORD POLICY MANAGEMENT,201874-103,"3,921.39",
DFID,DFID,18/07/2018,Project delivery costs – supplier services,West and Southern Africa,OXFORD POLICY MANAGEMENT,202214-104,"13,991.00",
DFID,DFID,24/07/2018,Project delivery costs – supplier services,"Asia, Caribbean and Overseas Territories",OXFORD POLICY MANAGEMENT,202367-103,"5,200.33",
DFID,DFID,24/07/2018,Project delivery costs – supplier services,"Asia, Caribbean and Overseas Territories",OXFORD POLICY MANAGEMENT,202367-103,"150,970.00",
DFID,DFID,25/07/2018,Project delivery costs – supplier services,West and Southern Africa,OXFORD POLICY MANAGEMENT,202978-101,"42,375.32",
DFID,DFID,18/07/2018,Project delivery costs – supplier services,West and Southern Africa,OXFORD POLICY MANAGEMENT,202978-101,"92,000.00",
DFID,DFID,24/07/2018,Project delivery costs – supplier services,"Asia, Caribbean and Overseas Territories",OXFORD POLICY MANAGEMENT,203029-104,"99,420.00",
DFID,DFID,23/07/2018,Project delivery costs – supplier services,Research and Evidence Division,OXFORD POLICY MANAGEMENT,203051-103,"247,615.51",
DFID,DFID,23/07/2018,Project delivery costs – supplier services,Research and Evidence Division,OXFORD POLICY MANAGEMENT,203051-103,"7,742.61",
DFID,DFID,23/07/2018,Project delivery costs – supplier services,Research and Evidence Division,OXFORD POLICY MANAGEMENT,203051-103,"920,436.00",
DFID,DFID,18/07/2018,Project delivery costs – supplier services,"Asia, Caribbean and Overseas Territories",OXFORD POLICY MANAGEMENT,203180-102,"45,600.00",
DFID,DFID,31/07/2018,Project delivery costs – supplier services,West and Southern Africa,OXFORD POLICY MANAGEMENT,203536-108,"5,025.96",
DFID,DFID,17/07/2018,Project delivery costs – supplier services,Research and Evidence Division,OXFORD POLICY MANAGEMENT,203638-104,"29,911.42",
DFID,DFID,17/07/2018,Project delivery costs – supplier services,Research and Evidence Division,OXFORD POLICY MANAGEMENT,203638-104,"29,915.37",
DFID,DFID,24/07/2018,Project delivery costs – supplier services,East and Central Africa,OXFORD POLICY MANAGEMENT,204012-107,"158,007.00",
DFID,DFID,05/07/2018,Project delivery costs – supplier services,East and Central Africa,OXFORD POLICY MANAGEMENT,204266-104,"48,064.84",
DFID,DFID,06/07/2018,Project delivery costs – supplier services,East and Central Africa,OXFORD POLICY MANAGEMENT,204266-104,561.00,
DFID,DFID,26/07/2018,Project delivery costs – supplier services,East and Central Africa,OXFORD POLICY MANAGEMENT,204339-103,"380,761.87",
DFID,DFID,25/07/2018,Project delivery costs – supplier services,East and Central Africa,OXFORD POLICY MANAGEMENT,204477-104,"35,000.00",
DFID,DFID,24/07/2018,Project delivery costs – supplier services,Research and Evidence Division,OXFORD POLICY MANAGEMENT,204806-106,"24,646.50",
DFID,DFID,23/07/2018,Project delivery costs – supplier services,East and Central Africa,OXFORD POLICY MANAGEMENT,204903-104,"16,528.61",
DFID,DFID,23/07/2018,Project delivery costs – supplier services,East and Central Africa,OXFORD POLICY MANAGEMENT,204903-104,"54,830.06",
DFID,DFID,10/07/2018,Project delivery costs – supplier services,East and Central Africa,OXFORD POLICY MANAGEMENT,205065-107,"319,239.00",
DFID,DFID,10/07/2018,Project delivery costs – supplier services,East and Central Africa,OXFORD POLICY MANAGEMENT,205065-107,"234,884.00",
DFID,DFID,13/07/2018,Project delivery costs – supplier services,East and Central Africa,OXFORD POLICY MANAGEMENT,205065-107,"159,619.00",
DFID,DFID,10/07/2018,Project delivery costs – supplier services,West and Southern Africa,OXFORD POLICY MANAGEMENT,205066-101,"116,166.57",
DFID,DFID,19/07/2018,Project delivery costs – supplier services,West and Southern Africa,OXFORD POLICY MANAGEMENT,205126-101,"301,500.47",
DFID,DFID,17/07/2018,Project delivery costs – supplier services,West and Southern Africa,OXFORD POLICY MANAGEMENT,205126-101,"34,152.11",
DFID,DFID,10/07/2018,Project delivery costs – supplier services,"Asia, Caribbean and Overseas Territories",OXFORD POLICY MANAGEMENT,300238-102,"50,864.37",
DFID,DFID,11/07/2018,DFID Purchased Relief Supplies,Middle East and North Africa Division,OXFORD POLICY MANAGEMENT,300239-103,"133,960.90",
DFID,DFID,24/07/2018,Project delivery costs – supplier services,West and Southern Africa,OPTIONS CONSULTANCY SERVICES LIMITED,202214-103,"165,877.00",
DFID,DFID,03/07/2018,Project delivery costs – supplier services,Policy Division,OPTIONS CONSULTANCY SERVICES LIMITED,203024-105,"59,459.44",
DFID,DFID,03/07/2018,Project delivery costs – supplier services,Policy Division,OPTIONS CONSULTANCY SERVICES LIMITED,203024-105,"130,000.00",
DFID,DFID,31/07/2018,Project delivery costs – supplier services,"Asia, Caribbean and Overseas Territories",OPTIONS CONSULTANCY SERVICES LIMITED,205145-101,"148,900.00",
DFID,DFID,11/07/2018,Oil - Other Utilities,Group Operations,Government Procurement Service,203717-101,"10,109.98",
DFID,DFID,11/07/2018,Oil - Other Utilities,Group Operations,Government Procurement Service,203717-101,"3,762.34",
DFID,DFID,11/07/2018,Oil - Other Utilities,Group Operations,Government Procurement Service,203717-101,"1,437.91",
DFID,DFID,31/07/2018,Project delivery costs – supplier services,Business Solutions Division Level,OXFORD COMPUTER GROUP LTD,200005-145,"2,352.00",
DFID,DFID,26/07/2018,Aid Programme - Accountable Grant Payments,Research and Evidence Division,OVERSEAS DEVELOPMENT INSTITUTE,300288-101,"1,138,512.70",
DFID,DFID,10/07/2018,Project delivery costs – supplier services,Policy Division,PLAN INTERNATIONAL UK,203572-101,"314,385.75",
DFID,DFID,27/07/2018,Project delivery costs – supplier services,Economic Development Division,PRICEWATERHOUSECOOPERS,114178-104,"182,069.30",
DFID,DFID,27/07/2018,Project delivery costs – supplier services,Economic Development Division,PRICEWATERHOUSECOOPERS,114178-104,"416,083.85",
DFID,DFID,26/07/2018,Project delivery costs – supplier services,Economic Development Division,PRICEWATERHOUSECOOPERS,202939-103,"75,443.11",
DFID,DFID,26/07/2018,Project delivery costs – supplier services,Economic Development Division,PRICEWATERHOUSECOOPERS,202939-113,"62,779.97",
DFID,DFID,26/07/2018,Project delivery costs – supplier services,Economic Development Division,PRICEWATERHOUSECOOPERS,202939-115,"15,702.60",
DFID,DFID,18/07/2018,Project delivery costs – supplier services,Research and Evidence Division,PRICEWATERHOUSECOOPERS,203835-106,"44,553.14",
DFID,DFID,18/07/2018,Project delivery costs – supplier services,Research and Evidence Division,PRICEWATERHOUSECOOPERS,203835-106,"4,988.87",
DFID,DFID,02/07/2018,Project delivery costs – supplier services,Research and Evidence Division,PRICEWATERHOUSECOOPERS,203835-106,"3,847.96",
DFID,DFID,03/07/2018,Project delivery costs – supplier services,Research and Evidence Division,PRICEWATERHOUSECOOPERS,203835-106,"34,185.17",
DFID,DFID,26/07/2018,Project delivery costs – supplier services,Economic Development Division,PRICEWATERHOUSECOOPERS,204250-101,"171,826.27",
DFID,DFID,26/07/2018,Project delivery costs – supplier services,Economic Development Division,PRICEWATERHOUSECOOPERS,204250-101,"122,235.34",
DFID,DFID,26/07/2018,Project delivery costs – supplier services,Economic Development Division,PRICEWATERHOUSECOOPERS,204250-102,"8,533.74",
DFID,DFID,26/07/2018,Project delivery costs – supplier services,Economic Development Division,PRICEWATERHOUSECOOPERS,204250-102,"7,711.09",
DFID,DFID,09/07/2018,Project delivery costs – supplier services,Economic Development Division,PRICEWATERHOUSECOOPERS,204531-101,"59,391.13",
DFID,DFID,31/07/2018,Project delivery costs – supplier services,Policy Division,PRICEWATERHOUSECOOPERS,204766-102,"654,270.41",
DFID,DFID,06/07/2018,Project delivery costs – supplier services,"Asia, Caribbean and Overseas Territories",PRICEWATERHOUSECOOPERS,205093-103,"767,693.00",
DFID,DFID,26/07/2018,Project delivery costs – supplier services,"Asia, Caribbean and Overseas Territories",PRICEWATERHOUSECOOPERS,205245-101,"7,246.09",
DFID,DFID,22/07/2018,Storage & Distribution costs,"Asia, Caribbean and Overseas Territories",Supplier Name withheld,101601-110,"1,351.49",
DFID,DFID,22/07/2018,Storage & Distribution costs,"Asia, Caribbean and Overseas Territories",PICKFORDS LTD,101603-101,814.86,
DFID,DFID,03/07/2018,Storage & Distribution costs,"Asia, Caribbean and Overseas Territories",PICKFORDS LTD,101611-101,634.40,
DFID,DFID,27/07/2018,Storage & Distribution costs,West and Southern Africa,PICKFORDS LTD,101618-101,591.43,
DFID,DFID,11/07/2018,Storage & Distribution costs,West and Southern Africa,PICKFORDS LTD,101620-101,584.00,
DFID,DFID,23/07/2018,Storage & Distribution costs,West and Southern Africa,PICKFORDS LTD,101620-101,742.31,
DFID,DFID,23/07/2018,Storage & Distribution costs,"Asia, Caribbean and Overseas Territories",PICKFORDS LTD,101624-101,578.29,
DFID,DFID,31/07/2018,Relocation costs,West and Southern Africa,PICKFORDS LTD,101629-101,"1,211.78",
DFID,DFID,02/07/2018,Storage & Distribution costs,West and Southern Africa,PICKFORDS LTD,101629-101,520.00,
DFID,DFID,03/07/2018,Storage & Distribution costs,West and Southern Africa,PICKFORDS LTD,101638-101,917.80,
DFID,DFID,18/07/2018,Storage & Distribution costs,Middle East and North Africa Division,PICKFORDS LTD,201705-101,"2,074.16",
DFID,DFID,03/07/2018,Aid Programme - Accountable Grant Payments,East and Central Africa,POPULATION  SERVICES INTERNATIONAL,205128-102,"894,576.00",
DFID,DFID,27/07/2018,Aid Programme - Accountable Grant Payments,"Asia, Caribbean and Overseas Territories",PRACTICAL ACTION (UK),204857-104,"168,648.00",
DFID,DFID,09/07/2018,Aid Programme - Accountable Grant Payments,West and Southern Africa,THE SAVE THE CHILDREN FUND,202978-104,"1,876,841.78",
DFID,DFID,18/07/2018,Aid Programme - Accountable Grant Payments,East and Central Africa,THE SAVE THE CHILDREN FUND,203462-111,"94,781.19",
DFID,DFID,11/07/2018,Aid Programme - Accountable Grant Payments,West and Southern Africa,THE SAVE THE CHILDREN FUND,203981-108,"230,813.80",
DFID,DFID,24/07/2018,Research and development costs - supplier services,Research and Evidence Division,SCHOOL OF ORIENTAL & AFRICAN STUDIES (UK),203752-104,"201,029.66",
DFID,DFID,04/07/2018,Project delivery costs – supplier services,Policy Division,Social Development Direct Ltd,203245-106,"24,680.14",
DFID,DFID,05/07/2018,Project delivery costs – supplier services,Policy Division,SOUTHWOOD CONSULTANTS,204963-101,"8,100.00",
DFID,DFID,26/07/2018,Aid Programme - Humanitarian Material Relief Assistance and Services,"Humanitarian, Security and Migration Division",SAVE THE CHILDREN UK,300516-101,"7,000,000.00",
DFID,DFID,11/07/2018,Legal costs,Finance and Corporate Performance Division,GOVERNMENT LEGAL DEPARTMENT,100201-101,827.70,
DFID,DFID,11/07/2018,Legal costs,Human Resources,GOVERNMENT LEGAL DEPARTMENT,100269-136,505.44,
DFID,DFID,12/07/2018,Legal costs,East and Central Africa,GOVERNMENT LEGAL DEPARTMENT,101612-101,"2,025.50",
DFID,DFID,18/07/2018,Legal costs,West and Southern Africa,GOVERNMENT LEGAL DEPARTMENT,203674-103,"1,554.00",
DFID,DFID,13/07/2018,Legal costs,East and Central Africa,GOVERNMENT LEGAL DEPARTMENT,205241-101,518.40,
DFID,DFID,13/07/2018,Legal costs,East and Central Africa,GOVERNMENT LEGAL DEPARTMENT,205241-101,"2,177.28",
DFID,DFID,23/07/2018,Aid Programme - Joint programme contribution,Policy Division,UNICEF,204702-101,"5,965,000.00",
DFID,DFID,23/07/2018,Aid Programme - Joint programme contribution,Policy Division,UNICEF,204702-102,"2,035,000.00",
DFID,DFID,31/07/2018,Aid Programme - Voluntary contributions,"Asia, Caribbean and Overseas Territories",UNICEF,300003-113,"146,566.00",
DFID,DFID,25/07/2018,Aid Programme - Accountable Grant Payments,Policy Division,TROPICAL HEALTH AND EDUCATION TRUST,202208-103,"700,893.62",
DFID,DFID,18/07/2018,Postage Costs,Group Operations,Whistl UK,100182-101,"1,732.07",
DFID,DFID,18/07/2018,Postage Costs,Group Operations,Whistl UK,100182-101,672.62,
DFID,DFID,06/07/2018,Aid Programme - Voluntary contributions,"Humanitarian, Security and Migration Division",UNDP CONTRIBUTIONS ACCOUNT,300339-108,"100,000.00",
DFID,DFID,23/07/2018,Aid Programme - Voluntary contributions,Middle East and North Africa Division,UN RELIEF AND WORKS AGENCY,204546-101,"331,972.00",
DFID,DFID,09/07/2018,Project delivery costs – supplier services,Research and Evidence Division,UNIVERSITY COLLEGE LONDON,204806-105,"30,531.41",
DFID,DFID,03/07/2018,Aid Programme - Voluntary contributions,"Asia, Caribbean and Overseas Territories",UNDP GBP Contributions,300003-110,"36,730.00",
DFID,DFID,27/07/2018,Aid Programme - Voluntary contributions,"Asia, Caribbean and Overseas Territories",UNDP GBP Contributions,300251-101,"500,000.00",
DFID,DFID,11/07/2018,Aid Programme - Voluntary contributions,"Asia, Caribbean and Overseas Territories",UNDP GBP Contributions,300477-101,"52,392.00",
DFID,DFID,12/07/2018,Aid Programme - Pooled/Basket funding,"Asia, Caribbean and Overseas Territories",UNDP GBP Contributions,300532-101,"330,000.00",
DFID,DFID,20/07/2018,Aid Programme - Voluntary contributions,"Asia, Caribbean and Overseas Territories",UNDP GBP Contributions,300599-101,"161,000.00",
DFID,DFID,31/07/2018,Aid Programme - Voluntary contributions,West and Southern Africa,United Nation’s Children Fund (UNICEF),202214-126,"349,382.00",
DFID,DFID,04/07/2018,Aid Programme - Joint programme contribution,West and Southern Africa,United Nation’s Children Fund (UNICEF),202641-101,"6,000,000.00",
DFID,DFID,24/07/2018,Aid Programme - Voluntary contributions,East and Central Africa,United Nation’s Children Fund (UNICEF),203407-101,"955,847.00",
DFID,DFID,26/07/2018,Aid Programme - Voluntary contributions,East and Central Africa,United Nation’s Children Fund (UNICEF),203631-103,"150,000.00",
DFID,DFID,10/07/2018,Project delivery costs – supplier services,East and Central Africa,United Nation’s Children Fund (UNICEF),204142-103,"32,268.00",
DFID,DFID,18/07/2018,Aid Programme - Voluntary contributions,West and Southern Africa,United Nation’s Children Fund (UNICEF),204565-102,"11,000,000.00",
DFID,DFID,26/07/2018,Aid Programme - Voluntary contributions,Middle East and North Africa Division,United Nation’s Children Fund (UNICEF),205200-101,"2,250,000.00",
DFID,DFID,26/07/2018,Aid Programme - Voluntary contributions,West and Southern Africa,United Nation’s Children Fund (UNICEF),300432-111,"1,263,830.00",
DFID,DFID,23/07/2018,Aid Programme - Voluntary contributions,"Asia, Caribbean and Overseas Territories",United Nation’s Children Fund (UNICEF),300619-103,"248,147.00",
DFID,DFID,23/07/2018,Project delivery costs – supplier services,Policy Division,VOLUNTARY SERVICE OVERSEAS,204894-101,"6,891,663.88",
DFID,DFID,25/07/2018,Research and development costs - supplier services,Research and Evidence Division,VALID EVALUATIONS LTD,203706-109,"60,000.00",
DFID,DFID,17/07/2018,Telephone Usage & services,Business Solutions Division Level,VODAFONE CORPORATE,200002-170,"34,608.95",UK HQ Mobile rental and call charges for June 2018
DFID,DFID,17/07/2018,Telephone Usage & services,Business Solutions Division Level,VODAFONE CORPORATE,200002-170,"14,931.59",
DFID,DFID,19/07/2018,Training Providers/Facilitation Services,Group Operations,VULCAN FIRE TRAINING CO LTD,203717-101,725.00,
DFID,DFID,10/07/2018,Data Network - land lines,Business Solutions Division Level,VERIZON UK LIMITED,200002-126,"9,802.94",
DFID,DFID,19/07/2018,Professional member subscriptions,Human Resources,THE WHITEHALL & INDUSTRY GROUP,100269-155,"4,950.00",
DFID,DFID,06/07/2018,Aid Programme - Accountable Grant Payments,Policy Division,WILTON PARK,203166-108,"20,000.00",
DFID,DFID,05/07/2018,Aid Programme - Voluntary contributions,"Humanitarian, Security and Migration Division",WILTON PARK,300358-111,"15,000.00",
DFID,DFID,18/07/2018,Aid Programme - Accountable Grant Payments,West and Southern Africa,WESTMINSTER FOUNDATION FOR DEMOCRACY,204889-111,"43,881.00",
DFID,DFID,31/07/2018,Air fares,"Asia, Caribbean and Overseas Territories",Saimon Overseas Ltd,101603-101,"1,333.67",
DFID,DFID,12/07/2018,Hotels - Accommodation only,Economic Development Division,HOTEL DES MILLE COLLINES,202259-101,529.10,
DFID,DFID,05/07/2018,Data Network - land lines ,Business Solutions Division Level,Telekom Networks Malawi,200002-121,"5,429.82",
DFID,DFID,05/07/2018,Data Network - land lines ,Business Solutions Division Level,Telekom Networks Malawi,203329-102,"12,669.58",
DFID,DFID,18/07/2018,Air fares,West and Southern Africa,Mukwa Travel and Tours,101637-101,866.86,
DFID,DFID,30/07/2018,Air fares,"Asia, Caribbean and Overseas Territories",Jaya Travels & Tours Ltd,101605-101,"1,168.26",
DFID,DFID,17/07/2018,Air fares,"Asia, Caribbean and Overseas Territories",Jaya Travels & Tours Ltd,101605-101,"1,143.41",
DFID,DFID,17/07/2018,Air fares,"Asia, Caribbean and Overseas Territories",Jaya Travels & Tours Ltd,101621-101,627.18,
DFID,DFID,30/07/2018,Air fares,"Asia, Caribbean and Overseas Territories",Jaya Travels & Tours Ltd,101621-101,540.74,
DFID,DFID,23/07/2018,Hotels - Accommodation only,Internal Audit,Hotel Himalaya Pvt Ltd,100121-101,"3,332.44",
DFID,DFID,25/07/2018,Aid Programme - Accountable Grant Payments,"Asia, Caribbean and Overseas Territories",Helvetas Nepal,204857-103,"772,229.08",
DFID,DFID,10/07/2018,Medical/Health Services,West and Southern Africa,Centre Hospitalier Monkole,100068-101,541.76,
DFID,DFID,10/07/2018,Medical/Health Services,West and Southern Africa,Centre Hospitalier Monkole,101610-101,"1,354.40",
DFID,DFID,11/07/2018,Hotels - Accommodation only,West and Southern Africa,Grand Hotel,101610-101,"1,230.10",
DFID,DFID,18/07/2018,Hotels - Accommodation only,West and Southern Africa,Grand Hotel,101610-101,926.06,
DFID,DFID,05/07/2018,Hotels - Accommodation only,West and Southern Africa,Grand Hotel,101610-101,"1,077.92",
DFID,DFID,10/07/2018,Medical/Health Services,West and Southern Africa,New Deal Medical,101610-101,"2,031.60",
DFID,DFID,10/07/2018,Hotels - Accommodation only,West and Southern Africa,Accra City Hotel,204918-101,571.37,
DFID,DFID,10/07/2018,Hotels - Accommodation only,West and Southern Africa,Accra City Hotel,204918-101,685.65,
DFID,DFID,10/07/2018,Hotels - Accommodation only,West and Southern Africa,Accra City Hotel,204918-101,685.65,
DFID,DFID,10/07/2018,Hotels - Accommodation only,West and Southern Africa,Accra City Hotel,204918-101,685.65,
DFID,DFID,19/07/2018,Air fares,East and Central Africa,Simbatravelcare Limited,101635-101,743.69,
DFID,DFID,05/07/2018,Air fares,East and Central Africa,Simbatravelcare Limited,101635-101,975.04,
DFID,DFID,30/07/2018,Data Network - land lines,Business Solutions Division Level,Safaricom  Limited,200002-121,729.44,
DFID,DFID,30/07/2018,Data Network - land lines,Business Solutions Division Level,Safaricom  Limited,203329-102,"1,702.02",
DFID,DFID,17/07/2018,Data Network - land lines,Business Solutions Division Level,Safaricom  Limited,203329-102,"2,531.55",
DFID,DFID,30/07/2018,Staff Travel - Air Fares,East and Central Africa,WFP Somalia,101630-101,"8,982.33",
DFID,DFID,19/07/2018,Hotels - Accommodation only,Human Resources,Fairview Hotel,100261-101,684.83,
DFID,DFID,02/07/2018,Hotels - Accommodation only,East and Central Africa,Fairview Hotel,101630-102,810.80,
DFID,DFID,27/07/2018,Hotels - Accommodation only,Non-Departmental Public Body,Fairview Hotel,204873-103,680.64,
DFID,DFID,27/07/2018,Research and development costs - supplier services,Research and Evidence Division,The Population Council,204329-103,"323,961.37",
DFID,DFID,27/07/2018,Project delivery costs – supplier services,East and Central Africa, Khulisa Management Services,204970-107,"6,929.00",
DFID,DFID,31/07/2018,Air fares,West and Southern Africa,DANA Agency,101620-101,574.89,
DFID,DFID,31/07/2018,Hotels - Accommodation only,West and Southern Africa,Hotel Cardoso S A R L,101620-101,601.73,
DFID,DFID,31/07/2018,Hotels - Accommodation only,West and Southern Africa,Hotel VIP Maputo,101620-101,671.44,
DFID,DFID,17/07/2018,Hotels - Accommodation only,West and Southern Africa,Supplier Name withheld,101622-106,"1,108.56",
DFID,DFID,17/07/2018,Hotels - Accommodation only,West and Southern Africa,Supplier Name withheld,101622-106,511.64,
DFID,DFID,06/07/2018,Hotels - Accommodation only,West and Southern Africa,Supplier Name withheld,101622-106,513.54,
DFID,DFID,10/07/2018,Hotels - Accommodation only,West and Southern Africa,Supplier Name withheld,101622-106,681.78,
DFID,DFID,17/07/2018,Hotels - Accommodation only,Business Solutions Division Level,Abuja Sheraton,200001-101,704.98,
DFID,DFID,17/07/2018,Hotels - Accommodation only,Business Solutions Division Level,Abuja Sheraton,200001-101,704.98,
DFID,DFID,17/07/2018,Hotels - Accommodation only,Business Solutions Division Level,Abuja Sheraton,200001-101,704.98,
DFID,DFID,17/07/2018,Hotels - Accommodation only,Business Solutions Division Level,Abuja Sheraton,200001-101,704.98,
DFID,DFID,17/07/2018,Hotels - Accommodation only,Business Solutions Division Level,Abuja Sheraton,200001-101,852.74,
DFID,DFID,17/07/2018,Hotels - Accommodation only,Business Solutions Division Level,Abuja Sheraton,200001-101,852.74,
DFID,DFID,17/07/2018,Hotels - Accommodation only,Business Solutions Division Level,Abuja Sheraton,200001-101,"1,449.65",
DFID,DFID,17/07/2018,Hotels - Accommodation only,Business Solutions Division Level,Abuja Sheraton,200001-101,"1,449.65",
DFID,DFID,17/07/2018,Project delivery costs – supplier services,West and Southern Africa,Abuja Sheraton,204819-102,"9,602.23",
DFID,DFID,31/07/2018,Project delivery costs – supplier services,West and Southern Africa,Abuja Sheraton,204819-102,"6,535.19",
DFID,DFID,03/07/2018,Auditors Remuneration & Expenses - Cash,West and Southern Africa,PricewaterhouseCoopers NGN,202584-107,"14,467.67",
DFID,DFID,17/07/2018,Auditors Assurance Service,West and Southern Africa,PricewaterhouseCoopers NGN,202678-105,"9,792.21",
DFID,DFID,10/07/2018,Hotels - Accommodation only,West and Southern Africa,Supplier Name withheld,101622-106,"6,089.28",
DFID,DFID,24/07/2018,Hotels - Accommodation only,West and Southern Africa,Supplier Name withheld,101622-106,815.05,
DFID,DFID,17/07/2018,Auditors Remuneration & Expenses - Cash,West and Southern Africa,PKF Professional Services,201874-104,"13,087.40",
DFID,DFID,10/07/2018,Medical/Health Services,West and Southern Africa,HYGEIA HMO Ltd,100152-114,"3,273.72",
DFID,DFID,10/07/2018,Medical/Health Services,West and Southern Africa,HYGEIA HMO Ltd,101622-106,"13,094.86",
DFID,DFID,24/07/2018,Hotels - Accommodation only,West and Southern Africa,Supplier Name withheld,101622-106,"1,557.70",
DFID,DFID,25/07/2018,Research and development costs - supplier services,Research and Evidence Division,Overseas Development Institute.,201009-106,"325,698.82",
DFID,DFID,17/07/2018,Research and development costs - supplier services,Research and Evidence Division,Overseas Development Institute.,203529-106,"735,322.00",
DFID,DFID,31/07/2018,Project delivery costs – supplier services,"Asia, Caribbean and Overseas Territories",Overseas Development Institute.,204468-105,"149,860.66",
DFID,DFID,26/07/2018,Project delivery costs – supplier services,Human Resources,Tinies UK Ltd,100269-152,867.50,
DFID,DFID,26/07/2018,Project delivery costs – supplier services,Human Resources,Tinies UK Ltd,100269-126,554.00,
DFID,DFID,09/07/2018,Aid Programme - Trust Funds contributions,Economic Development Division,WFP CONTRIBUTIONS UNIT,203469-108,"400,000.00",
DFID,DFID,31/07/2018,Aid Programme - Joint programme contribution,West and Southern Africa,WFP CONTRIBUTIONS UNIT,205122-110,"1,700,000.00",
DFID,DFID,12/07/2018,Aid Programme - Voluntary contributions,West and Southern Africa,WFP CONTRIBUTIONS UNIT,205161-106,"667,885.00",
DFID,DFID,09/07/2018,Aid Programme - Humanitarian Material Relief Assistance and Services,East and Central Africa,WFP CONTRIBUTIONS UNIT,205286-104,"1,500,000.00",
DFID,DFID,27/07/2018,Aid Programme - Voluntary contributions,Middle East and North Africa Division,WFP CONTRIBUTIONS UNIT,300231-101,"20,011,123.00",
DFID,DFID,18/07/2018,Aid Programme - Voluntary contributions,West and Southern Africa,WFP CONTRIBUTIONS UNIT,300432-112,"1,572,000.00",
DFID,DFID,09/07/2018,Telephone Usage & services,Business Solutions Division Level,KUBE NETWORKS LTD,200002-126,"1,082.11",
DFID,DFID,19/07/2018,Aid Programme - Accountable Grant Payments,Research and Evidence Division,AATF,204988-102,"350,000.00",
DFID,DFID,26/07/2018,Aid Programme - Accountable Grant Payments,"Asia, Caribbean and Overseas Territories",Save the Children Fund UK,204131-101,"3,710,684.00",
DFID,DFID,27/07/2018,Project delivery costs – supplier services,Policy Division,KPMG EAST AFRICA LTD,202921-102,"519,250.80",
DFID,DFID,27/07/2018,Project delivery costs – supplier services,West and Southern Africa,UPPER QUARTILE,203816-104,"155,866.00",
DFID,DFID,10/07/2018,Hotels - Accommodation only,West and Southern Africa,Alisa Hotel North Ridge,101613-101,557.82,
DFID,DFID,17/07/2018,Medical/Health Services,West and Southern Africa,Nyaho Medical Centre,101613-101,846.45,
DFID,DFID,17/07/2018,Medical/Health Services,West and Southern Africa,Akai House Clinic,101613-101,581.34,
DFID,DFID,23/07/2018,Aid Programme - Joint programme contribution,"Asia, Caribbean and Overseas Territories",UNFPA,202488-111,"858,630.00",
DFID,DFID,25/07/2018,Aid Programme - Voluntary contributions,East and Central Africa,UNFPA,205067-102,"521,877.00",
DFID,DFID,27/07/2018,Aid Programme - Voluntary contributions,"Asia, Caribbean and Overseas Territories",UNFPA,300561-102,"189,675.00",
DFID,DFID,24/07/2018,Fund monies to be managed and dispersed by the supplier,Policy Division,KPMG LLP,201724-142,"2,862,676.00",
DFID,DFID,27/07/2018,Project delivery costs – supplier services,Economic Development Division,KPMG LLP,204252-113,"335,033.37",
DFID,DFID,30/07/2018,Aid Programme - Voluntary contributions,Policy Division,WHO (GENEVA),203148-103,"794,900.00",
DFID,DFID,04/07/2018,Aid Programme - Pooled/Basket funding,Research and Evidence Division,WHO (GENEVA),204765-104,"944,086.00",
DFID,DFID,25/07/2018,Aid Programme - Voluntary contributions,East and Central Africa,WHO (GENEVA),205242-104,"1,500,000.00",
DFID,DFID,05/07/2018,Aid Programme - Voluntary contributions,West and Southern Africa,WHO (GENEVA),300036-111,"1,159,227.00",
DFID,DFID,26/07/2018,Aid Programme - Voluntary contributions,Policy Division,WHO (GENEVA),300350-101,"2,500,000.00",
DFID,DFID,11/07/2018,Subscriptions,Communications Division,THE PRESS ASSOCIATION,100197-101,645.34,
DFID,DFID,30/07/2018,Project delivery costs – supplier services,Research and Evidence Division,Action Against Hunger UK (ACF-UK),203705-130,"96,573.00",
DFID,DFID,04/07/2018,Aid Programme - Voluntary contributions,"Asia, Caribbean and Overseas Territories",IOM,300051-101,"50,000.00",
DFID,DFID,25/07/2018,Aid Programme - Voluntary contributions,"Humanitarian, Security and Migration Division",IOM,300461-106,"57,300.00",
DFID,DFID,04/07/2018,Aid Programme - Voluntary contributions,"Asia, Caribbean and Overseas Territories",IOM,300619-101,"60,733.00",
DFID,DFID,30/07/2018,Aid Programme - Accountable Grant Payments,West and Southern Africa,SEARCH FOR COMMON GROUND,202416-114,"341,596.00",
DFID,DFID,23/07/2018,Aid Programme - Accountable Grant Payments,Middle East and North Africa Division,SEARCH FOR COMMON GROUND,300366-101,"172,000.00",
DFID,DFID,10/07/2018,Project delivery costs – supplier services,"Asia, Caribbean and Overseas Territories",IPE Global Ltd.,203911-101,"59,514.48",
DFID,DFID,26/07/2018,Project delivery costs – supplier services,"Asia, Caribbean and Overseas Territories",IPE Global Ltd.,204237-101,"308,534.60",
DFID,DFID,26/07/2018,Project delivery costs – supplier services,"Asia, Caribbean and Overseas Territories",IPE Global Ltd.,204237-101,"38,666.01",
DFID,DFID,02/07/2018,Project delivery costs – supplier services,"Asia, Caribbean and Overseas Territories",IPE Global Ltd.,204794-103,"25,396.76",
DFID,DFID,31/07/2018,Project delivery costs – supplier services,"Asia, Caribbean and Overseas Territories",IPE Global Ltd.,204794-103,"59,000.00",
DFID,DFID,23/07/2018,Project delivery costs – supplier services,"Asia, Caribbean and Overseas Territories",IPE Global Ltd.,204794-103,"94,400.00",
DFID,DFID,23/07/2018,Project delivery costs – supplier services,"Asia, Caribbean and Overseas Territories",IPE Global Ltd.,204794-103,"70,800.00",
DFID,DFID,23/07/2018,Project delivery costs – supplier services,"Asia, Caribbean and Overseas Territories",IPE Global Ltd.,204794-103,"35,400.00",
DFID,DFID,09/07/2018,Aid Programme - Humanitarian Material Relief Assistance and Services,East and Central Africa,THE INTERNATIONAL COMMITTEE OF THE RED CROSS (ICRC),205286-102,"2,000,000.00",
DFID,DFID,11/07/2018,Aid Programme - Accountable Grant Payments,West and Southern Africa,The Carter Center,204889-102,"108,649.00",
DFID,DFID,30/07/2018,Aid Programme - Accountable Grant Payments,Economic Development Division,International Centre for Trade and Sustainable Development,204717-102,"29,574.00",
DFID,DFID,05/07/2018,Aid Programme - Accountable Grant Payments,Middle East and North Africa Division,Supplier Name withheld,204520-103,"1,042,840.76",
DFID,DFID,04/07/2018,Aid Programme - Strategic Grant Arrangement payments,Research and Evidence Division,WELLCOME TRUST,204571-110,"196,884.00",
DFID,DFID,20/07/2018,Aid Programme - Core contributions,Research and Evidence Division,WELLCOME TRUST,204765-103,"125,000.00",
DFID,DFID,09/07/2018,Aid Programme - Accountable Grant Payments,East and Central Africa,Twaweza East Africa,204804-104,"750,000.00",
DFID,DFID,19/07/2018,Aid Programme - Accountable Grant Payments,West and Southern Africa,Fondation Hirondelle,204889-105,"48,484.50",
DFID,DFID,30/07/2018,Aid Programme - Voluntary contributions,Economic Development Division,EITI Secretariat,203308-116,"125,000.00",
DFID,DFID,18/07/2018,Project delivery costs – supplier services,Research and Evidence Division,ECORYS UK Ltd.,205103-102,"28,489.20",
DFID,DFID,09/07/2018,Aid Programme - Core contributions,Research and Evidence Division,BILL & MELINDA GATES FOUNDATION (USD),204420-102,"670,591.37",
DFID,DFID,09/07/2018,Aid Programme - Core contributions,Research and Evidence Division,BILL & MELINDA GATES FOUNDATION (USD),205273-109,"1,502,855.43",
DFID,DFID,20/07/2018,Aid Programme - Voluntary contributions,Research and Evidence Division,BILL & MELINDA GATES FOUNDATION (USD),300442-101,"769,053.30",
DFID,DFID,18/07/2018,Aid Programme - Voluntary contributions,Research and Evidence Division,BILL & MELINDA GATES FOUNDATION (USD),300442-101,"1,153,846.15",
DFID,DFID,10/07/2018,Hotels - Accommodation only,West and Southern Africa,Supplier Name withheld,101622-106,"1,472.55",
DFID,DFID,09/07/2018,Aid Programme - Accountable Grant Payments,Economic Development Division, WORLD RESOURCES INSTITUTE,204250-113,"102,610.60",
DFID,DFID,20/07/2018,Aid Programme - Accountable Grant Payments,Economic Development Division,Carnegie Endowment for International Peace,203673-101,"91,667.00",
DFID,DFID,11/07/2018,Project delivery costs – supplier services,East and Central Africa,BMB  MOTT  MACDONALD,202511-102,"436,387.25",
DFID,DFID,11/07/2018,Project delivery costs – supplier services,East and Central Africa,BMB  MOTT  MACDONALD,202511-102,"114,631.42",
DFID,DFID,25/07/2018,Project delivery costs – supplier services,East and Central Africa,BMB  MOTT  MACDONALD,202511-102,"99,522.77",
DFID,DFID,25/07/2018,Project delivery costs – supplier services,East and Central Africa,BMB  MOTT  MACDONALD,202511-102,"405,138.60",
DFID,DFID,24/07/2018,Fund monies to be managed and dispersed by the supplier,East and Central Africa,BMB  MOTT  MACDONALD,203383-101,"400,000.00",
DFID,DFID,05/07/2018,Aid Programme - Joint programme contribution,Research and Evidence Division,INTERNATIONAL DEVELOPMENT RESEARCH CENTRE,203506-103,"1,113,703.00",
DFID,DFID,05/07/2018,Aid Programme - Core contributions,Research and Evidence Division,INTERNATIONAL DEVELOPMENT RESEARCH CENTRE,204168-103,"562,686.00",
DFID,DFID,09/07/2018,Aid Programme - Core contributions,Research and Evidence Division,INTERNATIONAL DEVELOPMENT RESEARCH CENTRE,204321-102,"89,246.00",
DFID,DFID,11/07/2018,"Conferences, Seminars & Meeting/Event Resource",Finance and Corporate Performance Division,THE CHARTERED INSTITUTE OF MARKETING,202437-101,"25,477.89",Commercial leadership conference attended by 32 senior civil servants for the period 5-9 March 2018.
DFID,DFID,11/07/2018,"Conferences, Seminars & Meeting/Event Resource",Finance and Corporate Performance Division,THE CHARTERED INSTITUTE OF MARKETING,202437-101,"1,509.10",
DFID,DFID,18/07/2018,Aid Programme - Voluntary contributions,Policy Division,GLOBAL WATER PARTNERSHIP,202884-103,"1,000,000.00",
DFID,DFID,27/07/2018,Aid Programme - Accountable Grant Payments,"Asia, Caribbean and Overseas Territories",Transparency International (Bangladesh),203488-101,"300,000.00",
DFID,DFID,27/07/2018,Aid Programme - Accountable Grant Payments,"Asia, Caribbean and Overseas Territories",Transparency International (Bangladesh),203488-102,"50,000.00",
DFID,DFID,27/07/2018,Aid Programme - Accountable Grant Payments,"Asia, Caribbean and Overseas Territories",Transparency International (Bangladesh),203488-104,"50,000.00",
DFID,DFID,17/07/2018,Air fares,Internal Audit,Jaya Travels & Tours Pvt Ltd. (US$),100121-101,716.01,
DFID,DFID,04/07/2018,Fund monies to be managed and dispersed by the supplier,Research and Evidence Division,CARDNO EMERGING MARKETS (UK) LTD,203048-105,"255,265.40",
DFID,DFID,13/07/2018,Project delivery costs – supplier services,West and Southern Africa,CARDNO EMERGING MARKETS (UK) LTD,204179-105,"17,872.25",
DFID,DFID,18/07/2018,Project delivery costs – supplier services,East and Central Africa,CARDNO EMERGING MARKETS (UK) LTD,205052-104,"11,859.69",
DFID,DFID,25/07/2018,Project delivery costs – supplier services,"Asia, Caribbean and Overseas Territories",DELOITTE TOUCHE TOHMATSU INDIA LLP,202736-102,"37,664.00",
DFID,DFID,25/07/2018,Project delivery costs – supplier services,"Asia, Caribbean and Overseas Territories",DELOITTE TOUCHE TOHMATSU INDIA LLP,202736-102,"135,700.00",
DFID,DFID,25/07/2018,Project delivery costs – supplier services,"Asia, Caribbean and Overseas Territories",DELOITTE TOUCHE TOHMATSU INDIA LLP,202736-102,"42,154.00",
DFID,DFID,25/07/2018,Project delivery costs – supplier services,"Asia, Caribbean and Overseas Territories",DELOITTE TOUCHE TOHMATSU INDIA LLP,202736-102,"97,350.00",
DFID,DFID,18/07/2018,Aid Programme - Accountable Grant Payments,Economic Development Division,International Initiative for Impact Evaluation(3ie),203308-118,"311,362.00",
DFID,DFID,31/07/2018,Bank Charges/Services,Group Operations,Government Actuary's Department,100182-101,"2,813.51",
DFID,DFID,27/07/2018,Aid Programme - Voluntary contributions,East and Central Africa,UNDP MULTI-PARTNER TRUST FUND OFFICE (USD) ACCOUNT,204019-106,"6,500,000.00",
DFID,DFID,30/07/2018,Aid Programme - Voluntary contributions,East and Central Africa,UNOPS - support for Access Cell unit,205069-107,"1,000,000.00",
DFID,DFID,30/07/2018,Aid Programme - Voluntary contributions,East and Central Africa,UNOPS - support for Access Cell unit,205069-103,"1,832,054.00",
DFID,DFID,09/07/2018,Aid Programme - Voluntary contributions,Middle East and North Africa Division,UNOPS - support for Access Cell unit,300001-101,"350,000.00",
DFID,DFID,02/07/2018,Project delivery costs – supplier services,"Asia, Caribbean and Overseas Territories",RURAL RECONSTRUCTION NEPAL,203764-110,"689,486.00",
DFID,DFID,31/07/2018,Project delivery costs – supplier services,"Asia, Caribbean and Overseas Territories",RURAL RECONSTRUCTION NEPAL,203764-110,"494,984.00",
DFID,DFID,31/07/2018,Project delivery costs – supplier services,"Asia, Caribbean and Overseas Territories",RURAL RECONSTRUCTION NEPAL,203764-104,"305,711.00",
DFID,DFID,02/07/2018,Project delivery costs – supplier services,"Asia, Caribbean and Overseas Territories",RURAL RECONSTRUCTION NEPAL,203764-104,"571,866.00",
DFID,DFID,09/07/2018,Air fares,"Asia, Caribbean and Overseas Territories",BONDS TRAVEL BUREAU,101624-101,531.93,
DFID,DFID,10/07/2018,Air fares,"Asia, Caribbean and Overseas Territories",BONDS TRAVEL BUREAU,101624-101,"1,348.17",
DFID,DFID,18/07/2018,Air fares,"Asia, Caribbean and Overseas Territories",BONDS TRAVEL BUREAU,101624-101,513.64,
DFID,DFID,20/07/2018,Training - Travel & Subsistence,"Asia, Caribbean and Overseas Territories",BONDS TRAVEL BUREAU,101624-101,637.49,
DFID,DFID,03/07/2018,Air fares,"Asia, Caribbean and Overseas Territories",BONDS TRAVEL BUREAU,204604-107,867.40,
DFID,DFID,03/07/2018,Data Network - land lines,Business Solutions Division Level,NAYATEL (PVT) LTD,203329-102,939.02,
DFID,DFID,10/07/2018,Air fares,"Asia, Caribbean and Overseas Territories",OMAR TRAVELS,101624-101,662.70,
DFID,DFID,10/07/2018,Air fares,"Asia, Caribbean and Overseas Territories",OMAR TRAVELS,101624-101,846.47,
DFID,DFID,18/07/2018,Hotels - Accommodation only,"Asia, Caribbean and Overseas Territories",Supplier Name withheld,101624-101,"1,055.75",
DFID,DFID,26/07/2018,Aid Programme - Core contributions,Economic Development Division,European Investment Bank (EIB),200236-103,"13,208,769.60",
DFID,DFID,05/07/2018,Project delivery costs – supplier services,"Asia, Caribbean and Overseas Territories","McKinsey & Co, Inc UK",202697-109,"647,742.19",
DFID,DFID,23/07/2018,Medical/Health Services,West and Southern Africa,FLIMAS,101638-101,"4,882.56",
DFID,DFID,23/07/2018,Aid Programme - Accountable Grant Payments,Research and Evidence Division,Practical Action (GBP),204343-106,"137,062.29",
DFID,DFID,03/07/2018,Project delivery costs – supplier services,Economic Development Division,IFPRI,204249-104,"17,344.14",
DFID,DFID,03/07/2018,Project delivery costs – supplier services,Economic Development Division,IFPRI,204249-104,"26,766.20",
DFID,DFID,03/07/2018,Project delivery costs – supplier services,Economic Development Division,IFPRI,204249-104,"25,286.13",
DFID,DFID,03/07/2018,Project delivery costs – supplier services,Economic Development Division,IFPRI,204249-104,"13,788.80",
DFID,DFID,03/07/2018,Hostile Environment Training,East and Central Africa,UNDP Somalia,101630-102,555.36,
DFID,DFID,04/07/2018,Hostile Environment Training,East and Central Africa,UNDP Somalia,101630-102,553.79,
DFID,DFID,03/07/2018,Staff Travel - Air Fares,West and Southern Africa,UNHAS - WFP (DRC),101610-101,"13,160.86",
DFID,DFID,30/07/2018,Aid Programme - Core contributions,Research and Evidence Division,The Global Alliance for TB Drug Development,300341-106,"3,000,000.00",
DFID,DFID,05/07/2018,Project delivery costs – supplier services,"Asia, Caribbean and Overseas Territories",PALLADIUM INTERNATIONAL,202488-105,"264,622.30",
DFID,DFID,30/07/2018,Project delivery costs – supplier services,East and Central Africa,PALLADIUM INTERNATIONAL,202547-102,"245,510.57",
DFID,DFID,03/07/2018,Project delivery costs – supplier services,East and Central Africa,PALLADIUM INTERNATIONAL,202547-102,"239,187.30",
DFID,DFID,10/07/2018,Project delivery costs – supplier services,West and Southern Africa,PALLADIUM INTERNATIONAL,202992-101,"692,668.60",
DFID,DFID,27/07/2018,Project delivery costs – supplier services,West and Southern Africa,PALLADIUM INTERNATIONAL,202992-101,"756,028.21",
DFID,DFID,13/07/2018,Project delivery costs – supplier services,West and Southern Africa,HM REVENUE AND CUSTOMS Acc,204918-101,"5,405.91",
DFID,DFID,12/07/2018,Project delivery costs – supplier services,West and Southern Africa,HM REVENUE AND CUSTOMS Acc,204918-101,"14,125.22",
DFID,DFID,12/07/2018,Project delivery costs – supplier services,West and Southern Africa,HM REVENUE AND CUSTOMS Acc,204918-101,"14,481.76",
DFID,DFID,13/07/2018,Project delivery costs – supplier services,West and Southern Africa,HM REVENUE AND CUSTOMS Acc,204918-101,700.09,
DFID,DFID,17/07/2018,Project delivery costs – supplier services,West and Southern Africa,HM REVENUE AND CUSTOMS Acc,204918-101,814.11,
DFID,DFID,31/07/2018,Aid Programme - Accountable Grant Payments,East and Central Africa,Basel Institute On Governance,204437-107,"42,950.88",
DFID,DFID,30/07/2018,Aid Programme - Accountable Grant Payments,West and Southern Africa,Basel Institute On Governance,205173-101,"469,251.00",
DFID,DFID,27/07/2018,Aid Programme - Voluntary contributions,"Asia, Caribbean and Overseas Territories",The World Bank (EFO),203385-102,"117,077.00",
DFID,DFID,31/07/2018,Auditors Remuneration & Expenses - Cash,West and Southern Africa,Baker Tilly Nigeria,202585-102,"21,648.92",
DFID,DFID,10/07/2018,Auditors Remuneration & Expenses - Cash,West and Southern Africa,Baker Tilly Nigeria,202694-102,"6,443.14",
DFID,DFID,30/07/2018,Aid Programme - Other Financial Aid to Government,"Asia, Caribbean and Overseas Territories",STATE BANK OF PAKISTAN ,202697-108,"4,000,000.00",
DFID,DFID,03/07/2018,Hotels - Accommodation only,"Asia, Caribbean and Overseas Territories",Supplier Name withheld,101624-101,"1,710.04",
DFID,DFID,24/07/2018,Air fares,East and Central Africa,Bon Voyage Travel Centre Ltd(USD),100230-101,716.46,
DFID,DFID,23/07/2018,Air fares,West and Southern Africa,Bon Voyage Travel Centre Ltd(USD),101613-101,624.52,
DFID,DFID,24/07/2018,Air fares,East and Central Africa,Bon Voyage Travel Centre Ltd(USD),101634-101,701.22,
DFID,DFID,24/07/2018,Hotels - Accommodation only,East and Central Africa,Bon Voyage Travel Centre Ltd(USD),101634-101,640.24,
DFID,DFID,25/07/2018,Air fares,East and Central Africa,Bon Voyage Travel Centre Ltd(USD),101634-101,933.69,
DFID,DFID,25/07/2018,Air fares,East and Central Africa,Bon Voyage Travel Centre Ltd(USD),101634-101,"1,112.80",
DFID,DFID,25/07/2018,Air fares,East and Central Africa,Bon Voyage Travel Centre Ltd(USD),101634-101,"1,128.05",
DFID,DFID,23/07/2018,Air fares,East and Central Africa,Bon Voyage Travel Centre Ltd(USD),101634-101,"2,231.53",
DFID,DFID,23/07/2018,Air fares,East and Central Africa,Bon Voyage Travel Centre Ltd(USD),101634-101,860.62,
DFID,DFID,23/07/2018,Air fares,East and Central Africa,Bon Voyage Travel Centre Ltd(USD),101634-101,822.54,
DFID,DFID,24/07/2018,Air fares,East and Central Africa,Bon Voyage Travel Centre Ltd(USD),101634-101,846.04,
DFID,DFID,24/07/2018,Air fares,East and Central Africa,Bon Voyage Travel Centre Ltd(USD),101634-101,783.54,
DFID,DFID,24/07/2018,Air fares,East and Central Africa,Bon Voyage Travel Centre Ltd(USD),204362-101,651.68,
DFID,DFID,24/07/2018,Air fares,East and Central Africa,Bon Voyage Travel Centre Ltd(Tsh),101634-101,888.31,
DFID,DFID,24/07/2018,Air fares,East and Central Africa,Bon Voyage Travel Centre Ltd(Tsh),101634-101,618.23,
DFID,DFID,11/07/2018,Research and development costs - supplier services,Research and Evidence Division,Tim Leyland,300361-102,"2,540.40",
DFID,DFID,18/07/2018,Aid Programme - Core contributions,Economic Development Division,SG HAMBROS BANK & TRUST LTD GBP,300351-102,"1,000,000.00",
DFID,DFID,13/07/2018,Encashment of Promissory Notes,Policy Division,CLIMATE INVESTMENT FUND,200368-105,"19,843,000.00",
DFID,DFID,11/07/2018,Encashment of Promissory Notes,Policy Division,GLOBAL ENVIRONMENT FACILITY,202216-104,"2,625,000.00",
DFID,DFID,10/07/2018,Encashment of Promissory Notes,International Relations Division,INTERNATIONAL DEVELOPMENT ASSOCIATION,202969-107,"6,660,000.00",
DFID,DFID,10/07/2018,Encashment of Promissory Notes,International Relations Division,INTERNATIONAL DEVELOPMENT ASSOCIATION,202969-108,"41,292,500.00",
DFID,DFID,06/07/2018,Encashment of Promissory Notes,International Relations Division,ASIAN DEVELOPMENT FUND,203547-103,"7,350,000.00",
DFID,DFID,10/07/2018,Encashment of Promissory Notes,International Relations Division,INTERNATIONAL DEVELOPMENT ASSOCIATION,204002-104,"83,717,500.00",
DFID,DFID,11/07/2018,Encashment of Promissory Notes,Policy Division,GLOBAL ENVIRONMENT FACILITY,204056-101,"2,730,000.00",
DFID,DFID,11/07/2018,Encashment of Promissory Notes,Policy Division,GLOBAL ENVIRONMENT FACILITY,204056-102,"4,095,000.00",
DFID,DFID,10/07/2018,Encashment of Promissory Notes,International Relations Division,INTERNATIONAL DEVELOPMENT ASSOCIATION,204085-102,"64,787,500.00",
DFID,DFID,04/07/2018,Encashment of Promissory Notes,International Relations Division,ASIAN DEVELOPMENT FUND,204673-101,"4,165,000.00",
DFID,DFID,31/07/2018,Aid Programme - Accountable Grant Payments,East and Central Africa,DANISH REFUGEE COUNCIL,204019-107,"20,103.69",
DFID,DFID,31/07/2018,Project delivery costs – supplier services,East and Central Africa,DANISH REFUGEE COUNCIL,204439-103,"13,134.21",
DFID,DFID,27/07/2018,Aid Programme - Humanitarian Material Relief Assistance and Services,Middle East and North Africa Division,DANISH REFUGEE COUNCIL,205094-104,"14,697.91",
DFID,DFID,05/07/2018,Aid Programme - Accountable Grant Payments,"Humanitarian, Security and Migration Division",DANISH REFUGEE COUNCIL,300461-103,"1,442,842.59",
DFID,DFID,04/07/2018,Hotels - Accommodation only,East and Central Africa,Golden Jubilee Ltd,101616-101,832.00,
DFID,DFID,30/07/2018,Computer Software Licenses,Group Operations,TR Control Solutions Ltd,100106-101,"1,977.60",
DFID,DFID,30/07/2018,Computer Software Licenses,Group Operations,TR Control Solutions Ltd,203717-101,"2,046.00",
DFID,DFID,24/07/2018,Aid Programme - Pooled/Basket funding,East and Central Africa,TRADEMARK EAST AFRICA,300137-102,"1,150,000.00",
DFID,DFID,24/07/2018,Aid Programme - Pooled/Basket funding,East and Central Africa,TRADEMARK EAST AFRICA,300137-106,"203,892.00",
DFID,DFID,24/07/2018,Aid Programme - Pooled/Basket funding,East and Central Africa,TRADEMARK EAST AFRICA,300137-107,"550,000.00",
DFID,DFID,24/07/2018,Aid Programme - Pooled/Basket funding,East and Central Africa,TRADEMARK EAST AFRICA,300137-108,"96,108.00",
DFID,DFID,24/07/2018,Aid Programme - Pooled/Basket funding,East and Central Africa,TRADEMARK EAST AFRICA,300137-110,"3,500,000.00",
DFID,DFID,30/07/2018,Aid Programme - Pooled/Basket funding,East and Central Africa,TRADEMARK EAST AFRICA,300257-101,"3,000,000.00",
DFID,DFID,24/07/2018,Aid Programme - Accountable Grant Payments,"Asia, Caribbean and Overseas Territories",The Asia Foundation (GBP),203385-103,"95,585.00",
DFID,DFID,17/07/2018,Aid Programme - Accountable Grant Payments,"Asia, Caribbean and Overseas Territories",The Asia Foundation (GBP),204623-101,"294,168.00",
DFID,DFID,24/07/2018,Aid Programme - Accountable Grant Payments,"Asia, Caribbean and Overseas Territories",The Asia Foundation (GBP),204623-101,"254,692.00",
DFID,DFID,18/07/2018,Project delivery costs – supplier services,"Asia, Caribbean and Overseas Territories",The Asia Foundation (GBP),204661-103,"10,000.00",
DFID,DFID,30/07/2018,Aid Programme - Accountable Grant Payments,"Asia, Caribbean and Overseas Territories",The Asia Foundation (GBP),300185-102,"92,787.00",
DFID,DFID,02/07/2018,Aid Programme - Accountable Grant Payments,East and Central Africa,Norwegian Refugee Council,205128-102,"1,500,000.00",
DFID,DFID,11/07/2018,Aid Programme - Accountable Grant Payments,Middle East and North Africa Division,Norwegian Refugee Council,300314-101,"488,707.00",
DFID,DFID,02/07/2018,Project delivery costs – supplier services,Policy Division,CfBT Education Trust,201469-106,"7,640.00",
DFID,DFID,18/07/2018,Aid Programme - Accountable Grant Payments,East and Central Africa,CfBT Education Trust,204463-108,"2,124,994.64",
DFID,DFID,06/07/2018,Hotels - Accommodation only,West and Southern Africa,Wood lands Guest Lodge,100254-101,707.48,
DFID,DFID,06/07/2018,Hotels - Accommodation only,West and Southern Africa,Wood lands Guest Lodge,101638-101,706.73,
DFID,DFID,30/07/2018,Aid Programme - Core contributions,Research and Evidence Division,USDA-ARS,203202-101,"520,000.00",
DFID,DFID,24/07/2018,Air fares,"Asia, Caribbean and Overseas Territories",Gerry's Travel Agency Private Limited,101624-101,684.92,
DFID,DFID,24/07/2018,Air fares,"Asia, Caribbean and Overseas Territories",Gerry's Travel Agency Private Limited,101624-101,663.97,
DFID,DFID,24/07/2018,Air fares,"Asia, Caribbean and Overseas Territories",Gerry's Travel Agency Private Limited,101624-101,824.61,
DFID,DFID,24/07/2018,Training - Travel & Subsistence,"Asia, Caribbean and Overseas Territories",Gerry's Travel Agency Private Limited,101624-101,824.61,
DFID,DFID,25/07/2018,Aid Programme - Core contributions,East and Central Africa,THE WORLD BANK,203383-110,"225,000.00",
DFID,DFID,25/07/2018,Aid Programme - Accountable Grant Payments,East and Central Africa,AgDevCo,204012-102,"180,046.00",
DFID,DFID,25/07/2018,Aid Programme - Accountable Grant Payments,East and Central Africa,AgDevCo,204270-118,"146,848.00",
DFID,DFID,25/07/2018,Aid Programme - Accountable Grant Payments,East and Central Africa,AgDevCo,204270-108,"97,898.00",
DFID,DFID,26/07/2018,Aid Programme - Accountable Grant Payments,East and Central Africa,AgDevCo,204270-130,"12,979.00",
DFID,DFID,25/07/2018,Aid Programme - Accountable Grant Payments,East and Central Africa,AgDevCo,204270-110,"318,044.00",
DFID,DFID,26/07/2018,Aid Programme - Accountable Grant Payments,East and Central Africa,AgDevCo,204270-107,"8,653.00",
DFID,DFID,25/07/2018,Aid Programme - Accountable Grant Payments,East and Central Africa,AgDevCo,204270-119,"477,065.00",
DFID,DFID,25/07/2018,Aid Programme - Accountable Grant Payments,West and Southern Africa,AgDevCo,204270-122,"80,789.00",
DFID,DFID,25/07/2018,Aid Programme - Accountable Grant Payments,West and Southern Africa,AgDevCo,204270-123,"121,184.00",
DFID,DFID,25/07/2018,Aid Programme - Accountable Grant Payments,West and Southern Africa,AgDevCo,204270-131,"205,884.00",
DFID,DFID,25/07/2018,Aid Programme - Accountable Grant Payments,West and Southern Africa,AgDevCo,204270-126,"25,435.00",
DFID,DFID,25/07/2018,Aid Programme - Accountable Grant Payments,West and Southern Africa,AgDevCo,204270-128,"38,152.00",
DFID,DFID,25/07/2018,Aid Programme - Accountable Grant Payments,West and Southern Africa,AgDevCo,204270-111,"98,058.00",
DFID,DFID,25/07/2018,Aid Programme - Accountable Grant Payments,West and Southern Africa,AgDevCo,204270-120,"147,087.00",
DFID,DFID,25/07/2018,Aid Programme - Accountable Grant Payments,East and Central Africa,AgDevCo,204940-107,"152,717.00",
DFID,DFID,24/07/2018,Project delivery costs – supplier services,Research and Evidence Division,IMC Worldwide Ltd.,201879-104,"286,374.34",
DFID,DFID,24/07/2018,Project delivery costs – supplier services,Research and Evidence Division,IMC Worldwide Ltd.,201879-104,"119,323.38",
DFID,DFID,23/07/2018,Project delivery costs – supplier services,Research and Evidence Division,IMC Worldwide Ltd.,201879-106,"3,751.16",
DFID,DFID,23/07/2018,Project delivery costs – supplier services,Research and Evidence Division,IMC Worldwide Ltd.,201879-106,"327,924.72",
DFID,DFID,24/07/2018,Project delivery costs – supplier services,"Asia, Caribbean and Overseas Territories",IMC Worldwide Ltd.,202328-106,"3,578.37",
DFID,DFID,23/07/2018,Project delivery costs – supplier services,"Asia, Caribbean and Overseas Territories",IMC Worldwide Ltd.,202328-107,"233,608.32",
DFID,DFID,24/07/2018,Project delivery costs – supplier services,"Asia, Caribbean and Overseas Territories",IMC Worldwide Ltd.,202328-109,"105,959.00",
DFID,DFID,20/07/2018,Project delivery costs – supplier services,East and Central Africa,IMC Worldwide Ltd.,202596-108,"22,102.43",
DFID,DFID,23/07/2018,Project delivery costs – supplier services,"Asia, Caribbean and Overseas Territories",IMC Worldwide Ltd.,202697-111,"320,351.27",
DFID,DFID,24/07/2018,Project delivery costs – supplier services,"Asia, Caribbean and Overseas Territories",IMC Worldwide Ltd.,202697-104,"425,687.00",
DFID,DFID,24/07/2018,Project delivery costs – supplier services,"Asia, Caribbean and Overseas Territories",IMC Worldwide Ltd.,202697-104,"7,926.91",
DFID,DFID,10/07/2018,Project delivery costs – supplier services,"Asia, Caribbean and Overseas Territories",IMC Worldwide Ltd.,203186-102,"312,510.32",
DFID,DFID,10/07/2018,Project delivery costs – supplier services,"Asia, Caribbean and Overseas Territories",IMC Worldwide Ltd.,203186-103,"171,571.96",
DFID,DFID,10/07/2018,Project delivery costs – supplier services,"Asia, Caribbean and Overseas Territories",IMC Worldwide Ltd.,203186-110,"100,000.00",
DFID,DFID,09/07/2018,Project delivery costs – supplier services,"Asia, Caribbean and Overseas Territories",IMC Worldwide Ltd.,203427-109,"92,359.23",
DFID,DFID,09/07/2018,Project delivery costs – supplier services,"Asia, Caribbean and Overseas Territories",IMC Worldwide Ltd.,203427-110,"92,359.24",
DFID,DFID,30/07/2018,Project delivery costs – supplier services,Economic Development Division,IMC Worldwide Ltd.,203444-109,"4,123.20",
DFID,DFID,19/07/2018,Project delivery costs – supplier services,East and Central Africa,IMC Worldwide Ltd.,203596-101,"18,020.00",
DFID,DFID,27/07/2018,Project delivery costs – supplier services,East and Central Africa,IMC Worldwide Ltd.,203596-101,"73,184.00",
DFID,DFID,02/07/2018,Project delivery costs – supplier services,West and Southern Africa,IMC Worldwide Ltd.,203824-103,"94,248.99",
DFID,DFID,24/07/2018,Project delivery costs – supplier services,"Asia, Caribbean and Overseas Territories",IMC Worldwide Ltd.,203996-105,"22,213.23",
DFID,DFID,05/07/2018,Project delivery costs – supplier services,East and Central Africa,IMC Worldwide Ltd.,204019-115,"302,092.85",
DFID,DFID,09/07/2018,Project delivery costs – supplier services,West and Southern Africa,IMC Worldwide Ltd.,204694-103,"20,207.11",
DFID,DFID,26/07/2018,Project delivery costs – supplier services,West and Southern Africa,IMC Worldwide Ltd.,204856-107,"10,691.55",
DFID,DFID,10/07/2018,Project delivery costs – supplier services,West and Southern Africa,IMC Worldwide Ltd.,205195-102,"1,799,745.01",
DFID,DFID,31/07/2018,Project delivery costs – supplier services,Economic Development Division,IMC Worldwide Ltd.,205222-107,"12,699.08",
DFID,DFID,11/07/2018,Project delivery costs – supplier services,Research and Evidence Division,Integrity Research and Consultancy,204584-161,"20,590.74",
DFID,DFID,20/07/2018,Project delivery costs – supplier services,East and Central Africa,Integrity Research and Consultancy,205067-101,"129,396.73",
DFID,DFID,09/07/2018,Project delivery costs – supplier services,"Asia, Caribbean and Overseas Territories",DAI Europe,114433-102,"52,757.63",
DFID,DFID,05/07/2018,Fund monies to be managed and dispersed by the supplier,Middle East and North Africa Division,DAI Europe,201828-101,"201,423.76",
DFID,DFID,17/07/2018,Fund monies to be managed and dispersed by the supplier,Middle East and North Africa Division,DAI Europe,201828-101,"197,775.42",
DFID,DFID,09/07/2018,Project delivery costs – supplier services,West and Southern Africa,DAI Europe,201857-105,"40,000.00",
DFID,DFID,17/07/2018,Project delivery costs – supplier services,West and Southern Africa,DAI Europe,201857-105,"50,644.12",
DFID,DFID,17/07/2018,Project delivery costs – supplier services,West and Southern Africa,DAI Europe,201857-102,"69,937.12",
DFID,DFID,09/07/2018,Project delivery costs – supplier services,West and Southern Africa,DAI Europe,201857-102,"55,566.68",
DFID,DFID,09/07/2018,Project delivery costs – supplier services,West and Southern Africa,DAI Europe,201857-105,"33,733.70",
DFID,DFID,24/07/2018,Project delivery costs – supplier services,West and Southern Africa,DAI Europe,201980-102,"19,536.13",
DFID,DFID,24/07/2018,Project delivery costs – supplier services,West and Southern Africa,DAI Europe,201980-102,"162,235.08",
DFID,DFID,19/07/2018,Project delivery costs – supplier services,West and Southern Africa,DAI Europe,202476-103,"308,742.88",
DFID,DFID,12/07/2018,Project delivery costs – supplier services,West and Southern Africa,DAI Europe,202585-102,"121,672.66",
DFID,DFID,27/07/2018,Project delivery costs – supplier services,West and Southern Africa,DAI Europe,202585-104,"31,035.35",
DFID,DFID,27/07/2018,Project delivery costs – supplier services,West and Southern Africa,DAI Europe,202585-104,"157,020.26",
DFID,DFID,31/07/2018,Project delivery costs – supplier services,Economic Development Division,DAI Europe,202817-105,"1,158.19",
DFID,DFID,25/07/2018,Project delivery costs – supplier services,East and Central Africa,DAI Europe,202900-102,"174,651.60",
DFID,DFID,27/07/2018,Project delivery costs – supplier services,East and Central Africa,DAI Europe,202900-102,"439,000.00",
DFID,DFID,05/07/2018,Project delivery costs – supplier services,"Asia, Caribbean and Overseas Territories",DAI Europe,203186-104,"51,111.31",
DFID,DFID,05/07/2018,Project delivery costs – supplier services,West and Southern Africa,DAI Europe,203317-102,"97,164.92",
DFID,DFID,03/07/2018,Project delivery costs – supplier services,"Asia, Caribbean and Overseas Territories",DAI Europe,203764-105,"14,842.68",
DFID,DFID,27/07/2018,Project delivery costs – supplier services,"Asia, Caribbean and Overseas Territories",DAI Europe,203764-105,"11,857.96",
DFID,DFID,19/07/2018,Project delivery costs – supplier services,East and Central Africa,DAI Europe,203986-105,"130,372.89",
DFID,DFID,19/07/2018,Project delivery costs – supplier services,East and Central Africa,DAI Europe,203986-105,"32,470.24",
DFID,DFID,19/07/2018,Project delivery costs – supplier services,East and Central Africa,DAI Europe,203986-105,"7,708.79",
DFID,DFID,25/07/2018,Aid Programme - Accountable Grant Payments,Research and Evidence Division,DAI Europe,204046-102,"25,242.80",
DFID,DFID,23/07/2018,Project delivery costs – supplier services,East and Central Africa,DAI Europe,204258-101,"255,591.29",
DFID,DFID,24/07/2018,Project delivery costs – supplier services,Middle East and North Africa Division,DAI Europe,204325-102,"24,215.77",
DFID,DFID,19/07/2018,Project delivery costs – supplier services,East and Central Africa,DAI Europe,204437-108,"3,089.16",
DFID,DFID,19/07/2018,Project delivery costs – supplier services,East and Central Africa,DAI Europe,204437-102,"88,966.15",
DFID,DFID,19/07/2018,Project delivery costs – supplier services,East and Central Africa,DAI Europe,204437-104,"116,685.91",
DFID,DFID,31/07/2018,Project delivery costs – supplier services,"Asia, Caribbean and Overseas Territories",DAI Europe,204604-102,"2,618,823.21",
DFID,DFID,24/07/2018,Project delivery costs – supplier services,East and Central Africa,DAI Europe,204637-102,"35,662.72",
DFID,DFID,06/07/2018,Project delivery costs – supplier services,"Asia, Caribbean and Overseas Territories",DAI Europe,204672-102,"125,669.19",
DFID,DFID,26/07/2018,Project delivery costs – supplier services,"Asia, Caribbean and Overseas Territories",DAI Europe,204672-102,"283,317.93",
DFID,DFID,26/07/2018,Project delivery costs – supplier services,"Asia, Caribbean and Overseas Territories",DAI Europe,204672-102,"94,482.00",
DFID,DFID,06/07/2018,Project delivery costs – supplier services,"Asia, Caribbean and Overseas Territories",DAI Europe,204672-102,"141,722.28",
DFID,DFID,02/07/2018,Project delivery costs – supplier services,West and Southern Africa,DAI Europe,204822-101,"207,875.68",
DFID,DFID,31/07/2018,Project delivery costs – supplier services,"Asia, Caribbean and Overseas Territories",DAI Europe,204977-103,"125,739.18",
DFID,DFID,11/07/2018,Project delivery costs – supplier services,"Humanitarian, Security and Migration Division",DAI Europe,300339-108,"67,243.00",
DFID,DFID,23/07/2018,Project delivery costs – supplier services,Policy Division,Sightsavers,203145-101,"333,666.00",
DFID,DFID,30/07/2018,Project delivery costs – supplier services,Policy Division,Sightsavers,203146-103,"199,165.00",
DFID,DFID,06/07/2018,Project delivery costs – supplier services,Policy Division,Sightsavers,203146-103,"51,330.00",
DFID,DFID,02/07/2018,Project delivery costs – supplier services,West and Southern Africa,Abt Associates,202342-102,"200,333.12",
DFID,DFID,23/07/2018,Fund monies to be managed and dispersed by the supplier,East and Central Africa,Marie Stopes International (MSI),202549-105,"234,592.00",
DFID,DFID,30/07/2018,Aid Programme - Accountable Grant Payments,"Asia, Caribbean and Overseas Territories",Marie Stopes International (MSI),203100-106,"151,559.00",
DFID,DFID,30/07/2018,Aid Programme - Accountable Grant Payments,East and Central Africa,Marie Stopes International (MSI),300114-102,"1,592,959.00",
DFID,DFID,10/07/2018,Project delivery costs – supplier services,Policy Division,PATH,204954-102,"9,411.25",
DFID,DFID,04/07/2018,Project delivery costs – supplier services,Policy Division,PATH,204954-102,"4,247.37",
DFID,DFID,04/07/2018,Project delivery costs – supplier services,Policy Division,PATH,204954-102,"2,990.00",
DFID,DFID,03/07/2018,Project delivery costs – supplier services,Policy Division,PATH,204954-102,"89,728.98",
DFID,DFID,04/07/2018,Project delivery costs – supplier services,Policy Division,PATH,204954-102,"8,774.14",
DFID,DFID,13/07/2018,Project delivery costs – supplier services,East and Central Africa,WYG International,300230-105,"439,620.41",
DFID,DFID,18/07/2018,Project delivery costs – supplier services,Policy Division,LTS International Ltd.,202745-105,"74,887.00",
DFID,DFID,30/07/2018,Project delivery costs – supplier services,"Asia, Caribbean and Overseas Territories","Pact, Inc.",205145-109,"16,819.00",
DFID,DFID,19/07/2018,Project delivery costs – supplier services,East and Central Africa,Pathfinder International - US,202893-103,"190,514.00",
DFID,DFID,31/07/2018,Aid Programme - Accountable Grant Payments,Research and Evidence Division,MIT/J-PAL,300049-101,"328,248.00",
DFID,DFID,06/07/2018,Aid Programme - Programme Contribution,International Relations Division,Commonwealth Scholarships Comm,204043-101,"6,205,000.00",
DFID,DFID,05/07/2018,Other Admin Costs,International Relations Division,Commonwealth Scholarships Comm,204043-102,"406,000.00",Quarterly admin charges (July - September 2018) to the Commonwealth Scholarship Commission (CSC) 
DFID,DFID,20/07/2018,Aid Programme - Accountable Grant Payments,"Asia, Caribbean and Overseas Territories",International Foundation for Electoral Systems,203454-101,"243,023.00",
DFID,DFID,20/07/2018,Project delivery costs – supplier services,"Asia, Caribbean and Overseas Territories",PricewaterhouseCoopers Pvt.Ltd,202865-101,"245,704.00",
DFID,DFID,31/07/2018,Project delivery costs – supplier services,"Asia, Caribbean and Overseas Territories",PricewaterhouseCoopers Pvt.Ltd,203427-103,"169,364.00",
DFID,DFID,11/07/2018,Project delivery costs – supplier services,"Asia, Caribbean and Overseas Territories",PricewaterhouseCoopers Pvt.Ltd,203427-103,"49,108.00",
DFID,DFID,11/07/2018,Project delivery costs – supplier services,"Asia, Caribbean and Overseas Territories",PricewaterhouseCoopers Pvt.Ltd,203427-108,"171,909.00",
DFID,DFID,20/07/2018,Project delivery costs – supplier services,"Asia, Caribbean and Overseas Territories",PricewaterhouseCoopers Pvt.Ltd,203908-101,"130,245.00",
DFID,DFID,26/07/2018,Project delivery costs – supplier services,"Asia, Caribbean and Overseas Territories",PricewaterhouseCoopers Pvt.Ltd,204135-101,"208,672.00",
DFID,DFID,11/07/2018,Project delivery costs – supplier services,"Asia, Caribbean and Overseas Territories",PricewaterhouseCoopers Pvt.Ltd,204135-101,"104,850.00",
DFID,DFID,12/07/2018,Project delivery costs – supplier services,"Asia, Caribbean and Overseas Territories",PricewaterhouseCoopers Pvt.Ltd,204135-101,"105,391.00",
DFID,DFID,27/07/2018,Project delivery costs – supplier services,East and Central Africa,Wasafiri Consulting,202509-103,"98,261.47",
DFID,DFID,25/07/2018,Project delivery costs – supplier services,Research and Evidence Division,PricewaterhouseCoopers Limited (KENYA3),204570-106,"41,254.24",
DFID,DFID,31/07/2018,Research and development costs - supplier services,Research and Evidence Division,PricewaterhouseCoopers Limited (KENYA3),204570-106,"224,899.45",
DFID,DFID,04/07/2018,Aid Programme - Accountable Grant Payments,Economic Development Division,Landesa,204252-120,"47,032.00",
DFID,DFID,19/07/2018,Aid Programme - Accountable Grant Payments,Economic Development Division,Landesa,204252-128,"49,434.00",
DFID,DFID,30/07/2018,Aid Programme - Accountable Grant Payments,Economic Development Division,Landesa,204252-128,"51,178.00",
DFID,DFID,03/07/2018,Project delivery costs – supplier services,East and Central Africa,CMC Automobiles Ltd,204033-105,"34,443.60",
DFID,DFID,02/07/2018,Project delivery costs – supplier services,Policy Division,Ecometrica,201724-151,"30,420.00",
DFID,DFID,02/07/2018,Project delivery costs – supplier services,Policy Division,Ecometrica,201724-151,"13,120.00",
DFID,DFID,24/07/2018,Project delivery costs – supplier services,"Asia, Caribbean and Overseas Territories",Ernst & Young Ford Rhodes,202328-102,"16,817.10",
DFID,DFID,17/07/2018,Project delivery costs – supplier services,West and Southern Africa,Charlie Goldsmith Associates Limited,202427-103,"7,237.00",
DFID,DFID,18/07/2018,Project delivery costs – supplier services,Policy Division,Pearson,201469-103,"412,705.00",
DFID,DFID,26/07/2018,Project delivery costs – supplier services,East and Central Africa,IMA World Health,203631-102,"1,335,930.00",
DFID,DFID,10/07/2018,Hostile Environment Training,Internal Audit,KBR,100121-101,545.83,
DFID,DFID,05/07/2018,Hostile Environment Training,Economic Development Division,KBR,100124-101,601.00,
DFID,DFID,23/07/2018,Hostile Environment Training,Policy Division,KBR,100191-101,601.00,
DFID,DFID,23/07/2018,Hostile Environment Training,Finance and Corporate Performance Division,KBR,100201-101,601.00,
DFID,DFID,03/07/2018,Project delivery costs – supplier services,Research and Evidence Division,Tilburg University - TiSEM,202818-102,"240,000.00",
DFID,DFID,05/07/2018,Aid Programme - Voluntary contributions,"Asia, Caribbean and Overseas Territories",Deutsche Gesellschaft fuer Internationale Zusammenarbeit (GIZ) GmbH,202976-108,"200,000.00",
DFID,DFID,23/07/2018,Aid Programme - Joint programme contribution,"Asia, Caribbean and Overseas Territories",Deutsche Gesellschaft fuer Internationale Zusammenarbeit (GIZ) GmbH,204619-106,"80,344.00",
DFID,DFID,26/07/2018,Project delivery costs – supplier services,West and Southern Africa,Mokoro ltd.,202427-103,"8,465.70",
DFID,DFID,17/07/2018,Project delivery costs – supplier services,"Humanitarian, Security and Migration Division",Police Scotland,300042-103,"18,246.52",
DFID,DFID,17/07/2018,Project delivery costs – supplier services,"Humanitarian, Security and Migration Division",Police Scotland,300042-103,"2,077.00",
DFID,DFID,04/07/2018,Aid Programme - Core contributions,Research and Evidence Division,Biotechnology & Biological Sciences Research Council,202038-102,"35,515.43",
DFID,DFID,05/07/2018,Aid Programme - Joint programme contribution,Research and Evidence Division,Biotechnology & Biological Sciences Research Council,202766-106,"205,462.09",
DFID,DFID,11/07/2018,Data Network -Satellite,Communications Division,Applied Satellite Technology Systems Ltd,100197-101,"1,073.11",
DFID,DFID,31/07/2018,Aid Programme - Accountable Grant Payments,"Humanitarian, Security and Migration Division",UK-Med,202878-103,"488,661.00",
DFID,DFID,13/07/2018,Training - Course Fees,Economic Development Division,International Training Centre of the ILO (ITC-ILO),202432-101,"1,127.55",
DFID,DFID,27/07/2018,Training Providers/Facilitation Services,Group Operations,St John Ambulance CTD,203717-101,550.00,
DFID,DFID,30/07/2018,Project delivery costs – supplier services,Business Solutions Division Level,Parity Resources,200005-145,"1,517.42",
DFID,DFID,04/07/2018,Project delivery costs – supplier services,Business Solutions Division Level,Parity Resources,200005-144,"1,517.42",
DFID,DFID,11/07/2018,Project delivery costs – supplier services,Business Solutions Division Level,Parity Resources,200005-144,"1,517.42",
DFID,DFID,20/07/2018,Project delivery costs – supplier services,Business Solutions Division Level,Parity Resources,200005-144,"1,896.78",
DFID,DFID,30/07/2018,Aid Programme - Other Financial Aid to Government,East and Central Africa,Ministry of Finance Tanzania Water Supply,204033-102,"2,200,000.00",
DFID,DFID,04/07/2018,Postage Costs,Group Operations,Royal Mail Courier Services Ltd,203717-101,855.23,
DFID,DFID,20/07/2018,Aid Programme - Other Financial Aid to Government,East and Central Africa,Government of Rwanda NSDS2 in Rwanda,201690-101,"750,000.00",
DFID,DFID,30/07/2018,Aid Programme - Other Financial Aid to Government,East and Central Africa,Vision 2020 Umurenge Grant 08/13 Rwanda,203641-101,"1,500,000.00",
DFID,DFID,10/07/2018,Project delivery costs – supplier services,"Asia, Caribbean and Overseas Territories","Louis Berger Group, Inc.",203426-102,"279,547.00",
DFID,DFID,17/07/2018,Project delivery costs – supplier services,West and Southern Africa,KPMG IDAS WA,202493-106,"5,953.07",
DFID,DFID,12/07/2018,Aid Programme - Voluntary contributions,Economic Development Division,CDC Group plc,202939-116,"56,267.26",
DFID,DFID,18/07/2018,Aid Programme - Voluntary contributions,Economic Development Division,CDC Group plc,202939-117,"98,216.51",
DFID,DFID,10/07/2018,Aid Programme - Accountable Grant Payments,East and Central Africa,HelpAge International UK,204258-103,"31,268.91",
DFID,DFID,24/07/2018,Project delivery costs – supplier services,"Asia, Caribbean and Overseas Territories",HMRC,204024-106,"10,874.70",
DFID,DFID,18/07/2018,Project delivery costs – supplier services,"Asia, Caribbean and Overseas Territories",HMRC,204786-101,"1,342.67",
DFID,DFID,04/07/2018,Aid Programme - Accountable Grant Payments,East and Central Africa,PEAS (Promoting Equality in African Schools),204641-101,"642,884.00",
DFID,DFID,25/07/2018,Aid Programme - Pooled/Basket funding,East and Central Africa,Kenya Markets Trust,202698-111,"994,701.00",
DFID,DFID,06/07/2018,Hotels - Accommodation only,East and Central Africa,Golden Jubilee Limited (USD),101630-101,642.48,
DFID,DFID,06/07/2018,Hotels - Accommodation only,East and Central Africa,Golden Jubilee Limited (USD),101630-101,706.73,
DFID,DFID,24/07/2018,Aid Programme - Other Financial Aid to Government,"Asia, Caribbean and Overseas Territories",Pakistan National Cash Transfer Programme,203029-103,"7,000,000.00",
DFID,DFID,06/07/2018,Aid Programme - Accountable Grant Payments,"Asia, Caribbean and Overseas Territories",Supplier Name withheld,203496-101,"415,680.98",
DFID,DFID,11/07/2018,Aid Programme - Other Financial Aid to Government,"Asia, Caribbean and Overseas Territories","Ministry of Finance and Planning Jamaica, FID Task Force",204232-102,"127,497.00",
DFID,DFID,24/07/2018,Aid Programme - Other Financial Aid to Government,East and Central Africa,Rwanda Reads Project,204463-105,"3,968,403.38",
DFID,DFID,25/07/2018,Project delivery costs – supplier services,"Asia, Caribbean and Overseas Territories",Institute of Social and Policy Sciences (I-SAPS),203029-104,"10,000.00",
DFID,DFID,03/07/2018,Aid Programme - Non Grant Financial contributions,"Asia, Caribbean and Overseas Territories",SAMRIDHI FUND,114293-104,"3,550,963.19",
DFID,DFID,31/07/2018,Aid Programme - Accountable Grant Payments,Economic Development Division,International Budget Partnership,300157-103,"200,000.00",
DFID,DFID,25/07/2018,Aid Programme - Other Financial Aid to Government,East and Central Africa,"Government of Rwanda, Climate Change and Environment-FONERWA",203582-105,"1,100,000.00",
DFID,DFID,24/07/2018,Air fares,"Asia, Caribbean and Overseas Territories",dnata International Private Ltd.,101611-101,735.82,
DFID,DFID,04/07/2018,Air fares,West and Southern Africa,dnata International Private Ltd.,101618-101,"1,025.21",
DFID,DFID,04/07/2018,Air fares,West and Southern Africa,dnata International Private Ltd.,101629-101,"1,384.60",
DFID,DFID,04/07/2018,Air fares,West and Southern Africa,dnata International Private Ltd.,101629-101,"2,460.78",
DFID,DFID,12/07/2018,Air fares,"Asia, Caribbean and Overseas Territories",dnata International Private Ltd.,204053-101,847.72,
DFID,DFID,19/07/2018,Project delivery costs – supplier services,West and Southern Africa,Freetown Nominees Ltd,300254-104,"8,484.16",
DFID,DFID,30/07/2018,Aid Programme - Accountable Grant Payments,West and Southern Africa,BasicNeeds-GHANA,203536-105,"62,856.44",
DFID,DFID,12/07/2018,"Repairs, Maintenance and Alterations – Other Building Costs",Group Operations,Bauder Ltd,100106-101,"2,136.07",
DFID,DFID,24/07/2018,Aid Programme - Voluntary contributions,West and Southern Africa,UNDP Multi-Partner Trust Fund Office,204565-101,"5,000,000.00",
DFID,DFID,31/07/2018,Aid Programme - Accountable Grant Payments,Policy Division,IDEO.org,203798-102,"875,299.00",
DFID,DFID,18/07/2018,Subscriptions,Communications Division,Intelogy Limited,100197-101,"5,376.00",
DFID,DFID,30/07/2018,Aid Programme - Voluntary contributions,East and Central Africa,International Bank for Reconstruction and Development,300365-103,"500,000.00",
DFID,DFID,12/07/2018,Data Network - land lines,Business Solutions Division Level,Liquid Telecommunications Rwanda Ltd,203329-102,641.47,
DFID,DFID,19/07/2018,Data Network - land lines,Business Solutions Division Level,Liquid Telecommunications Rwanda Ltd,203329-102,648.69,
DFID,DFID,26/07/2018,Aid Programme - Accountable Grant Payments,East and Central Africa,CANADEM,204019-107,"33,314.63",
DFID,DFID,11/07/2018,Project delivery costs – supplier services,East and Central Africa,CANADEM,204439-103,"27,948.69",
DFID,DFID,20/07/2018,Aid Programme - Humanitarian Material Relief Assistance and Services,Middle East and North Africa Division,CANADEM,204516-103,"32,642.03",
DFID,DFID,20/07/2018,Aid Programme - Humanitarian Material Relief Assistance and Services,Middle East and North Africa Division,CANADEM,204516-103,"19,779.18",
DFID,DFID,31/07/2018,Project delivery costs – supplier services,"Asia, Caribbean and Overseas Territories",CANADEM,205268-110,"15,445.25",
DFID,DFID,18/07/2018,Project delivery costs – supplier services,East and Central Africa,CANADEM,205286-105,"14,336.54",
DFID,DFID,24/07/2018,Project delivery costs – supplier services,East and Central Africa,CANADEM,300196-101,"27,837.50",
DFID,DFID,17/07/2018,Project delivery costs – supplier services,West and Southern Africa,RENAN CONSULT LTD,204918-101,"3,634.34",
DFID,DFID,05/07/2018,Data Network - land lines,Business Solutions Division Level,Annodata Business Systems Limited,200002-124,"1,125.00",
DFID,DFID,03/07/2018,Telephone Usage & services,West and Southern Africa,Emerging Markets Telecommunications Services Ltd,101622-106,"2,263.09",
DFID,DFID,18/07/2018,Aid Programme - Voluntary contributions,"Asia, Caribbean and Overseas Territories",World Bank - IBRD,204612-102,"200,000.00",
DFID,DFID,20/07/2018,Medical/Health Services,East and Central Africa,The Jubilee Insurance Company of (U) Ltd,101635-101,"17,502.92",
DFID,DFID,24/07/2018,Air fares,West and Southern Africa,Travel Places Ltd,100096-101,956.83,
DFID,DFID,24/07/2018,Air fares,West and Southern Africa,Travel Places Ltd,101613-101,"2,793.53",
DFID,DFID,30/07/2018,Aid Programme - Accountable Grant Payments,East and Central Africa,ZOA,202520-108,"243,981.00",
DFID,DFID,30/07/2018,Aid Programme - Accountable Grant Payments,East and Central Africa,ZOA,202520-110,"519,775.00",
DFID,DFID,31/07/2018,Project delivery costs – supplier services,West and Southern Africa,EY LLP,203628-104,"15,049.00",
DFID,DFID,24/07/2018,Project delivery costs – supplier services,West and Southern Africa,EY LLP,203628-104,"18,335.00",
DFID,DFID,31/07/2018,Project delivery costs – supplier services,West and Southern Africa,EY LLP,203878-106,"37,771.33",
DFID,DFID,11/07/2018,Project delivery costs – supplier services,West and Southern Africa,EY LLP,204918-101,"8,130.09",
DFID,DFID,04/07/2018,Project delivery costs – supplier services,West and Southern Africa,EY LLP,204918-101,"26,147.94",
DFID,DFID,18/07/2018,Project delivery costs – supplier services,West and Southern Africa,EY LLP,204918-101,"10,037.78",
DFID,DFID,27/07/2018,Project delivery costs – supplier services,West and Southern Africa,EY LLP,204918-101,"1,875.00",
DFID,DFID,24/07/2018,Project delivery costs – supplier services,West and Southern Africa,EY LLP,205192-102,"17,617.47",
DFID,DFID,13/07/2018,Project delivery costs – supplier services,West and Southern Africa,EY LLP,205192-103,"21,590.91",
DFID,DFID,10/07/2018,Project delivery costs – supplier services,West and Southern Africa,EY LLP,300254-104,"27,601.57",
DFID,DFID,31/07/2018,Aid Programme - Core contributions,Research and Evidence Division,PEP-Partnership for Economic Policy,204153-111,"250,000.00",
DFID,DFID,24/07/2018,Other ICT,Business Solutions Division Level,Leidos Innovations UK,200002-173,"11,647.22",
DFID,DFID,17/07/2018,Computer Software Licenses,Business Solutions Division Level,Leidos Innovations UK,200005-116,"60,768.10",
DFID,DFID,13/07/2018,Aid Programme - Accountable Grant Payments,West and Southern Africa,Zvitambo Institute for Maternal & Child Health Research,201854-108,"22,839.09",
DFID,DFID,05/07/2018,Project delivery costs – supplier services,East and Central Africa,KPMG Advisory Limited,204804-102,"123,779.85",
DFID,DFID,20/07/2018,Aid Programme - Voluntary contributions,"Asia, Caribbean and Overseas Territories",UNOPS-HQ,205268-110,"2,578,527.16",
DFID,DFID,27/07/2018,Aid Programme - Programme Contribution,Research and Evidence Division,Innovate UK - Technology Strategy Board,204867-106,"640,659.71",
DFID,DFID,27/07/2018,Aid Programme - Programme Contribution,Research and Evidence Division,Innovate UK - Technology Strategy Board,204867-106,"37,500.00",
DFID,DFID,27/07/2018,Aid Programme - Programme Contribution,Research and Evidence Division,Innovate UK - Technology Strategy Board,204867-106,"34,363.80",
DFID,DFID,27/07/2018,Aid Programme - Programme Contribution,Research and Evidence Division,Innovate UK - Technology Strategy Board,204867-106,"53,449.57",
DFID,DFID,02/07/2018,Aid Programme - Programme Contribution,Research and Evidence Division,Innovate UK - Technology Strategy Board,204867-106,"26,363.95",
DFID,DFID,04/07/2018,Project delivery costs – supplier services,Research and Evidence Division,Innovate UK - Technology Strategy Board,205170-101,"99,029.90",
DFID,DFID,04/07/2018,Project delivery costs – supplier services,Research and Evidence Division,Innovate UK - Technology Strategy Board,205170-101,"2,389.18",
DFID,DFID,30/07/2018,Aid Programme - Accountable Grant Payments,Economic Development Division,The British Academy,203448-101,"258,703.26",
DFID,DFID,27/07/2018,Aid Programme - Joint programme contribution,"Asia, Caribbean and Overseas Territories",Governance Facility Nepal,108538-106,"458,375.00",
DFID,DFID,27/07/2018,Aid Programme - Joint programme contribution,"Asia, Caribbean and Overseas Territories",Governance Facility Nepal,203274-108,"147,967.00",
DFID,DFID,27/07/2018,Project delivery costs – supplier services,Policy Division,AECOM Professional Services,201724-156,"14,100.00",
DFID,DFID,27/07/2018,DFID Purchased Relief Supplies,Policy Division,AECOM Professional Services,201724-156,"127,822.60",
DFID,DFID,27/07/2018,Project delivery costs – supplier services,Policy Division,AECOM Professional Services,201724-156,"7,669.36",
DFID,DFID,13/07/2018,Project delivery costs – supplier services,Policy Division,AECOM Professional Services,201724-156,"15,860.00",
DFID,DFID,13/07/2018,DFID Purchased Relief Supplies,Policy Division,AECOM Professional Services,201724-156,"544,815.08",
DFID,DFID,13/07/2018,Project delivery costs – supplier services,Policy Division,AECOM Professional Services,201724-156,"32,688.90",
DFID,DFID,30/07/2018,Project delivery costs – supplier services,West and Southern Africa,AECOM Professional Services,202214-103,"18,791.07",
DFID,DFID,30/07/2018,Project delivery costs – supplier services,East and Central Africa,AECOM Professional Services,202900-107,"14,946.32",
DFID,DFID,06/07/2018,DFID Purchased Relief Supplies,East and Central Africa,AECOM Professional Services,202946-107,"130,957.15",
DFID,DFID,02/07/2018,DFID Purchased Relief Supplies,West and Southern Africa,AECOM Professional Services,203674-103,"264,077.84",
DFID,DFID,02/07/2018,Project delivery costs – supplier services,West and Southern Africa,AECOM Professional Services,203674-103,"101,751.04",
DFID,DFID,27/07/2018,DFID Purchased Relief Supplies,West and Southern Africa,AECOM Professional Services,203674-103,"120,227.65",
DFID,DFID,27/07/2018,Project delivery costs – supplier services,West and Southern Africa,AECOM Professional Services,203674-103,"7,213.66",
DFID,DFID,23/07/2018,Project delivery costs – supplier services,"Asia, Caribbean and Overseas Territories",AECOM Professional Services,204023-105,"71,497.53",
DFID,DFID,23/07/2018,DFID Purchased Relief Supplies,"Asia, Caribbean and Overseas Territories",AECOM Professional Services,204023-105,"1,191,625.34",
DFID,DFID,18/07/2018,DFID Purchased Relief Supplies,West and Southern Africa,AECOM Professional Services,204822-105,"65,769.54",
DFID,DFID,18/07/2018,DFID Purchased Relief Supplies,West and Southern Africa,AECOM Professional Services,204822-105,"4,483.08",
DFID,DFID,06/07/2018,Aid Programme - Accountable Grant Payments,"Asia, Caribbean and Overseas Territories",Perkumpulan Dewan Bisnis Indonesia Untuk Pembangunan Berkelanjutan,204623-107,"48,974.52",
DFID,DFID,10/07/2018,Project delivery costs – supplier services,West and Southern Africa,"PRICEWATERHOUSECOOPERS, GHANA",202455-104,"22,349.73",
DFID,DFID,17/07/2018,Project delivery costs – supplier services,West and Southern Africa,"PRICEWATERHOUSECOOPERS, GHANA",202455-104,"1,914.37",
DFID,DFID,04/07/2018,Project delivery costs – supplier services,West and Southern Africa,"PRICEWATERHOUSECOOPERS, GHANA",204657-101,"33,032.38",
DFID,DFID,10/07/2018,Project delivery costs – supplier services,West and Southern Africa,"PRICEWATERHOUSECOOPERS, GHANA",204918-101,"62,663.89",
DFID,DFID,20/07/2018,Aid Programme - Accountable Grant Payments,East and Central Africa,Sahan Foundation Ltd,205069-104,"117,970.50",
DFID,DFID,20/07/2018,Aid Programme - Accountable Grant Payments,East and Central Africa,Sahan Foundation Ltd,205069-104,"80,011.00",
DFID,DFID,12/07/2018,Project delivery costs – supplier services,Research and Evidence Division,Research Fish Ltd,203094-104,"12,370.85",
DFID,DFID,30/07/2018,Aid Programme - Accountable Grant Payments,Economic Development Division,Advocates for international Development,203950-101,"179,143.04",
DFID,DFID,31/07/2018,Aid Programme - Accountable Grant Payments,"Asia, Caribbean and Overseas Territories",Supplier Name withheld,203904-105,"230,613.93",
DFID,DFID,12/07/2018,Aid Programme - Accountable Grant Payments,Economic Development Division,Land Portal,204252-130,"92,469.04",
DFID,DFID,19/07/2018,Air fares,East and Central Africa,HRG Kenya (USD),101616-101,"2,143.28",
DFID,DFID,19/07/2018,Air fares,East and Central Africa,HRG Kenya (USD),101616-101,"1,286.59",
DFID,DFID,23/07/2018,Air fares,East and Central Africa,HRG Kenya (USD),101616-101,"1,522.33",
DFID,DFID,26/07/2018,Air fares,East and Central Africa,HRG Kenya (USD),101616-101,"1,516.13",
DFID,DFID,19/07/2018,Air fares,East and Central Africa,HRG Kenya (USD),101616-102,"1,171.02",
DFID,DFID,19/07/2018,Air fares,East and Central Africa,HRG Kenya (USD),101630-102,851.30,
DFID,DFID,19/07/2018,Air fares,East and Central Africa,HRG Kenya (USD),101630-101,762.71,
DFID,DFID,19/07/2018,Hotels - Accommodation only,East and Central Africa,HRG Kenya (USD),101630-101,699.53,
DFID,DFID,23/07/2018,Project delivery costs – supplier services,"Asia, Caribbean and Overseas Territories",KPMG (Registered),204059-102,"10,560.00",
DFID,DFID,23/07/2018,Project delivery costs – supplier services,"Asia, Caribbean and Overseas Territories",KPMG (Registered),204059-102,"12,042.00",
DFID,DFID,23/07/2018,Project delivery costs – supplier services,"Asia, Caribbean and Overseas Territories",KPMG (Registered),204059-102,"4,800.00",
DFID,DFID,27/07/2018,Project delivery costs – supplier services,"Asia, Caribbean and Overseas Territories",KPMG (Registered),204059-102,"30,296.00",
DFID,DFID,27/07/2018,Project delivery costs – supplier services,"Asia, Caribbean and Overseas Territories",KPMG (Registered),204059-102,"22,475.00",
DFID,DFID,30/07/2018,Project delivery costs – supplier services,"Asia, Caribbean and Overseas Territories",KPMG (Registered),204059-102,"39,966.00",
DFID,DFID,30/07/2018,Project delivery costs – supplier services,"Asia, Caribbean and Overseas Territories",KPMG (Registered),204059-102,"35,000.00",
DFID,DFID,30/07/2018,Project delivery costs – supplier services,"Asia, Caribbean and Overseas Territories",KPMG (Registered),204059-102,"33,152.00",
DFID,DFID,30/07/2018,Project delivery costs – supplier services,"Asia, Caribbean and Overseas Territories",KPMG (Registered),204059-102,"18,905.00",
DFID,DFID,09/07/2018,Hotels - Accommodation only,"Asia, Caribbean and Overseas Territories",Ascott Palace Ltd,101603-102,527.10,
DFID,DFID,23/07/2018,Hotels - Accommodation only,"Asia, Caribbean and Overseas Territories",Ascott Palace Ltd,101603-102,"1,963.64",
DFID,DFID,20/07/2018,Aid Programme - Joint programme contribution,Policy Division,Ministry of Climate and Environment,202745-103,"375,000.00",
DFID,DFID,23/07/2018,Aid Programme - Accountable Grant Payments,"Asia, Caribbean and Overseas Territories",Afghanaid UK,203904-107,"1,263,954.00",
DFID,DFID,31/07/2018,Aid Programme - Accountable Grant Payments,Economic Development Division,Global Reporting Initiative,203448-101,"143,807.00",
DFID,DFID,12/07/2018,Aid Programme - Accountable Grant Payments,"Asia, Caribbean and Overseas Territories","Aga Khan Foundation, Kyrgyz",300051-102,"28,000.00",
DFID,DFID,12/07/2018,Aid Programme - Accountable Grant Payments,"Asia, Caribbean and Overseas Territories","Aga Khan Foundation, Kyrgyz",300619-102,"38,636.00",
DFID,DFID,09/07/2018,Aid Programme - Strategic Grant Arrangement payments,East and Central Africa,Financial Sector Deepening Uganda Ltd,202692-111,"525,892.00",
DFID,DFID,20/07/2018,Aid Programme - Other Financial Aid to Government,"Asia, Caribbean and Overseas Territories",Major Organised Crime & Anti-Corruption Agency,204232-101,"317,937.00",
DFID,DFID,23/07/2018,Aid Programme - Other Financial Aid to Government,East and Central Africa,Ministry of Finance of the United Republic of Tanzania(Equip LGA),203363-108,"5,000,000.00",
DFID,DFID,25/07/2018,Project delivery costs – supplier services,West and Southern Africa,"WorleyParsons Europe, Trading as Advisian",205195-103,"21,958.93",
DFID,DFID,20/07/2018,Project delivery costs – supplier services,West and Southern Africa,V&E Consultants,202656-103,630.00,
DFID,DFID,20/07/2018,Project delivery costs – supplier services,West and Southern Africa,V&E Consultants,202656-103,"13,072.00",
DFID,DFID,26/07/2018,Aid Programme - Other Financial Aid to Government,East and Central Africa,Tanzania Ministry of Finance,203473-102,"8,500,000.00",
DFID,DFID,09/07/2018,Project delivery costs – supplier services,Research and Evidence Division,Caribou Digital (UK) Ltd,204584-157,"45,953.00",
DFID,DFID,09/07/2018,Project delivery costs – supplier services,Middle East and North Africa Division,Caribou Digital (UK) Ltd,300060-102,"48,850.00",
DFID,DFID,26/07/2018,Project delivery costs – supplier services,Business Solutions Division Level,Concentra Consulting Limited,200005-139,720.00,
DFID,DFID,13/07/2018,Secure staff accommodation,"Asia, Caribbean and Overseas Territories",Supplier Name withheld,204053-101,"9,705.23",
DFID,DFID,30/07/2018,Aid Programme - Accountable Grant Payments,East and Central Africa,AgDevCo Limited USD,204012-103,"1,094,340.20",
DFID,DFID,30/07/2018,Aid Programme - Accountable Grant Payments,East and Central Africa,AgDevCo Limited USD,204270-110,"450,510.24",
DFID,DFID,30/07/2018,Aid Programme - Accountable Grant Payments,East and Central Africa,AgDevCo Limited USD,204270-119,"675,764.59",
DFID,DFID,30/07/2018,Aid Programme - Accountable Grant Payments,West and Southern Africa,AgDevCo Limited USD,204270-109,"82,246.86",
DFID,DFID,30/07/2018,Aid Programme - Accountable Grant Payments,West and Southern Africa,AgDevCo Limited USD,204270-117,"123,370.29",
DFID,DFID,30/07/2018,Aid Programme - Accountable Grant Payments,West and Southern Africa,AgDevCo Limited USD,204270-111,"45,692.70",
DFID,DFID,30/07/2018,Aid Programme - Accountable Grant Payments,West and Southern Africa,AgDevCo Limited USD,204270-120,"68,539.05",
DFID,DFID,30/07/2018,Aid Programme - Accountable Grant Payments,West and Southern Africa,AgDevCo Limited USD,204270-122,"47,540.21",
DFID,DFID,30/07/2018,Aid Programme - Accountable Grant Payments,West and Southern Africa,AgDevCo Limited USD,204270-123,"71,311.08",
DFID,DFID,26/07/2018,Aid Programme - Core contributions,Economic Development Division,EUROPEAN COMMISSION (EDF),200236-103,"170,018,639.02",
DFID,DFID,12/07/2018,Aid Programme - Joint programme contribution,"Asia, Caribbean and Overseas Territories",Regional Security System,204232-106,"187,377.00",
DFID,DFID,02/07/2018,Fund monies to be managed and dispersed by the supplier,Policy Division,MannionDaniels UK AID Direct,202035-101,"17,017.56",
DFID,DFID,02/07/2018,Fund monies to be managed and dispersed by the supplier,Policy Division,MannionDaniels UK AID Direct,202035-102,"23,083.80",
DFID,DFID,02/07/2018,Fund monies to be managed and dispersed by the supplier,Policy Division,MannionDaniels UK AID Direct,202035-102,"48,906.15",
DFID,DFID,02/07/2018,Fund monies to be managed and dispersed by the supplier,Policy Division,MannionDaniels UK AID Direct,202035-102,"10,000.00",
DFID,DFID,04/07/2018,Fund monies to be managed and dispersed by the supplier,Policy Division,MannionDaniels UK AID Direct,203559-101,"666,622.02",
DFID,DFID,04/07/2018,Fund monies to be managed and dispersed by the supplier,Policy Division,MannionDaniels UK AID Direct,203559-101,"93,328.08",
DFID,DFID,17/07/2018,Further Education costs ,East and Central Africa,The School of Oriental & African Studies,101616-102,"1,110.00",
DFID,DFID,11/07/2018,Project delivery costs – supplier services,Middle East and North Africa Division,Management Plus,300060-102,"4,783.76",
DFID,DFID,11/07/2018,Government Car Scheme UK,Top Management Group,Department for Transport - GCS,100232-110,"6,947.55",
DFID,DFID,02/07/2018,Government Car Scheme UK,Top Management Group,Department for Transport - GCS,100232-110,"7,042.40",
DFID,DFID,09/07/2018,Project delivery costs – supplier services,East and Central Africa,Growth Consultants for Change ltd,204793-101,"9,582.50",
DFID,DFID,26/07/2018,Bank Charges/Services,Central Department Division,HM REVENUE & CUSTOMS VAT,100259-101,"2,768.94",
DFID,DFID,26/07/2018,Project delivery costs – supplier services,Policy Division,HM REVENUE & CUSTOMS VAT,201733-121,"46,245.00",
DFID,DFID,23/07/2018,Aid Programme - Accountable Grant Payments,West and Southern Africa,ZAMBIAN FINANCIAL SECTOR DEEPENING LIMITED,203000-105,"736,337.00",
DFID,DFID,27/07/2018,Aid Programme - Core contributions,"Asia, Caribbean and Overseas Territories",Indonesia Climate Change Trust Fund,204623-105,"513,619.45",
DFID,DFID,13/07/2018,Hotels - Accommodation only,Economic Development Division, Department for International Trade,100124-101,"1,135.82",
DFID,DFID,10/07/2018,Hotels - Accommodation only,Economic Development Division, Department for International Trade,100124-101,"1,135.82",
DFID,DFID,04/07/2018,Project delivery costs – supplier services,Human Resources,Korn Ferry Hay Group Limited,100269-155,"3,559.82",
DFID,DFID,27/07/2018,Training Providers/Facilitation Services,Business Change and Strategy Division,CSL - KPMG LLP,100225-101,"1,251.00",
DFID,DFID,26/07/2018,Training Providers/Facilitation Services,Human Resources,CSL - KPMG LLP,100269-153,"2,500.00",
DFID,DFID,04/07/2018,Training Providers/Facilitation Services,Human Resources,CSL - KPMG LLP,100269-153,"2,500.00",
DFID,DFID,12/07/2018,Training - Course Fees,East and Central Africa,CSL - KPMG LLP,101634-101,"1,607.00",
DFID,DFID,25/07/2018,Training Providers/Facilitation Services,Research and Evidence Division,CSL - KPMG LLP,202392-106,"1,607.00",
DFID,DFID,19/07/2018,Aid Programme - Other Financial Aid to Government,East and Central Africa,Ministry of Finance and Economic Cooperation,204290-101,"15,709,678.05",
DFID,DFID,19/07/2018,Aid Programme - Other Financial Aid to Government,East and Central Africa,Ministry of Finance and Economic Cooperation,204290-103,"31,090,321.95",
DFID,DFID,24/07/2018,Aid Programme - Trust Funds contributions,Economic Development Division,EU Africa Trust Fund (EUTF Africa),300165-101,"536,336.82",
DFID,DFID,20/07/2018,Aid Programme - Accountable Grant Payments,West and Southern Africa, CONSERVATION FARMING UNIT,204842-103,"1,723,770.00",
DFID,DFID,05/07/2018,Project delivery costs – supplier services,East and Central Africa,Centre for Humanitarian Change,203462-101,"16,484.00",
DFID,DFID,26/07/2018,Project delivery costs – supplier services,East and Central Africa,Centre for Humanitarian Change,203462-101,"8,242.00",
DFID,DFID,25/07/2018,"Conferences, Seminars & Meeting/Event Resource",Research and Evidence Division,Satellite Applications Catapult Ltd,202331-101,826.51,
DFID,DFID,11/07/2018,Training Providers/Facilitation Services,West and Southern Africa,Portlíngua,204497-104,"2,370.40",
DFID,DFID,12/07/2018,Training Providers/Facilitation Services,West and Southern Africa,Portlíngua,204497-104,"1,581.45",
DFID,DFID,05/07/2018,Project delivery costs – supplier services,West and Southern Africa,PAMODZI,204856-106,"2,420.57",
DFID,DFID,13/07/2018,Air fares,East and Central Africa,AirTraffic Ltd,101630-101,"1,331.76",
DFID,DFID,12/07/2018,Aid Programme - Humanitarian Material Relief Assistance and Services,"Humanitarian, Security and Migration Division",Merseyside Fire and Rescue Authority,202878-103,"52,858.26",
DFID,DFID,30/07/2018,Aid Programme - Humanitarian Material Relief Assistance and Services,"Asia, Caribbean and Overseas Territories",Merseyside Fire and Rescue Authority,205268-110,"56,000.00",
DFID,DFID,18/07/2018,Aid Programme - Accountable Grant Payments,Economic Development Division,B Lab,203448-101,"265,678.00",
DFID,DFID,03/07/2018,Project delivery costs – supplier services,Business Solutions Division Level,Teleperformance Ltd,200002-169,967.70,
DFID,DFID,31/07/2018,Aid Programme - Other Financial Aid to Government,Middle East and North Africa Division,GOVERNMENT OF JORDAN - MINISTRY OF PLANNING,205200-103,"4,000,000.00",
DFID,DFID,17/07/2018,Project delivery costs – supplier services,"Humanitarian, Security and Migration Division",Victor and Victors Management Services Ltd.,300646-105,"10,714.11",
DFID,DFID,17/07/2018,Project delivery costs – supplier services,"Humanitarian, Security and Migration Division",Victor and Victors Management Services Ltd.,300646-105,"9,514.75",
DFID,DFID,17/07/2018,Project delivery costs – supplier services,"Humanitarian, Security and Migration Division",Victor and Victors Management Services Ltd.,300646-105,"6,721.36",
DFID,DFID,10/07/2018,Hotels - Accommodation only,Economic Development Division,UCL/Radisson Blu Hotel & KCC,202373-101,511.66,
DFID,DFID,18/07/2018,Facilities Management payments,Group Operations,Interserve Facilities Management Limited,100106-101,"4,511.70",
DFID,DFID,18/07/2018,Facilities Management payments,Group Operations,Interserve Facilities Management Limited,100106-101,"3,131.78",
DFID,DFID,18/07/2018,"Repairs, Maint, Alter - Property & Constrct. Services",Group Operations,Interserve Facilities Management Limited,100106-101,"7,875.84",
DFID,DFID,18/07/2018,"Repairs, Maint, Alter - Facilities Management payments",Group Operations,Interserve Facilities Management Limited,100106-101,"11,547.00",
DFID,DFID,18/07/2018,"Repairs, Maint, Alter - Cleaning Costs",Group Operations,Interserve Facilities Management Limited,100106-101,"13,768.67",
DFID,DFID,18/07/2018,"Repairs, Maint, Alter - Removal & waste disposal services",Group Operations,Interserve Facilities Management Limited,203717-101,"1,381.33",
DFID,DFID,18/07/2018,"Repairs, Maint, Alter - Facilities Management payments",Group Operations,Interserve Facilities Management Limited,203717-101,"6,036.52",
DFID,DFID,18/07/2018,Facilities Management payments,Group Operations,Interserve Facilities Management Limited,203717-101,"2,412.86",
DFID,DFID,18/07/2018,"Repairs, Maint, Alter - Cleaning Costs",Group Operations,Interserve Facilities Management Limited,203717-101,"14,602.68",
DFID,DFID,18/07/2018,"Repairs, Maint, Alter - Property & Constrct. Services",Group Operations,Interserve Facilities Management Limited,203717-101,"59,239.55",Monthly maintenance service costs for Whitehall UK HQ for July 2018
DFID,DFID,18/07/2018,"Repairs, Maint, Alter - Facilities Management payments",Group Operations,Interserve Facilities Management Limited,203717-101,"10,385.47",
DFID,DFID,04/07/2018,Aid Programme - Accountable Grant Payments,"Asia, Caribbean and Overseas Territories",UK India Business Council,300109-107,"14,132.25",
DFID,DFID,04/07/2018,Aid Programme - Accountable Grant Payments,"Asia, Caribbean and Overseas Territories",UK India Business Council,300109-108,"4,710.75",
DFID,DFID,31/07/2018,Aid Programme - Accountable Grant Payments,Economic Development Division,MSINGI EAST AFRICA LIMITED,204658-102,"1,334,000.00",
DFID,DFID,27/07/2018,Aid Programme - Accountable Grant Payments,Economic Development Division,Fund for the City of New York / Open Contracting Partnership,205181-105,"240,993.54",
DFID,DFID,12/07/2018,Fund monies to be managed and dispersed by the supplier,Research and Evidence Division,Crown Agents Bank Limited,202531-109,"58,250.00",
DFID,DFID,24/07/2018,Fund monies to be managed and dispersed by the supplier,Policy Division,Crown Agents Bank Limited,202745-104,"1,069,410.00",
DFID,DFID,24/07/2018,Fund monies to be managed and dispersed by the supplier,Policy Division,Crown Agents Bank Limited,202745-104,"177,112.20",
DFID,DFID,03/07/2018,Fund monies to be managed and dispersed by the supplier,Policy Division,Crown Agents Bank Limited,202745-104,"453,775.67",
DFID,DFID,12/07/2018,Project delivery costs – supplier services,Economic Development Division,Crown Agents Bank Limited,203375-105,"6,955.40",
DFID,DFID,12/07/2018,Project delivery costs – supplier services,Economic Development Division,Crown Agents Bank Limited,203375-104,"334,464.11",
DFID,DFID,27/07/2018,Fund monies to be managed and dispersed by the supplier,Research and Evidence Division,Crown Agents Bank Limited,204415-103,"12,814.93",
DFID,DFID,27/07/2018,Fund monies to be managed and dispersed by the supplier,Research and Evidence Division,Crown Agents Bank Limited,204415-103,"26,654.00",
DFID,DFID,27/07/2018,Fund monies to be managed and dispersed by the supplier,Research and Evidence Division,Crown Agents Bank Limited,204415-103,"58,974.60",
DFID,DFID,27/07/2018,Fund monies to be managed and dispersed by the supplier,Research and Evidence Division,Crown Agents Bank Limited,204415-103,"104,807.00",
DFID,DFID,18/07/2018,Bank Charges/Services,Group Operations,Crown Agents Bank Limited,204664-101,"2,771.60",
DFID,DFID,27/07/2018,Fund monies to be managed and dispersed by the supplier,East and Central Africa,Crown Agents Bank Limited,205068-102,"687,301.73",
DFID,DFID,27/07/2018,Fund monies to be managed and dispersed by the supplier,East and Central Africa,Crown Agents Bank Limited,205068-102,"171,280.75",
DFID,DFID,13/07/2018,Aid Programme - Accountable Grant Payments,East and Central Africa,Crown Agents Bank Limited,205110-103,"589,269.76",
DFID,DFID,31/07/2018,Aid Programme - Accountable Grant Payments,Economic Development Division,ShareAction (Fairshare Educational Foundation),203448-101,"104,926.00",
DFID,DFID,05/07/2018,Aid Programme - Accountable Grant Payments,"Asia, Caribbean and Overseas Territories",Ipas inc,203866-101,"259,408.52",
DFID,DFID,27/07/2018,Aid Programme - Core contributions,Policy Division,Agence Française de Développement - Afrique,201724-140,"750,000.00",
DFID,DFID,30/07/2018,Aid Programme - Joint programme contribution,East and Central Africa,Agence Française de Développement - Afrique,203998-105,"2,000,000.00",
DFID,DFID,12/07/2018,Aid Programme - Accountable Grant Payments,Policy Division,The Power of Nutrition GBP,204564-102,"4,593,442.00",
DFID,DFID,23/07/2018,Aid Programme - Accountable Grant Payments,Policy Division,The Power of Nutrition GBP,204564-102,"1,574,803.00",
DFID,DFID,05/07/2018,Medical/Health Services,West and Southern Africa,PRUDENTIAL LIFE ASSURANCE ZAMBIA LIMITED,100254-101,808.58,
DFID,DFID,05/07/2018,Medical/Health Services,West and Southern Africa,PRUDENTIAL LIFE ASSURANCE ZAMBIA LIMITED,101637-101,"19,406.01",
DFID,DFID,05/07/2018,Subscriptions,Communications Division,Kantar Media,100197-101,"1,584.41",
DFID,DFID,05/07/2018,Subscriptions,Communications Division,Kantar Media,100197-101,"1,584.41",
DFID,DFID,17/07/2018,Aid Programme - Other Financial Aid to Government,Middle East and North Africa Division,PA-Ministry of Finance and Planning,300050-101,"20,000,000.00",
DFID,DFID,20/07/2018,Aid Programme - Voluntary contributions,"Asia, Caribbean and Overseas Territories",UNDP Myanmar,204196-105,"250,000.00",
DFID,DFID,11/07/2018,Aid Programme - Voluntary contributions,"Asia, Caribbean and Overseas Territories",UNDP Myanmar,204196-110,"99,184.09",
DFID,DFID,27/07/2018,Aid Programme - Accountable Grant Payments,"Asia, Caribbean and Overseas Territories",Violence Prevention Alliance,203643-104,"37,840.85",
DFID,DFID,23/07/2018,Medical/Health Services,East and Central Africa,ZAMARA RISK & INSURANCE,101616-101,"2,749.50",
DFID,DFID,23/07/2018,Medical/Health Services,Research and Evidence Division,ZAMARA RISK & INSURANCE,202392-111,"1,640.24",
DFID,DFID,26/07/2018,Other travel costs,Policy Division,Acumen Fund,202402-107,752.22,
DFID,DFID,12/07/2018,Project delivery costs – supplier services,Business Solutions Division Level,Empiric Solutions Limited,200002-239,"3,600.00",
DFID,DFID,17/07/2018,Project delivery costs – supplier services,Business Solutions Division Level,Empiric Solutions Limited,200002-239,"3,600.00",
DFID,DFID,30/07/2018,Project delivery costs – supplier services,Policy Division,SPHEIR - British Council,203166-103,"2,090,483.03",
DFID,DFID,04/07/2018,Aid Programme - Voluntary contributions,"Asia, Caribbean and Overseas Territories",United Nations Institute for Training and Research (UNITAR),204603-110,"600,000.00",
DFID,DFID,11/07/2018,Fund monies to be managed and dispersed by the supplier,Middle East and North Africa Division,Blumont,300273-101,"361,000.00",
DFID,DFID,18/07/2018,Fund monies to be managed and dispersed by the supplier,Middle East and North Africa Division,Blumont,300273-101,"373,000.00",
DFID,DFID,30/07/2018,Aid Programme - Accountable Grant Payments,East and Central Africa,The AECF,203574-104,"1,012,125.00",
DFID,DFID,30/07/2018,Aid Programme - Accountable Grant Payments,East and Central Africa,The AECF,203574-107,"959,459.00",
DFID,DFID,24/07/2018,Project delivery costs – supplier services,Group Operations,Perfect Circle JV Ltd,203717-101,"10,907.40",
DFID,DFID,10/07/2018,Training - Course Fees,West and Southern Africa,comenfrance,101610-101,"2,719.22",
DFID,DFID,24/07/2018,Project delivery costs – supplier services,East and Central Africa,ALLNEXT,204323-106,"14,056.22",
DFID,DFID,09/07/2018,Aid Programme - Accountable Grant Payments,"Asia, Caribbean and Overseas Territories",Family Educational Services Foundation,300238-104,"3,344.00",
DFID,DFID,26/07/2018,Aid Programme - Accountable Grant Payments,"Asia, Caribbean and Overseas Territories",Family Educational Services Foundation,300238-104,"3,344.00",
DFID,DFID,10/07/2018,Aid Programme - Accountable Grant Payments,"Asia, Caribbean and Overseas Territories",BRAC-Pakistan,300238-101,"96,967.23",
DFID,DFID,26/07/2018,Aid Programme - Accountable Grant Payments,"Asia, Caribbean and Overseas Territories",BRAC-Pakistan,300238-101,"94,975.94",
DFID,DFID,13/07/2018,Data Network - land lines,Business Solutions Division Level,Whitehall TV Services Ltd,200002-130,"1,656.00",
DFID,DFID,10/07/2018,Project delivery costs – supplier services,West and Southern Africa,COGNISERVE LIMITED,204918-101,"6,639.03",
DFID,DFID,10/07/2018,Project delivery costs – supplier services,West and Southern Africa,COGNISERVE LIMITED,204918-101,"6,770.69",
DFID,DFID,02/07/2018,Data Network - land lines,Business Solutions Division Level,SIMBANET (T) LIMITED,203329-102,591.34,
DFID,DFID,27/07/2018,Data Network - land lines,Business Solutions Division Level,SIMBANET (T) LIMITED,203329-102,590.26,
DFID,DFID,13/07/2018,Aid Programme - Accountable Grant Payments,Middle East and North Africa Division,Queen Rania Foundation for Education and Development,205200-104,"65,754.00",
DFID,DFID,25/07/2018,Project delivery costs – supplier services,"Asia, Caribbean and Overseas Territories",KPMG (Regstd.),114293-103,"2,111.93",
DFID,DFID,25/07/2018,Project delivery costs – supplier services,"Asia, Caribbean and Overseas Territories",KPMG (Regstd.),114293-103,"2,111.93",
DFID,DFID,23/07/2018,Other ICT,Business Solutions Division Level,Hewlett Packard Enterprise,200002-247,"259,116.13",Implementation costs for the development of DFID�s new in-house software systems.
DFID,DFID,10/07/2018,Project delivery costs – supplier services,West and Southern Africa,Flame Technical Services Limited,204918-101,"9,560.27",
DFID,DFID,30/07/2018,Computer software maintenance,Business Solutions Division Level,PROACTIS Group Limited,200002-240,"2,921.26",
DFID,DFID,17/07/2018,Project delivery costs – supplier services,"Asia, Caribbean and Overseas Territories",MJ Hudson,203908-101,"12,000.00",
DFID,DFID,06/07/2018,Aid Programme - Accountable Grant Payments,West and Southern Africa,CCJP Lilongwe,300043-103,"166,480.86",
DFID,DFID,05/07/2018,Project delivery costs – supplier services,Economic Development Division,IBLF,205181-108,"6,115.42",
DFID,DFID,18/07/2018,Aid Programme - Accountable Grant Payments,Economic Development Division,The Global Development Incubator,204722-101,"31,454.20",
DFID,DFID,03/07/2018,Project delivery costs – supplier services,East and Central Africa,GIDE LOYRETTE NOUEL,204793-101,"37,590.00",
DFID,DFID,05/07/2018,Project delivery costs – supplier services,"Asia, Caribbean and Overseas Territories",BSI Standards Limited,300110-102,"4,953.55",
DFID,DFID,05/07/2018,Project delivery costs – supplier services,"Asia, Caribbean and Overseas Territories",BSI Standards Limited,300110-106,"9,199.45",
DFID,DFID,12/07/2018,Data Network - land lines,Business Solutions Division Level,"PT. Indosat Tbk,",203329-102,"1,008.47",
DFID,DFID,12/07/2018,Data Network - land lines,Business Solutions Division Level,"PT. Indosat Tbk,",203329-102,568.41,
DFID,DFID,24/07/2018,Training - Course Fees,Finance and Corporate Performance Division,TOK Scotland Ltd Trading as Tree of Knowledge,100201-101,"3,000.00",
DFID,DFID,11/07/2018,Data Network - land lines,Business Solutions Division Level,Easy Connect - ISP,203329-102,"1,190.00",
DFID,DFID,09/07/2018,Data Network - land lines,Business Solutions Division Level,Easy Connect - ISP,203329-102,833.00,
DFID,DFID,09/07/2018,Data Network - land lines,Business Solutions Division Level,Easy Connect - ISP,203329-102,"1,190.00",
DFID,DFID,30/07/2018,Aid Programme - Accountable Grant Payments,Economic Development Division,Advisory Centre on WTO Law (ACWL),204715-102,"62,500.00",
DFID,DFID,30/07/2018,Aid Programme - Accountable Grant Payments,"Asia, Caribbean and Overseas Territories",Accelerator Nepal,203426-111,"15,177.00",
DFID,DFID,10/07/2018,Aid Programme - Accountable Grant Payments,"Asia, Caribbean and Overseas Territories",Accelerator Nepal,203426-111,"9,347.00",
DFID,DFID,19/07/2018,Aid Programme - Accountable Grant Payments,West and Southern Africa,Civil Resource Development and Documentation Centre,204822-107,"26,667.85",
DFID,DFID,26/07/2018,Project delivery costs – supplier services,East and Central Africa,Rift Valley Research Ltd,300559-103,"14,532.58",
DFID,DFID,17/07/2018,Project delivery costs – supplier services,West and Southern Africa,EVENTZ PRO,300338-104,"3,763.23",
DFID,DFID,17/07/2018,Project delivery costs – supplier services,West and Southern Africa,EKAM CAPITAL,300338-104,"3,057.63",
DFID,DFID,10/07/2018,Project delivery costs – supplier services,West and Southern Africa,SPELK MICRO CONSULT,204918-101,"1,584.78",
DFID,DFID,10/07/2018,Project delivery costs – supplier services,West and Southern Africa,Solgift Consult,204918-101,"1,793.85",
DFID,DFID,12/07/2018,Legal costs,Finance and Corporate Performance Division,Dentons UKMEA LLP,100201-101,"4,100.00",
DFID,DFID,19/07/2018,Legal costs,Economic Development Division,Dentons UKMEA LLP,100276-101,"3,360.00",
DFID,DFID,09/07/2018,Legal costs,Economic Development Division,Dentons UKMEA LLP,203286-101,"3,024.00",
DFID,DFID,26/07/2018,Legal costs,Economic Development Division,Dentons UKMEA LLP,205226-108,"8,009.09",
DFID,DFID,23/07/2018,Data Network - land lines,Business Solutions Division Level,Liquid Telecom,200002-121,"1,098.32",
DFID,DFID,30/07/2018,Data Network - land lines,Business Solutions Division Level,Liquid Telecom,200002-121,"4,396.65",
DFID,DFID,23/07/2018,Data Network - land lines,Business Solutions Division Level,Liquid Telecom,203329-102,"2,562.76",
